Workbook

Sheet Hoja1 (hidden)
A1: CAPITANIA | B1: Numero Total | C1: <03 | D1: <03,5 | E1: <04 | F1: <04,5 | G1: <05 | H1: <06 | I1: <08 | J1: <12 | K1: <15 | L1: <20 | M1: <24 | N1: >=24 | O1: MOTOS | P1: Misma Provincia | Q1: Diferente Provincia | R1: Lista 6 | S1: Lista 7 | T1: RIGIDO | U1: SEMIRIGIDO | V1: NEUMATICO | W1: Sin Datos | X1: VELA | Y1: Total ANT | Z1: 03 ANT | AA1: 035 ANT | AB1: 04 ANT | AC1: 045 ANT | AD1: 05 ANT | AE1: 06 ANT | AF1: 075 ANT | AG1: 12 ANT | AH1: 15 ANT | AI1: 20 ANT | AJ1: 24 ANT | AK1: >24 ANT | AL1: Motos ANT | AM1: Misma ANT | AN1: Dif ANT | AO1: 6 ANT | AP1: 7 ANT | AQ1: Rig ANT | AR1: Semi ANT | AS1: neu ANT | AT1: sd ANT | AU1: Vela ANT
A2: A CORUÑA | B2: 10 | H2: 1 | I2: 3 | J2: 5 | O2: 1 | P2: 2 | Q2: 8 | R2: 3 | S2: 7 | T2: 7 | U2: 0 | V2: 0 | W2: 0 | X2: 2 | Y2: 7 | AD2: 2 | AE2: 4 | AG2: 1 | AM2: 2 | AN2: 5 | AO2: 0 | AP2: 7 | AQ2: 5 | AR2: 1 | AS2: 0 | AT2: 0 | AU2: 1
A3: ALGECIRAS | B3: 10 | D3: 1 | G3: 1 | H3: 1 | I3: 4 | L3: 1 | O3: 2 | P3: 1 | Q3: 9 | R3: 1 | S3: 9 | T3: 4 | U3: 3 | V3: 1 | W3: 0 | X3: 0 | Y3: 7 | AB3: 2 | AC3: 1 | AD3: 1 | AF3: 2 | AH3: 1 | AM3: 3 | AN3: 4 | AO3: 0 | AP3: 7 | AQ3: 3 | AR3: 2 | AS3: 2 | AT3: 0 | AU3: 0
A4: ALICANTE | B4: 14 | C4: 1 | H4: 6 | I4: 2 | O4: 5 | P4: 7 | Q4: 7 | R4: 5 | S4: 9 | T4: 5 | U4: 3 | V4: 0 | W4: 0 | X4: 1 | Y4: 24 | Z4: 1 | AA4: 3 | AC4: 1 | AD4: 1 | AE4: 9 | AF4: 3 | AG4: 1 | AL4: 5 | AM4: 14 | AN4: 10 | AO4: 0 | AP4: 24 | AQ4: 12 | AR4: 2 | AS4: 3 | AT4: 0 | AU4: 2
A5: ALMERIA | B5: 11 | C5: 3 | D5: 1 | G5: 1 | H5: 3 | I5: 1 | O5: 2 | P5: 6 | Q5: 5 | R5: 1 | S5: 10 | T5: 2 | U5: 3 | V5: 4 | W5: 0 | X5: 0 | Y5: 8 | AA5: 1 | AB5: 1 | AD5: 1 | AF5: 4 | AL5: 1 | AM5: 3 | AN5: 5 | AO5: 0 | AP5: 8 | AQ5: 5 | AR5: 0 | AS5: 2 | AT5: 0 | AU5: 0
A6: AVILES | Y6: 1 | AE6: 1 | AM6: 1 | AO6: 0 | AP6: 1 | AQ6: 0 | AR6: 0 | AS6: 0 | AT6: 1 | AU6: 0
A7: BARCELONA | B7: 20 | D7: 1 | E7: 1 | H7: 3 | I7: 8 | J7: 5 | K7: 1 | O7: 1 | P7: 11 | Q7: 9 | R7: 0 | S7: 20 | T7: 14 | U7: 1 | V7: 2 | W7: 0 | X7: 2 | Y7: 15 | AA7: 1 | AC7: 1 | AD7: 1 | AE7: 3 | AF7: 2 | AG7: 4 | AH7: 1 | AI7: 1 | AL7: 1 | AM7: 8 | AN7: 7 | AO7: 3 | AP7: 12 | AQ7: 9 | AR7: 1 | AS7: 3 | AT7: 0 | AU7: 1
A8: BILBAO | B8: 14 | D8: 3 | G8: 1 | H8: 1 | I8: 1 | J8: 4 | O8: 4 | P8: 5 | Q8: 9 | R8: 2 | S8: 12 | T8: 3 | U8: 2 | V8: 1 | W8: 0 | X8: 4 | Y8: 13 | AE8: 4 | AF8: 1 | AH8: 3 | AL8: 5 | AM8: 2 | AN8: 11 | AO8: 0 | AP8: 13 | AQ8: 5 | AR8: 2 | AS8: 0 | AT8: 0 | AU8: 1
A9: CADIZ | B9: 6 | F9: 1 | G9: 2 | H9: 1 | I9: 1 | O9: 1 | P9: 4 | Q9: 2 | R9: 0 | S9: 6 | T9: 4 | U9: 1 | V9: 0 | W9: 0 | X9: 0 | Y9: 11 | Z9: 1 | AA9: 1 | AC9: 4 | AE9: 3 | AF9: 1 | AL9: 1 | AM9: 6 | AN9: 5 | AO9: 0 | AP9: 11 | AQ9: 4 | AR9: 4 | AS9: 2 | AT9: 0 | AU9: 0
A10: CARTAGENA | B10: 14 | C10: 1 | D10: 1 | F10: 1 | G10: 1 | H10: 2 | J10: 1 | O10: 7 | P10: 9 | Q10: 5 | R10: 5 | S10: 9 | T10: 3 | U10: 1 | V10: 2 | W10: 0 | X10: 1 | Y10: 10 | Z10: 1 | AA10: 2 | AB10: 3 | AC10: 2 | AF10: 1 | AL10: 1 | AM10: 7 | AN10: 3 | AO10: 0 | AP10: 10 | AQ10: 4 | AR10: 1 | AS10: 4 | AT10: 0 | AU10: 0
A11: CASTELLON | B11: 11 | C11: 1 | D11: 1 | F11: 1 | H11: 1 | I11: 2 | J11: 1 | O11: 4 | P11: 3 | Q11: 8 | R11: 1 | S11: 10 | T11: 4 | U11: 0 | V11: 2 | W11: 0 | X11: 1 | Y11: 1 | AF11: 1 | AN11: 1 | AO11: 0 | AP11: 1 | AQ11: 1 | AR11: 0 | AS11: 0 | AT11: 0 | AU11: 0
A12: GIJON | B12: 1 | H12: 1 | Q12: 1 | R12: 0 | S12: 1 | T12: 1 | U12: 0 | V12: 0 | W12: 0 | X12: 0 | Y12: 4 | AC12: 1 | AE12: 1 | AF12: 2 | AM12: 1 | AN12: 3 | AO12: 0 | AP12: 4 | AQ12: 3 | AR12: 1 | AS12: 0 | AT12: 0 | AU12: 0
A13: HUELVA | B13: 10 | C13: 1 | E13: 3 | F13: 1 | O13: 5 | P13: 9 | Q13: 1 | R13: 3 | S13: 7 | T13: 0 | U13: 1 | V13: 4 | W13: 0 | X13: 0 | Y13: 2 | AA13: 1 | AL13: 1 | AM13: 2 | AO13: 0 | AP13: 2 | AQ13: 1 | AR13: 0 | AS13: 0 | AT13: 0 | AU13: 0
A14: LAS PALMAS | B14: 11 | D14: 1 | E14: 6 | F14: 1 | H14: 1 | J14: 1 | K14: 1 | P14: 11 | R14: 4 | S14: 7 | T14: 3 | U14: 5 | V14: 3 | W14: 0 | X14: 0 | Y14: 8 | Z14: 1 | AA14: 4 | AD14: 2 | AF14: 1 | AM14: 8 | AO14: 1 | AP14: 7 | AQ14: 2 | AR14: 0 | AS14: 6 | AT14: 0 | AU14: 0
A15: LUGO | B15: 1 | H15: 1 | Q15: 1 | R15: 0 | S15: 1 | T15: 1 | U15: 0 | V15: 0 | W15: 0 | X15: 0 | Y15: 1 | AC15: 1 | AN15: 1 | AO15: 0 | AP15: 1 | AQ15: 1 | AR15: 0 | AS15: 0 | AT15: 0 | AU15: 0
A16: MALAGA | B16: 14 | D16: 4 | E16: 3 | F16: 1 | H16: 4 | I16: 1 | J16: 1 | P16: 11 | Q16: 3 | R16: 4 | S16: 10 | T16: 8 | U16: 1 | V16: 3 | W16: 0 | X16: 2 | Y16: 6 | AA16: 2 | AI16: 1 | AL16: 3 | AM16: 4 | AN16: 2 | AO16: 0 | AP16: 6 | AQ16: 1 | AR16: 1 | AS16: 1 | AT16: 0 | AU16: 0
A17: MELILLA | B17: 2 | O17: 2 | P17: 2 | R17: 0 | S17: 2 | T17: 0 | U17: 0 | V17: 0 | W17: 0 | X17: 0 | Y17: 1 | AL17: 1 | AM17: 1 | AO17: 0 | AP17: 1 | AQ17: 0 | AR17: 0 | AS17: 0 | AT17: 0 | AU17: 0
A18: MOTRIL | B18: 1 | O18: 1 | P18: 1 | R18: 0 | S18: 1 | T18: 0 | U18: 0 | V18: 0 | W18: 0 | X18: 0 | Y18: 6 | AB18: 2 | AL18: 4 | AM18: 4 | AN18: 2 | AO18: 0 | AP18: 6 | AQ18: 0 | AR18: 0 | AS18: 2 | AT18: 0 | AU18: 0
A19: PALAMOS | B19: 4 | C19: 2 | I19: 1 | K19: 1 | P19: 2 | Q19: 2 | R19: 1 | S19: 3 | T19: 2 | U19: 0 | V19: 2 | W19: 0 | X19: 0 | Y19: 5 | AB19: 1 | AD19: 1 | AF19: 3 | AM19: 3 | AN19: 2 | AO19: 2 | AP19: 3 | AQ19: 4 | AR19: 0 | AS19: 1 | AT19: 0 | AU19: 0
A20: PALMA MALLORCA | B20: 16 | D20: 1 | E20: 1 | H20: 5 | I20: 4 | J20: 2 | O20: 3 | P20: 13 | Q20: 3 | R20: 3 | S20: 13 | T20: 5 | U20: 6 | V20: 1 | W20: 0 | X20: 1 | Y20: 21 | AB20: 1 | AC20: 3 | AD20: 1 | AE20: 5 | AF20: 4 | AG20: 3 | AH20: 2 | AI20: 1 | AL20: 1 | AM20: 16 | AN20: 5 | AO20: 2 | AP20: 19 | AQ20: 14 | AR20: 3 | AS20: 0 | AT20: 0 | AU20: 3
A21: PASAJES | Y21: 1 | AB21: 1 | AN21: 1 | AO21: 0 | AP21: 1 | AQ21: 0 | AR21: 1 | AS21: 0 | AT21: 0 | AU21: 0
A22: SANTA CRUZ DE TENERIFE | B22: 9 | D22: 1 | E22: 1 | G22: 1 | H22: 3 | I22: 2 | O22: 1 | P22: 6 | Q22: 3 | R22: 1 | S22: 8 | T22: 5 | U22: 0 | V22: 2 | W22: 1 | X22: 0 | Y22: 2 | AC22: 1 | AG22: 1 | AM22: 1 | AN22: 1 | AO22: 2 | AP22: 0 | AQ22: 2 | AR22: 0 | AS22: 0 | AT22: 0 | AU22: 0
A23: SANTANDER | B23: 8 | D23: 1 | F23: 1 | G23: 1 | H23: 2 | I23: 2 | J23: 1 | P23: 6 | Q23: 2 | R23: 0 | S23: 8 | T23: 5 | U23: 1 | V23: 1 | W23: 0 | X23: 1 | Y23: 1 | AE23: 1 | AM23: 1 | AO23: 0 | AP23: 1 | AQ23: 1 | AR23: 0 | AS23: 0 | AT23: 0 | AU23: 0
A24: SEVILLA | B24: 3 | G24: 1 | H24: 1 | I24: 1 | P24: 1 | Q24: 2 | R24: 0 | S24: 3 | T24: 3 | U24: 0 | V24: 0 | W24: 0 | X24: 0 | Y24: 9 | Z24: 1 | AA24: 2 | AB24: 1 | AC24: 2 | AE24: 1 | AF24: 1 | AG24: 1 | AM24: 5 | AN24: 4 | AO24: 1 | AP24: 8 | AQ24: 2 | AR24: 2 | AS24: 5 | AT24: 0 | AU24: 0
A25: TARRAGONA | B25: 4 | C25: 1 | E25: 2 | K25: 1 | P25: 2 | Q25: 2 | R25: 0 | S25: 4 | T25: 2 | U25: 1 | V25: 1 | W25: 0 | X25: 0 | Y25: 4 | AE25: 1 | AF25: 2 | AH25: 1 | AM25: 2 | AN25: 2 | AO25: 0 | AP25: 4 | AQ25: 4 | AR25: 0 | AS25: 0 | AT25: 0 | AU25: 0
A26: VALENCIA | B26: 3 | H26: 1 | I26: 1 | J26: 1 | P26: 2 | Q26: 1 | R26: 0 | S26: 3 | T26: 2 | U26: 0 | V26: 0 | W26: 0 | X26: 1 | Y26: 6 | Z26: 1 | AB26: 1 | AD26: 1 | AE26: 1 | AG26: 1 | AH26: 1 | AM26: 5 | AN26: 1 | AO26: 0 | AP26: 6 | AQ26: 3 | AR26: 0 | AS26: 1 | AT26: 0 | AU26: 2
A27: VIGO | B27: 14 | E27: 1 | G27: 2 | H27: 3 | I27: 4 | J27: 1 | K27: 1 | O27: 2 | P27: 8 | Q27: 6 | R27: 3 | S27: 11 | T27: 6 | U27: 4 | V27: 0 | W27: 0 | X27: 2 | Y27: 6 | AE27: 2 | AF27: 1 | AG27: 1 | AH27: 1 | AL27: 1 | AM27: 3 | AN27: 3 | AO27: 0 | AP27: 6 | AQ27: 3 | AR27: 1 | AS27: 0 | AT27: 0 | AU27: 1
A28: VILAGARCIA DE AROUSA | B28: 15 | F28: 3 | G28: 3 | H28: 6 | I28: 1 | O28: 2 | P28: 3 | Q28: 12 | R28: 0 | S28: 15 | T28: 13 | U28: 0 | V28: 0 | W28: 0 | X28: 0 | Y28: 12 | AA28: 1 | AB28: 7 | AC28: 1 | AE28: 1 | AL28: 2 | AM28: 2 | AN28: 10 | AO28: 0 | AP28: 12 | AQ28: 10 | AR28: 0 | AS28: 0 | AT28: 0 | AU28: 0

Sheet Modificar datos
A1: Mes de Análisis | B1: Enero
A2: Fecha Publicación | B2: 2020-02-18

Sheet Ranking
J1: Ranking Matriculaciones Embarcaciones Nuevas
J2: Enero-Enero
K3: 2021-02-01
A5: CAPITANIA | C5: Numero Total | G5: CAPITANIA | I5: Lista 6 | J5: 6 ANT | M5: CAPITANIA | O5: Lista 7 | P5: 7 ANT | S5: CAPITANIA | U5: MOTOS
C6: Act | D6: Ant | E6: % Dif. | I6: =+C6 -> Act | J6: =+D6 -> Ant | K6: =+E6 -> % Dif. | O6: =+I6 -> Act | P6: =+J6 -> Ant | Q6: =+K6 -> % Dif. | U6: =+O6 -> Act | V6: =+P6 -> Ant | W6: =+Q6 -> % Dif.
A7: 1 | B7: BARCELONA | C7: 22 | D7: 20 | E7: 0.1 | G7: 1 | H7: PALMA MALLORCA | I7: 6 | J7: 4 | K7: 0.5 | M7: 1 | N7: BARCELONA | O7: 19 | P7: 20 | Q7: -0.05 | S7: 1 | T7: CARTAGENA | U7: 8 | V7: 7 | W7: 0.1428571429
A8: 2 | B8: CASTELLON | C8: 15 | D8: 11 | E8: 0.3636363636 | G8: 2 | H8: A CORUÑA | I8: 4 | J8: 3 | K8: 0.3333333333 | M8: 2 | N8: CASTELLON | O8: 15 | P8: 10 | Q8: 0.5 | S8: 2 | T8: CASTELLON | U8: 6 | V8: 4 | W8: 0.5
A9: 3 | B9: PALMA MALLORCA | C9: 14 | D9: 16 | E9: -0.125 | G9: 3 | H9: BARCELONA | I9: 3 | J9: 0 | M9: 3 | N9: ALICANTE | O9: 11 | P9: 9 | Q9: 0.2222222222 | S9: 3 | T9: A CORUÑA | U9: 5 | V9: 1 | W9: 4
A10: 4 | B10: A CORUÑA | C10: 13 | D10: 10 | E10: 0.3 | G10: 4 | H10: VALENCIA | I10: 2 | J10: 0 | M10: 4 | N10: ALMERIA | O10: 11 | P10: 10 | Q10: 0.1 | S10: 4 | T10: ALMERIA | U10: 3 | V10: 2 | W10: 0.5
A11: 5 | B11: ALICANTE | C11: 12 | D11: 14 | E11: -0.1428571429 | G11: 5 | H11: ALICANTE | I11: 1 | J11: 5 | K11: -0.8 | M11: 5 | N11: ALGECIRAS | O11: 10 | P11: 9 | Q11: 0.1111111111 | S11: 5 | T11: ALICANTE | U11: 2 | V11: 5 | W11: -0.6
A12: 6 | B12: ALMERIA | C12: 11 | D12: 11 | E12: 0 | G12: 6 | H12: CADIZ | I12: 1 | J12: 0 | M12: 6 | N12: CADIZ | O12: 10 | P12: 6 | Q12: 0.6666666667 | S12: 6 | T12: BILBAO | U12: 2 | V12: 4 | W12: -0.5
A13: 7 | B13: CADIZ | C13: 11 | D13: 6 | E13: 0.8333333333 | G13: 7 | H13: CARTAGENA | I13: 1 | J13: 5 | K13: -0.8 | M13: 7 | N13: CARTAGENA | O13: 10 | P13: 9 | Q13: 0.1111111111 | S13: 7 | T13: ALGECIRAS | U13: 1 | V13: 2 | W13: -0.5
A14: 8 | B14: CARTAGENA | C14: 11 | D14: 14 | E14: -0.2142857143 | G14: 8 | H14: HUELVA | I14: 1 | J14: 3 | K14: -0.6666666667 | M14: 8 | N14: A CORUÑA | O14: 9 | P14: 7 | Q14: 0.2857142857 | S14: 8 | T14: BARCELONA | U14: 1 | V14: 1 | W14: 0
A15: 9 | B15: ALGECIRAS | C15: 10 | D15: 10 | E15: 0 | G15: 9 | H15: MALAGA | I15: 1 | J15: 4 | K15: -0.75 | M15: 9 | N15: MALAGA | O15: 8 | P15: 10 | Q15: -0.2 | S15: 9 | T15: CADIZ | U15: 1 | V15: 1 | W15: 0
A16: 10 | B16: MALAGA | C16: 9 | D16: 14 | E16: -0.3571428571 | G16: 10 | H16: MOTRIL | I16: 1 | J16: 0 | M16: 10 | N16: PALMA MALLORCA | O16: 8 | P16: 12 | Q16: -0.3333333333 | S16: 10 | T16: MOTRIL | U16: 1 | V16: 1 | W16: 0
A17: 11 | B17: VALENCIA | C17: 9 | D17: 3 | E17: 2 | G17: 11 | H17: TARRAGONA | I17: 1 | J17: 0 | M17: 11 | N17: SANTANDER | O17: 7 | P17: 8 | Q17: -0.125 | S17: 11 | T17: VALENCIA | U17: 1 | V17: 0
A18: 12 | B18: TARRAGONA | C18: 8 | D18: 4 | E18: 1 | G18: 12 | H18: ALGECIRAS | I18: 0 | J18: 1 | K18: -1 | M18: 12 | N18: TARRAGONA | O18: 7 | P18: 4 | Q18: 0.75 | S18: 12 | T18: VIGO | U18: 1 | V18: 2 | W18: -0.5
A19: 13 | B19: SANTANDER | C19: 7 | D19: 8 | E19: -0.125 | G19: 13 | H19: ALMERIA | I19: 0 | J19: 1 | K19: -1 | M19: 13 | N19: VALENCIA | O19: 7 | P19: 3 | Q19: 1.333333333 | S19: 13 | T19: AVILES | U19: 0 | V19: 0
A20: 14 | B20: BILBAO | C20: 6 | D20: 14 | E20: -0.5714285714 | G20: 14 | H20: AVILES | I20: 0 | J20: 0 | M20: 14 | N20: BILBAO | O20: 6 | P20: 12 | Q20: -0.5 | S20: 14 | T20: GIJON | U20: 0 | V20: 0
A21: 15 | B21: LAS PALMAS | C21: 5 | D21: 11 | E21: -0.5454545455 | G21: 15 | H21: BILBAO | I21: 0 | J21: 2 | K21: -1 | M21: 15 | N21: LAS PALMAS | O21: 5 | P21: 7 | Q21: -0.2857142857 | S21: 15 | T21: HUELVA | U21: 0 | V21: 5 | W21: -1
A22: 16 | B22: VIGO | C22: 4 | D22: 14 | E22: -0.7142857143 | G22: 16 | H22: CASTELLON | I22: 0 | J22: 1 | K22: -1 | M22: 16 | N22: VIGO | O22: 4 | P22: 11 | Q22: -0.6363636364 | S22: 16 | T22: LAS PALMAS | U22: 0 | V22: 0
A23: 17 | B23: AVILES | C23: 2 | D23: 0 | G23: 17 | H23: GIJON | I23: 0 | J23: 0 | M23: 17 | N23: AVILES | O23: 2 | P23: 0 | S23: 17 | T23: LUGO | U23: 0 | V23: 0
A24: 18 | B24: HUELVA | C24: 2 | D24: 10 | E24: -0.8 | G24: 18 | H24: LAS PALMAS | I24: 0 | J24: 4 | K24: -1 | M24: 18 | N24: SANTA CRUZ DE TENERIFE | O24: 2 | P24: 8 | Q24: -0.75 | S24: 18 | T24: MALAGA | U24: 0 | V24: 0
A25: 19 | B25: SANTA CRUZ DE TENERIFE | C25: 2 | D25: 9 | E25: -0.7777777778 | G25: 19 | H25: LUGO | I25: 0 | J25: 0 | M25: 19 | N25: SEVILLA | O25: 2 | P25: 3 | Q25: -0.3333333333 | S25: 19 | T25: MELILLA | U25: 0 | V25: 2 | W25: -1
A26: 20 | B26: SEVILLA | C26: 2 | D26: 3 | E26: -0.3333333333 | G26: 20 | H26: MELILLA | I26: 0 | J26: 0 | M26: 20 | N26: VILAGARCIA DE AROUSA | O26: 2 | P26: 15 | Q26: -0.8666666667 | S26: 20 | T26: PALAMOS | U26: 0 | V26: 0
A27: 21 | B27: VILAGARCIA DE AROUSA | C27: 2 | D27: 15 | E27: -0.8666666667 | G27: 21 | H27: PALAMOS | I27: 0 | J27: 1 | K27: -1 | M27: 21 | N27: GIJON | O27: 1 | P27: 1 | Q27: 0 | S27: 21 | T27: PALMA MALLORCA | U27: 0 | V27: 3 | W27: -1
A28: 22 | B28: GIJON | C28: 1 | D28: 1 | E28: 0 | G28: 22 | H28: PASAJES | I28: 0 | J28: 0 | M28: 22 | N28: HUELVA | O28: 1 | P28: 7 | Q28: -0.8571428571 | S28: 22 | T28: PASAJES | U28: 0 | V28: 0
A29: 23 | B29: LUGO | C29: 1 | D29: 1 | E29: 0 | G29: 23 | H29: SANTA CRUZ DE TENERIFE | I29: 0 | J29: 1 | K29: -1 | M29: 23 | N29: LUGO | O29: 1 | P29: 1 | Q29: 0 | S29: 23 | T29: SANTA CRUZ DE TENERIFE | U29: 0 | V29: 1 | W29: -1
A30: 24 | B30: MELILLA | C30: 1 | D30: 2 | E30: -0.5 | G30: 24 | H30: SANTANDER | I30: 0 | J30: 0 | M30: 24 | N30: MELILLA | O30: 1 | P30: 2 | Q30: -0.5 | S30: 24 | T30: SANTANDER | U30: 0 | V30: 0
A31: 25 | B31: MOTRIL | C31: 1 | D31: 1 | E31: 0 | G31: 25 | H31: SEVILLA | I31: 0 | J31: 0 | M31: 25 | N31: PALAMOS | O31: 1 | P31: 3 | Q31: -0.6666666667 | S31: 25 | T31: SEVILLA | U31: 0 | V31: 0
A32: 26 | B32: PALAMOS | C32: 1 | D32: 4 | E32: -0.75 | G32: 26 | H32: VIGO | I32: 0 | J32: 3 | K32: -1 | M32: 26 | N32: PASAJES | O32: 1 | P32: 0 | S32: 26 | T32: TARRAGONA | U32: 0 | V32: 0
A33: 27 | B33: PASAJES | C33: 1 | D33: 0 | G33: 27 | H33: VILAGARCIA DE AROUSA | I33: 0 | J33: 0 | M33: 27 | N33: MOTRIL | O33: 0 | P33: 1 | Q33: -1 | S33: 27 | T33: VILAGARCIA DE AROUSA | U33: 0 | V33: 2 | W33: -1
A34: 28 | B34: 0 | C34: 0 | D34: 0 | G34: 28 | H34: 0 | I34: 0 | J34: 0 | M34: 28 | N34: 0 | O34: 0 | P34: 0 | S34: 28 | T34: 0 | U34: 0 | V34: 0
A35: 28 | B35: 0 | C35: 0 | D35: 0 | G35: 28 | H35: 0 | I35: 0 | J35: 0 | M35: 28 | N35: 0 | O35: 0 | P35: 0 | S35: 28 | T35: 0 | U35: 0 | V35: 0
A36: 29 | B36: 0 | C36: 0 | D36: 0 | G36: 29 | H36: 0 | I36: 0 | J36: 0 | M36: 29 | N36: 0 | O36: 0 | P36: 0 | S36: 29 | T36: 0 | U36: 0 | V36: 0
A37: 30 | B37: 0 | C37: 0 | D37: 0 | G37: 30 | H37: 0 | I37: 0 | J37: 0 | M37: 30 | N37: 0 | O37: 0 | P37: 0 | S37: 30 | T37: 0 | U37: 0 | V37: 0
A38: 31 | B38: 0 | C38: 0 | D38: 0 | G38: 31 | H38: 0 | I38: 0 | J38: 0 | M38: 31 | N38: 0 | O38: 0 | P38: 0 | S38: 31 | T38: 0 | U38: 0 | V38: 0
C39: =SUM(C7:C38) -> 183 | D39: =SUM(D7:D38) -> 226 | E39: =IF(D39=0,"",C39/D39-1) -> -0.1902654867 | I39: =SUM(I7:I38) -> 22 | J39: =SUM(J7:J38) -> 38 | K39: =IF(J39=0,"",I39/J39-1) -> -0.4210526316 | O39: =SUM(O7:O38) -> 161 | P39: =SUM(P7:P38) -> 188 | Q39: =IF(P39=0,"",O39/P39-1) -> -0.1436170213 | U39: =SUM(U7:U38) -> 32 | V39: =SUM(V7:V38) -> 43 | W39: =IF(V39=0,"",U39/V39-1) -> -0.2558139535
C40: =IF(D39=0,"",C39/D39-1) -> -0.1902654867 | I40: =IF(J39=0,"",I39/J39-1) -> -0.4210526316 | O40: =IF(P39=0,"",O39/P39-1) -> -0.1436170213 | U40: =IF(V39=0,"",U39/V39-1) -> -0.2558139535
A43: CAPITANIA | C43: RIGIDO | D43: Rig ANT | G43: CAPITANIA | I43: SEMIRIGIDO | J43: Semi ANT | M43: CAPITANIA | O43: NEUMATICO | P43: neu ANT | S43: CAPITANIA | U43: VELA | V43: Vela ANT
C44: Act | D44: Ant | E44: % Dif. | I44: =+C44 -> Act | J44: =+D44 -> Ant | K44: =+E44 -> % Dif. | O44: =+I44 -> Act | P44: =+J44 -> Ant | Q44: =+K44 -> % Dif. | U44: =+O44 -> Act | V44: =+P44 -> Ant | W44: =+Q44 -> % Dif.
A45: 1 | B45: BARCELONA | C45: 14 | D45: 14 | E45: 0 | G45: 1 | H45: PALMA MALLORCA | I45: 3 | J45: 6 | K45: -0.5 | M45: 1 | N45: ALGECIRAS | O45: 4 | P45: 1 | Q45: 3 | S45: 1 | T45: BARCELONA | U45: 3 | V45: 2 | W45: 0.5
A46: 2 | B46: PALMA MALLORCA | C46: 10 | D46: 5 | E46: 1 | G46: 2 | H46: ALMERIA | I46: 2 | J46: 3 | K46: -0.3333333333 | M46: 2 | N46: ALMERIA | O46: 3 | P46: 4 | Q46: -0.25 | S46: 2 | T46: CADIZ | U46: 3 | V46: 0
A47: 3 | B47: ALICANTE | C47: 9 | D47: 5 | E47: 0.8 | G47: 3 | H47: BARCELONA | I47: 2 | J47: 1 | K47: 1 | M47: 3 | N47: LAS PALMAS | O47: 3 | P47: 3 | Q47: 0 | S47: 3 | T47: CASTELLON | U47: 3 | V47: 1 | W47: 2
A48: 4 | B48: A CORUÑA | C48: 8 | D48: 7 | E48: 0.1428571429 | G48: 4 | H48: ALGECIRAS | I48: 1 | J48: 3 | K48: -0.6666666667 | M48: 4 | N48: MALAGA | O48: 3 | P48: 3 | Q48: 0 | S48: 4 | T48: ALGECIRAS | U48: 1 | V48: 0
A49: 5 | B49: CASTELLON | C49: 6 | D49: 4 | E49: 0.5 | G49: 5 | H49: CADIZ | I49: 1 | J49: 1 | K49: 0 | M49: 5 | N49: BARCELONA | O49: 2 | P49: 2 | Q49: 0 | S49: 5 | T49: ALICANTE | U49: 1 | V49: 1 | W49: 0
A50: 6 | B50: MALAGA | C50: 6 | D50: 8 | E50: -0.25 | G50: 6 | H50: LAS PALMAS | I50: 1 | J50: 5 | K50: -0.8 | M50: 6 | N50: CADIZ | O50: 2 | P50: 0 | S50: 6 | T50: GIJON | U50: 1 | V50: 0
A51: 7 | B51: VALENCIA | C51: 6 | D51: 2 | E51: 2 | G51: 7 | H51: SANTA CRUZ DE TENERIFE | I51: 1 | J51: 0 | M51: 7 | N51: SANTANDER | O51: 2 | P51: 1 | Q51: 1 | S51: 7 | T51: HUELVA | U51: 1 | V51: 0
A52: 8 | B52: TARRAGONA | C52: 5 | D52: 2 | E52: 1.5 | G52: 8 | H52: SANTANDER | I52: 1 | J52: 1 | K52: 0 | M52: 8 | N52: TARRAGONA | O52: 2 | P52: 1 | Q52: 1 | S52: 8 | T52: PALMA MALLORCA | U52: 1 | V52: 1 | W52: 0
A53: 9 | B53: CADIZ | C53: 4 | D53: 4 | E53: 0 | G53: 9 | H53: VALENCIA | I53: 1 | J53: 0 | M53: 9 | N53: VIGO | O53: 2 | P53: 0 | S53: 9 | T53: TARRAGONA | U53: 1 | V53: 0
A54: 10 | B54: SANTANDER | C54: 4 | D54: 5 | E54: -0.2 | G54: 10 | H54: VILAGARCIA DE AROUSA | I54: 1 | J54: 0 | M54: 10 | N54: BILBAO | O54: 1 | P54: 1 | Q54: 0 | S54: 10 | T54: VALENCIA | U54: 1 | V54: 1 | W54: 0
A55: 11 | B55: ALGECIRAS | C55: 3 | D55: 4 | E55: -0.25 | G55: 11 | H55: A CORUÑA | I55: 0 | J55: 0 | M55: 11 | N55: CARTAGENA | O55: 1 | P55: 2 | Q55: -0.5 | S55: 11 | T55: A CORUÑA | U55: 0 | V55: 2 | W55: -1
A56: 12 | B56: ALMERIA | C56: 3 | D56: 2 | E56: 0.5 | G56: 12 | H56: ALICANTE | I56: 0 | J56: 3 | K56: -1 | M56: 12 | N56: SANTA CRUZ DE TENERIFE | O56: 1 | P56: 2 | Q56: -0.5 | S56: 12 | T56: ALMERIA | U56: 0 | V56: 0
A57: 13 | B57: BILBAO | C57: 3 | D57: 3 | E57: 0 | G57: 13 | H57: AVILES | I57: 0 | J57: 0 | M57: 13 | N57: A CORUÑA | O57: 0 | P57: 0 | S57: 13 | T57: AVILES | U57: 0 | V57: 0
A58: 14 | B58: AVILES | C58: 2 | D58: 0 | G58: 14 | H58: BILBAO | I58: 0 | J58: 2 | K58: -1 | M58: 14 | N58: ALICANTE | O58: 0 | P58: 0 | S58: 14 | T58: BILBAO | U58: 0 | V58: 4 | W58: -1
A59: 15 | B59: CARTAGENA | C59: 2 | D59: 3 | E59: -0.3333333333 | G59: 15 | H59: CARTAGENA | I59: 0 | J59: 1 | K59: -1 | M59: 15 | N59: AVILES | O59: 0 | P59: 0 | S59: 15 | T59: CARTAGENA | U59: 0 | V59: 1 | W59: -1
A60: 16 | B60: SEVILLA | C60: 2 | D60: 3 | E60: -0.3333333333 | G60: 16 | H60: CASTELLON | I60: 0 | J60: 0 | M60: 16 | N60: CASTELLON | O60: 0 | P60: 2 | Q60: -1 | S60: 16 | T60: LAS PALMAS | U60: 0 | V60: 0
A61: 17 | B61: HUELVA | C61: 1 | D61: 0 | G61: 17 | H61: GIJON | I61: 0 | J61: 0 | M61: 17 | N61: GIJON | O61: 0 | P61: 0 | S61: 17 | T61: LUGO | U61: 0 | V61: 0
A62: 18 | B62: LUGO | C62: 1 | D62: 1 | E62: 0 | G62: 18 | H62: HUELVA | I62: 0 | J62: 1 | K62: -1 | M62: 18 | N62: HUELVA | O62: 0 | P62: 4 | Q62: -1 | S62: 18 | T62: MALAGA | U62: 0 | V62: 2 | W62: -1
A63: 19 | B63: MELILLA | C63: 1 | D63: 0 | G63: 19 | H63: LUGO | I63: 0 | J63: 0 | M63: 19 | N63: LUGO | O63: 0 | P63: 0 | S63: 19 | T63: MELILLA | U63: 0 | V63: 0
A64: 20 | B64: PALAMOS | C64: 1 | D64: 2 | E64: -0.5 | G64: 20 | H64: MALAGA | I64: 0 | J64: 1 | K64: -1 | M64: 20 | N64: MELILLA | O64: 0 | P64: 0 | S64: 20 | T64: MOTRIL | U64: 0 | V64: 0
A65: 21 | B65: PASAJES | C65: 1 | D65: 0 | G65: 21 | H65: MELILLA | I65: 0 | J65: 0 | M65: 21 | N65: MOTRIL | O65: 0 | P65: 0 | S65: 21 | T65: PALAMOS | U65: 0 | V65: 0
A66: 22 | B66: VIGO | C66: 1 | D66: 6 | E66: -0.8333333333 | G66: 22 | H66: MOTRIL | I66: 0 | J66: 0 | M66: 22 | N66: PALAMOS | O66: 0 | P66: 2 | Q66: -1 | S66: 22 | T66: PASAJES | U66: 0 | V66: 0
A67: 23 | B67: VILAGARCIA DE AROUSA | C67: 1 | D67: 13 | E67: -0.9230769231 | G67: 23 | H67: PALAMOS | I67: 0 | J67: 0 | M67: 23 | N67: PALMA MALLORCA | O67: 0 | P67: 1 | Q67: -1 | S67: 23 | T67: SANTA CRUZ DE TENERIFE | U67: 0 | V67: 0
A68: 24 | B68: GIJON | C68: 0 | D68: 1 | E68: -1 | G68: 24 | H68: PASAJES | I68: 0 | J68: 0 | M68: 24 | N68: PASAJES | O68: 0 | P68: 0 | S68: 24 | T68: SANTANDER | U68: 0 | V68: 1 | W68: -1
A69: 25 | B69: LAS PALMAS | C69: 0 | D69: 3 | E69: -1 | G69: 25 | H69: SEVILLA | I69: 0 | J69: 0 | M69: 25 | N69: SEVILLA | O69: 0 | P69: 0 | S69: 25 | T69: SEVILLA | U69: 0 | V69: 0
A70: 26 | B70: MOTRIL | C70: 0 | D70: 0 | G70: 26 | H70: TARRAGONA | I70: 0 | J70: 1 | K70: -1 | M70: 26 | N70: VALENCIA | O70: 0 | P70: 0 | S70: 26 | T70: VIGO | U70: 0 | V70: 2 | W70: -1
A71: 27 | B71: SANTA CRUZ DE TENERIFE | C71: 0 | D71: 5 | E71: -1 | G71: 27 | H71: VIGO | I71: 0 | J71: 4 | K71: -1 | M71: 27 | N71: VILAGARCIA DE AROUSA | O71: 0 | P71: 0 | S71: 27 | T71: VILAGARCIA DE AROUSA | U71: 0 | V71: 0
A72: 28 | B72: 0 | C72: 0 | D72: 0 | G72: 28 | H72: 0 | I72: 0 | J72: 0 | M72: 28 | N72: 0 | O72: 0 | P72: 0 | S72: 28 | T72: 0 | U72: 0 | V72: 0
A73: 28 | B73: 0 | C73: 0 | D73: 0 | G73: 28 | H73: 0 | I73: 0 | J73: 0 | M73: 28 | N73: 0 | O73: 0 | P73: 0 | S73: 28 | T73: 0 | U73: 0 | V73: 0
A74: 29 | B74: 0 | C74: 0 | D74: 0 | G74: 29 | H74: 0 | I74: 0 | J74: 0 | M74: 29 | N74: 0 | O74: 0 | P74: 0 | S74: 29 | T74: 0 | U74: 0 | V74: 0
A75: 30 | B75: 0 | C75: 0 | D75: 0 | G75: 30 | H75: 0 | I75: 0 | J75: 0 | M75: 30 | N75: 0 | O75: 0 | P75: 0 | S75: 30 | T75: 0 | U75: 0 | V75: 0
A76: 31 | B76: 0 | C76: 0 | D76: 0 | G76: 31 | H76: 0 | I76: 0 | J76: 0 | M76: 31 | N76: 0 | O76: 0 | P76: 0 | S76: 31 | T76: 0 | U76: 0 | V76: 0
C77: =SUM(C45:C76) -> 94 | D77: =SUM(D45:D76) -> 102 | E77: =IF(D77=0,"",C77/D77-1) -> -0.07843137255 | I77: =SUM(I45:I76) -> 14 | J77: =SUM(J45:J76) -> 33 | K77: =IF(J77=0,"",I77/J77-1) -> -0.5757575758 | O77: =SUM(O45:O76) -> 26 | P77: =SUM(P45:P76) -> 29 | Q77: =IF(P77=0,"",O77/P77-1) -> -0.1034482759 | U77: =SUM(U45:U76) -> 16 | V77: =SUM(V45:V76) -> 18 | W77: =IF(V77=0,"",U77/V77-1) -> -0.1111111111
C78: =IF(D77=0,"",C77/D77-1) -> -0.07843137255 | I78: =IF(J77=0,"",I77/J77-1) -> -0.5757575758 | O78: =IF(P77=0,"",O77/P77-1) -> -0.1034482759 | U78: =IF(V77=0,"",U77/V77-1) -> -0.1111111111

Sheet Hoja3 (hidden)
A1: CAPITANIA | B1: Numero Total | C1: <03 | D1: <03,5 | E1: <04 | F1: <04,5 | G1: <05 | H1: <06 | I1: <08 | J1: <12 | K1: <15 | L1: <20 | M1: <24 | N1: >=24 | O1: MOTOS | P1: Misma Provincia | Q1: Diferente Provincia | R1: Lista 6 | S1: Lista 7 | T1: RIGIDO | U1: SEMIRIGIDO | V1: NEUMATICO | W1: Sin Datos | X1: VELA | Y1: Total ANT | Z1: 03 ANT | AA1: 035 ANT | AB1: 04 ANT | AC1: 045 ANT | AD1: 05 ANT | AE1: 06 ANT | AF1: 075 ANT | AG1: 12 ANT | AH1: 15 ANT | AI1: 20 ANT | AJ1: 24 ANT | AK1: >24 ANT | AL1: Motos ANT | AM1: Misma ANT | AN1: Dif ANT | AO1: 6 ANT | AP1: 7 ANT | AQ1: Rig ANT | AR1: Semi ANT | AS1: neu ANT | AT1: sd ANT | AU1: Vela ANT
A2: A CORUÑA | B2: 10 | H2: 1 | I2: 3 | J2: 5 | O2: 1 | P2: 2 | Q2: 8 | R2: 3 | S2: 7 | T2: 7 | U2: 0 | V2: 0 | W2: 0 | X2: 2 | Y2: 7 | AD2: 2 | AE2: 4 | AG2: 1 | AM2: 2 | AN2: 5 | AO2: 0 | AP2: 7 | AQ2: 5 | AR2: 1 | AS2: 0 | AT2: 0 | AU2: 1
A3: ALGECIRAS | B3: 10 | D3: 1 | G3: 1 | H3: 1 | I3: 4 | L3: 1 | O3: 2 | P3: 1 | Q3: 9 | R3: 1 | S3: 9 | T3: 4 | U3: 3 | V3: 1 | W3: 0 | X3: 0 | Y3: 7 | AB3: 2 | AC3: 1 | AD3: 1 | AF3: 2 | AH3: 1 | AM3: 3 | AN3: 4 | AO3: 0 | AP3: 7 | AQ3: 3 | AR3: 2 | AS3: 2 | AT3: 0 | AU3: 0
A4: ALICANTE | B4: 14 | C4: 1 | H4: 6 | I4: 2 | O4: 5 | P4: 7 | Q4: 7 | R4: 5 | S4: 9 | T4: 5 | U4: 3 | V4: 0 | W4: 0 | X4: 1 | Y4: 24 | Z4: 1 | AA4: 3 | AC4: 1 | AD4: 1 | AE4: 9 | AF4: 3 | AG4: 1 | AL4: 5 | AM4: 14 | AN4: 10 | AO4: 0 | AP4: 24 | AQ4: 12 | AR4: 2 | AS4: 3 | AT4: 0 | AU4: 2
A5: ALMERIA | B5: 11 | C5: 3 | D5: 1 | G5: 1 | H5: 3 | I5: 1 | O5: 2 | P5: 6 | Q5: 5 | R5: 1 | S5: 10 | T5: 2 | U5: 3 | V5: 4 | W5: 0 | X5: 0 | Y5: 8 | AA5: 1 | AB5: 1 | AD5: 1 | AF5: 4 | AL5: 1 | AM5: 3 | AN5: 5 | AO5: 0 | AP5: 8 | AQ5: 5 | AR5: 0 | AS5: 2 | AT5: 0 | AU5: 0
A6: AVILES | Y6: 1 | AE6: 1 | AM6: 1 | AO6: 0 | AP6: 1 | AQ6: 0 | AR6: 0 | AS6: 0 | AT6: 1 | AU6: 0
A7: BARCELONA | B7: 20 | D7: 1 | E7: 1 | H7: 3 | I7: 8 | J7: 5 | K7: 1 | O7: 1 | P7: 11 | Q7: 9 | R7: 0 | S7: 20 | T7: 14 | U7: 1 | V7: 2 | W7: 0 | X7: 2 | Y7: 15 | AA7: 1 | AC7: 1 | AD7: 1 | AE7: 3 | AF7: 2 | AG7: 4 | AH7: 1 | AI7: 1 | AL7: 1 | AM7: 8 | AN7: 7 | AO7: 3 | AP7: 12 | AQ7: 9 | AR7: 1 | AS7: 3 | AT7: 0 | AU7: 1
A8: BILBAO | B8: 14 | D8: 3 | G8: 1 | H8: 1 | I8: 1 | J8: 4 | O8: 4 | P8: 5 | Q8: 9 | R8: 2 | S8: 12 | T8: 3 | U8: 2 | V8: 1 | W8: 0 | X8: 4 | Y8: 13 | AE8: 4 | AF8: 1 | AH8: 3 | AL8: 5 | AM8: 2 | AN8: 11 | AO8: 0 | AP8: 13 | AQ8: 5 | AR8: 2 | AS8: 0 | AT8: 0 | AU8: 1
A9: CADIZ | B9: 6 | F9: 1 | G9: 2 | H9: 1 | I9: 1 | O9: 1 | P9: 4 | Q9: 2 | R9: 0 | S9: 6 | T9: 4 | U9: 1 | V9: 0 | W9: 0 | X9: 0 | Y9: 11 | Z9: 1 | AA9: 1 | AC9: 4 | AE9: 3 | AF9: 1 | AL9: 1 | AM9: 6 | AN9: 5 | AO9: 0 | AP9: 11 | AQ9: 4 | AR9: 4 | AS9: 2 | AT9: 0 | AU9: 0
A10: CARTAGENA | B10: 14 | C10: 1 | D10: 1 | F10: 1 | G10: 1 | H10: 2 | J10: 1 | O10: 7 | P10: 9 | Q10: 5 | R10: 5 | S10: 9 | T10: 3 | U10: 1 | V10: 2 | W10: 0 | X10: 1 | Y10: 10 | Z10: 1 | AA10: 2 | AB10: 3 | AC10: 2 | AF10: 1 | AL10: 1 | AM10: 7 | AN10: 3 | AO10: 0 | AP10: 10 | AQ10: 4 | AR10: 1 | AS10: 4 | AT10: 0 | AU10: 0
A11: CASTELLON | B11: 11 | C11: 1 | D11: 1 | F11: 1 | H11: 1 | I11: 2 | J11: 1 | O11: 4 | P11: 3 | Q11: 8 | R11: 1 | S11: 10 | T11: 4 | U11: 0 | V11: 2 | W11: 0 | X11: 1 | Y11: 1 | AF11: 1 | AN11: 1 | AO11: 0 | AP11: 1 | AQ11: 1 | AR11: 0 | AS11: 0 | AT11: 0 | AU11: 0
A12: GIJON | B12: 1 | H12: 1 | Q12: 1 | R12: 0 | S12: 1 | T12: 1 | U12: 0 | V12: 0 | W12: 0 | X12: 0 | Y12: 4 | AC12: 1 | AE12: 1 | AF12: 2 | AM12: 1 | AN12: 3 | AO12: 0 | AP12: 4 | AQ12: 3 | AR12: 1 | AS12: 0 | AT12: 0 | AU12: 0
A13: HUELVA | B13: 10 | C13: 1 | E13: 3 | F13: 1 | O13: 5 | P13: 9 | Q13: 1 | R13: 3 | S13: 7 | T13: 0 | U13: 1 | V13: 4 | W13: 0 | X13: 0 | Y13: 2 | AA13: 1 | AL13: 1 | AM13: 2 | AO13: 0 | AP13: 2 | AQ13: 1 | AR13: 0 | AS13: 0 | AT13: 0 | AU13: 0
A14: LAS PALMAS | B14: 11 | D14: 1 | E14: 6 | F14: 1 | H14: 1 | J14: 1 | K14: 1 | P14: 11 | R14: 4 | S14: 7 | T14: 3 | U14: 5 | V14: 3 | W14: 0 | X14: 0 | Y14: 8 | Z14: 1 | AA14: 4 | AD14: 2 | AF14: 1 | AM14: 8 | AO14: 1 | AP14: 7 | AQ14: 2 | AR14: 0 | AS14: 6 | AT14: 0 | AU14: 0
A15: LUGO | B15: 1 | H15: 1 | Q15: 1 | R15: 0 | S15: 1 | T15: 1 | U15: 0 | V15: 0 | W15: 0 | X15: 0 | Y15: 1 | AC15: 1 | AN15: 1 | AO15: 0 | AP15: 1 | AQ15: 1 | AR15: 0 | AS15: 0 | AT15: 0 | AU15: 0
A16: MALAGA | B16: 14 | D16: 4 | E16: 3 | F16: 1 | H16: 4 | I16: 1 | J16: 1 | P16: 11 | Q16: 3 | R16: 4 | S16: 10 | T16: 8 | U16: 1 | V16: 3 | W16: 0 | X16: 2 | Y16: 6 | AA16: 2 | AI16: 1 | AL16: 3 | AM16: 4 | AN16: 2 | AO16: 0 | AP16: 6 | AQ16: 1 | AR16: 1 | AS16: 1 | AT16: 0 | AU16: 0
A17: MELILLA | B17: 2 | O17: 2 | P17: 2 | R17: 0 | S17: 2 | T17: 0 | U17: 0 | V17: 0 | W17: 0 | X17: 0 | Y17: 1 | AL17: 1 | AM17: 1 | AO17: 0 | AP17: 1 | AQ17: 0 | AR17: 0 | AS17: 0 | AT17: 0 | AU17: 0
A18: MOTRIL | B18: 1 | O18: 1 | P18: 1 | R18: 0 | S18: 1 | T18: 0 | U18: 0 | V18: 0 | W18: 0 | X18: 0 | Y18: 6 | AB18: 2 | AL18: 4 | AM18: 4 | AN18: 2 | AO18: 0 | AP18: 6 | AQ18: 0 | AR18: 0 | AS18: 2 | AT18: 0 | AU18: 0
A19: PALAMOS | B19: 4 | C19: 2 | I19: 1 | K19: 1 | P19: 2 | Q19: 2 | R19: 1 | S19: 3 | T19: 2 | U19: 0 | V19: 2 | W19: 0 | X19: 0 | Y19: 5 | AB19: 1 | AD19: 1 | AF19: 3 | AM19: 3 | AN19: 2 | AO19: 2 | AP19: 3 | AQ19: 4 | AR19: 0 | AS19: 1 | AT19: 0 | AU19: 0
A20: PALMA MALLORCA | B20: 16 | D20: 1 | E20: 1 | H20: 5 | I20: 4 | J20: 2 | O20: 3 | P20: 13 | Q20: 3 | R20: 3 | S20: 13 | T20: 5 | U20: 6 | V20: 1 | W20: 0 | X20: 1 | Y20: 21 | AB20: 1 | AC20: 3 | AD20: 1 | AE20: 5 | AF20: 4 | AG20: 3 | AH20: 2 | AI20: 1 | AL20: 1 | AM20: 16 | AN20: 5 | AO20: 2 | AP20: 19 | AQ20: 14 | AR20: 3 | AS20: 0 | AT20: 0 | AU20: 3
A21: PASAJES | Y21: 1 | AB21: 1 | AN21: 1 | AO21: 0 | AP21: 1 | AQ21: 0 | AR21: 1 | AS21: 0 | AT21: 0 | AU21: 0
A22: SANTA CRUZ DE TENERIFE | B22: 9 | D22: 1 | E22: 1 | G22: 1 | H22: 3 | I22: 2 | O22: 1 | P22: 6 | Q22: 3 | R22: 1 | S22: 8 | T22: 5 | U22: 0 | V22: 2 | W22: 1 | X22: 0 | Y22: 2 | AC22: 1 | AG22: 1 | AM22: 1 | AN22: 1 | AO22: 2 | AP22: 0 | AQ22: 2 | AR22: 0 | AS22: 0 | AT22: 0 | AU22: 0
A23: SANTANDER | B23: 8 | D23: 1 | F23: 1 | G23: 1 | H23: 2 | I23: 2 | J23: 1 | P23: 6 | Q23: 2 | R23: 0 | S23: 8 | T23: 5 | U23: 1 | V23: 1 | W23: 0 | X23: 1 | Y23: 1 | AE23: 1 | AM23: 1 | AO23: 0 | AP23: 1 | AQ23: 1 | AR23: 0 | AS23: 0 | AT23: 0 | AU23: 0
A24: SEVILLA | B24: 3 | G24: 1 | H24: 1 | I24: 1 | P24: 1 | Q24: 2 | R24: 0 | S24: 3 | T24: 3 | U24: 0 | V24: 0 | W24: 0 | X24: 0 | Y24: 9 | Z24: 1 | AA24: 2 | AB24: 1 | AC24: 2 | AE24: 1 | AF24: 1 | AG24: 1 | AM24: 5 | AN24: 4 | AO24: 1 | AP24: 8 | AQ24: 2 | AR24: 2 | AS24: 5 | AT24: 0 | AU24: 0
A25: TARRAGONA | B25: 4 | C25: 1 | E25: 2 | K25: 1 | P25: 2 | Q25: 2 | R25: 0 | S25: 4 | T25: 2 | U25: 1 | V25: 1 | W25: 0 | X25: 0 | Y25: 4 | AE25: 1 | AF25: 2 | AH25: 1 | AM25: 2 | AN25: 2 | AO25: 0 | AP25: 4 | AQ25: 4 | AR25: 0 | AS25: 0 | AT25: 0 | AU25: 0
A26: VALENCIA | B26: 3 | H26: 1 | I26: 1 | J26: 1 | P26: 2 | Q26: 1 | R26: 0 | S26: 3 | T26: 2 | U26: 0 | V26: 0 | W26: 0 | X26: 1 | Y26: 6 | Z26: 1 | AB26: 1 | AD26: 1 | AE26: 1 | AG26: 1 | AH26: 1 | AM26: 5 | AN26: 1 | AO26: 0 | AP26: 6 | AQ26: 3 | AR26: 0 | AS26: 1 | AT26: 0 | AU26: 2
A27: VIGO | B27: 14 | E27: 1 | G27: 2 | H27: 3 | I27: 4 | J27: 1 | K27: 1 | O27: 2 | P27: 8 | Q27: 6 | R27: 3 | S27: 11 | T27: 6 | U27: 4 | V27: 0 | W27: 0 | X27: 2 | Y27: 6 | AE27: 2 | AF27: 1 | AG27: 1 | AH27: 1 | AL27: 1 | AM27: 3 | AN27: 3 | AO27: 0 | AP27: 6 | AQ27: 3 | AR27: 1 | AS27: 0 | AT27: 0 | AU27: 1
A28: VILAGARCIA DE AROUSA | B28: 15 | F28: 3 | G28: 3 | H28: 6 | I28: 1 | O28: 2 | P28: 3 | Q28: 12 | R28: 0 | S28: 15 | T28: 13 | U28: 0 | V28: 0 | W28: 0 | X28: 0 | Y28: 12 | AA28: 1 | AB28: 7 | AC28: 1 | AE28: 1 | AL28: 2 | AM28: 2 | AN28: 10 | AO28: 0 | AP28: 12 | AQ28: 10 | AR28: 0 | AS28: 0 | AT28: 0 | AU28: 0

Sheet Hoja5 (hidden)
A1: ASTILLERO | B1: Numero Total | C1: <03 | D1: <03,5 | E1: <04 | F1: <04,5 | G1: <05 | H1: <06 | I1: <08 | J1: <12 | K1: <15 | L1: <20 | M1: <24 | N1: >=24 | O1: MOTOS | P1: Misma Provincia | Q1: Diferente Provincia | R1: Lista 6 | S1: Lista 7 | T1: RIGIDO | U1: SEMIRIGIDO | V1: NEUMATICO | W1: Sin Datos | X1: VELA | Y1: SumaDeTotal ANT | Z1: SumaDe03 ANT | AA1: SumaDe035 ANT | AB1: SumaDe04 ANT | AC1: SumaDe045 ANT | AD1: SumaDe05 ANT | AE1: SumaDe06 ANT | AF1: SumaDe08 ANT | AG1: SumaDe12 ANT | AH1: SumaDe15 ANT | AI1: SumaDe20 ANT | AJ1: SumaDe24 ANT | AK1: SumaDe>24 ANT | AL1: SumaDeMotos ANT | AM1: SumaDeMisma ANT | AN1: SumaDeDif ANT | AO1: SumaDe6 ANT | AP1: SumaDe7 ANT | AQ1: SumaDeRig ANT | AR1: SumaDeSemi ANT | AS1: SumaDeneu ANT | AT1: SumaDesd ANT | AU1: SumaDeVela ANT
A2: BOMBARDIER | B2: 36 | O2: 36 | P2: 19 | Q2: 17 | R2: 10 | S2: 26 | T2: 0 | U2: 0 | V2: 0 | W2: 0 | X2: 0 | Y2: 17 | AL2: 17 | AM2: 11 | AN2: 6 | AO2: 0 | AP2: 17 | AQ2: 0 | AR2: 0 | AS2: 0 | AT2: 0 | AU2: 0
A3: JEANNEAU | B3: 13 | H3: 3 | I3: 7 | J3: 3 | P3: 4 | Q3: 9 | R3: 0 | S3: 13 | T3: 11 | U3: 0 | V3: 0 | W3: 0 | X3: 2 | Y3: 8 | AF3: 4 | AG3: 1 | AH3: 2 | AI3: 1 | AM3: 2 | AN3: 6 | AO3: 1 | AP3: 7 | AQ3: 7 | AR3: 0 | AS3: 0 | AT3: 0 | AU3: 1
A4: QUICKSILVER | B4: 13 | C4: 1 | D4: 1 | E4: 1 | G4: 1 | H4: 4 | I4: 5 | P4: 7 | Q4: 6 | R4: 1 | S4: 12 | T4: 10 | U4: 0 | V4: 3 | W4: 0 | X4: 0 | Y4: 15 | AC4: 1 | AD4: 4 | AE4: 4 | AF4: 6 | AM4: 5 | AN4: 10 | AO4: 0 | AP4: 15 | AQ4: 15 | AR4: 0 | AS4: 0 | AT4: 0 | AU4: 0
A5: ASTIXANO | B5: 11 | F5: 2 | G5: 2 | H5: 6 | I5: 1 | P5: 2 | Q5: 9 | R5: 0 | S5: 11 | T5: 11 | U5: 0 | V5: 0 | W5: 0 | X5: 0 | Y5: 10 | AA5: 1 | AB5: 7 | AC5: 1 | AE5: 1 | AN5: 10 | AO5: 0 | AP5: 10 | AQ5: 10 | AR5: 0 | AS5: 0 | AT5: 0 | AU5: 0
A6: DIPOL | B6: 9 | E6: 2 | F6: 2 | H6: 5 | P6: 7 | Q6: 2 | R6: 2 | S6: 7 | T6: 9 | U6: 0 | V6: 0 | W6: 0 | X6: 0 | Y6: 2 | AC6: 1 | AE6: 1 | AM6: 2 | AO6: 0 | AP6: 2 | AQ6: 2 | AR6: 0 | AS6: 0 | AT6: 0 | AU6: 0
A7: BENETEAU | B7: 7 | I7: 5 | J7: 1 | K7: 1 | P7: 2 | Q7: 5 | R7: 0 | S7: 7 | T7: 4 | U7: 0 | V7: 0 | W7: 0 | X7: 3 | Y7: 8 | AF7: 3 | AG7: 1 | AH7: 4 | AM7: 5 | AN7: 3 | AO7: 1 | AP7: 7 | AQ7: 4 | AR7: 0 | AS7: 0 | AT7: 0 | AU7: 4
A8: SIN DATOS | B8: 7 | E8: 1 | F8: 2 | H8: 1 | I8: 1 | J8: 1 | K8: 1 | P8: 4 | Q8: 3 | R8: 1 | S8: 6 | T8: 3 | U8: 1 | V8: 0 | W8: 1 | X8: 2 | Y8: 4 | AB8: 1 | AF8: 1 | AG8: 1 | AH8: 1 | AM8: 3 | AN8: 1 | AO8: 1 | AP8: 3 | AQ8: 3 | AR8: 0 | AS8: 0 | AT8: 0 | AU8: 1
A9: YAMAHA | B9: 7 | O9: 7 | P9: 5 | Q9: 2 | R9: 2 | S9: 5 | T9: 0 | U9: 0 | V9: 0 | W9: 0 | X9: 0 | Y9: 9 | AL9: 9 | AM9: 6 | AN9: 3 | AO9: 2 | AP9: 7 | AQ9: 0 | AR9: 0 | AS9: 0 | AT9: 0 | AU9: 0
A10: OZEAM | B10: 6 | C10: 3 | D10: 3 | P10: 4 | Q10: 2 | R10: 0 | S10: 6 | T10: 0 | U10: 0 | V10: 6 | W10: 0 | X10: 0 | Y10: 3 | AA10: 3 | AM10: 3 | AO10: 0 | AP10: 3 | AQ10: 0 | AR10: 0 | AS10: 3 | AT10: 0 | AU10: 0
A11: ZODIAC | B11: 6 | D11: 2 | E11: 1 | F11: 1 | H11: 1 | I11: 1 | P11: 2 | Q11: 4 | R11: 0 | S11: 6 | T11: 0 | U11: 4 | V11: 2 | W11: 0 | X11: 0 | Y11: 6 | Z11: 1 | AA11: 2 | AB11: 1 | AC11: 1 | AE11: 1 | AM11: 3 | AN11: 3 | AO11: 0 | AP11: 6 | AQ11: 0 | AR11: 4 | AS11: 2 | AT11: 0 | AU11: 0
A12: COBRA INFLABLE | B12: 5 | C12: 1 | E12: 3 | H12: 1 | P12: 4 | Q12: 1 | R12: 3 | S12: 2 | T12: 0 | U12: 1 | V12: 4 | W12: 0 | X12: 0 | Y12: 1 | AE12: 1 | AN12: 1 | AO12: 0 | AP12: 1 | AQ12: 0 | AR12: 1 | AS12: 0 | AT12: 0 | AU12: 0
A13: HONDA HONWAVE | B13: 4 | C13: 1 | D13: 1 | E13: 2 | P13: 4 | R13: 0 | S13: 4 | T13: 0 | U13: 0 | V13: 4 | W13: 0 | X13: 0 | Y13: 1 | AB13: 1 | AN13: 1 | AO13: 0 | AP13: 1 | AQ13: 0 | AR13: 0 | AS13: 1 | AT13: 0 | AU13: 0
A14: BAVARIA | B14: 3 | J14: 3 | P14: 2 | Q14: 1 | R14: 2 | S14: 1 | T14: 2 | U14: 0 | V14: 0 | W14: 0 | X14: 1 | Y14: 1 | AG14: 1 | AM14: 1 | AO14: 0 | AP14: 1 | AQ14: 1 | AR14: 0 | AS14: 0 | AT14: 0 | AU14: 0
A15: J BOATS | B15: 3 | J15: 3 | P15: 1 | Q15: 2 | R15: 1 | S15: 2 | T15: 0 | U15: 0 | V15: 0 | W15: 0 | X15: 3
A16: SEA RIB´S | B16: 3 | F16: 1 | H16: 2 | P16: 2 | Q16: 1 | R16: 1 | S16: 2 | T16: 0 | U16: 3 | V16: 0 | W16: 0 | X16: 0 | Y16: 1 | AE16: 1 | AM16: 1 | AO16: 0 | AP16: 1 | AQ16: 0 | AR16: 1 | AS16: 0 | AT16: 0 | AU16: 0
A17: AGF | B17: 2 | G17: 1 | I17: 1 | P17: 1 | Q17: 1 | R17: 0 | S17: 2 | T17: 2 | U17: 0 | V17: 0 | W17: 0 | X17: 0 | Y17: 1 | AE17: 1 | AN17: 1 | AO17: 0 | AP17: 1 | AQ17: 1 | AR17: 0 | AS17: 0 | AT17: 0 | AU17: 0
A18: APEX INFLATABLES | B18: 2 | E18: 2 | P18: 2 | R18: 0 | S18: 2 | T18: 0 | U18: 2 | V18: 0 | W18: 0 | X18: 0
A19: ASTEC | B19: 2 | E19: 1 | I19: 1 | P19: 1 | Q19: 1 | R19: 0 | S19: 2 | T19: 1 | U19: 1 | V19: 0 | W19: 0 | X19: 0
A20: AZIMUT | B20: 2 | K20: 1 | L20: 1 | P20: 1 | Q20: 1 | R20: 0 | S20: 2 | T20: 2 | U20: 0 | V20: 0 | W20: 0 | X20: 0
A21: BAYLINER | B21: 2 | H21: 2 | P21: 1 | Q21: 1 | R21: 0 | S21: 2 | T21: 2 | U21: 0 | V21: 0 | W21: 0 | X21: 0 | Y21: 5 | AD21: 1 | AE21: 3 | AF21: 1 | AM21: 1 | AN21: 4 | AO21: 0 | AP21: 5 | AQ21: 5 | AR21: 0 | AS21: 0 | AT21: 0 | AU21: 0
A22: BOMBARD | B22: 2 | H22: 2 | P22: 1 | Q22: 1 | R22: 1 | S22: 1 | T22: 0 | U22: 2 | V22: 0 | W22: 0 | X22: 0
A23: CANTIERI CAPELLI | B23: 2 | I23: 1 | J23: 1 | P23: 2 | R23: 1 | S23: 1 | T23: 0 | U23: 2 | V23: 0 | W23: 0 | X23: 0 | Y23: 1 | AG23: 1 | AN23: 1 | AO23: 0 | AP23: 1 | AQ23: 0 | AR23: 1 | AS23: 0 | AT23: 0 | AU23: 0
A24: GOLDEN SHIP | B24: 2 | G24: 1 | H24: 1 | P24: 1 | Q24: 1 | R24: 0 | S24: 2 | T24: 0 | U24: 1 | V24: 1 | W24: 0 | X24: 0
A25: INVICTUS | B25: 2 | H25: 1 | I25: 1 | P25: 1 | Q25: 1 | R25: 2 | S25: 0 | T25: 2 | U25: 0 | V25: 0 | W25: 0 | X25: 0
A26: LOMAC | B26: 2 | E26: 2 | P26: 2 | R26: 2 | S26: 0 | T26: 0 | U26: 2 | V26: 0 | W26: 0 | X26: 0 | Y26: 1 | AB26: 1 | AN26: 1 | AO26: 0 | AP26: 1 | AQ26: 0 | AR26: 1 | AS26: 0 | AT26: 0 | AU26: 0
A27: OBE & CARMEN | B27: 2 | G27: 1 | I27: 1 | P27: 1 | Q27: 1 | R27: 0 | S27: 2 | T27: 2 | U27: 0 | V27: 0 | W27: 0 | X27: 0
A28: OKI BOATS | B28: 2 | H28: 2 | P28: 1 | Q28: 1 | R28: 0 | S28: 2 | T28: 2 | U28: 0 | V28: 0 | W28: 0 | X28: 0 | Y28: 1 | AE28: 1 | AM28: 1 | AO28: 0 | AP28: 1 | AQ28: 1 | AR28: 0 | AS28: 0 | AT28: 0 | AU28: 0
A29: PROTENDER | B29: 2 | C29: 1 | D29: 1 | P29: 2 | R29: 0 | S29: 2 | T29: 0 | U29: 0 | V29: 2 | W29: 0 | X29: 0
A30: WILLIAMS MARINE | B30: 2 | D30: 2 | P30: 1 | Q30: 1 | R30: 0 | S30: 2 | T30: 0 | U30: 2 | V30: 0 | W30: 0 | X30: 0
A31: ACHA | B31: 1 | J31: 1 | Q31: 1 | R31: 1 | S31: 0 | T31: 1 | U31: 0 | V31: 0 | W31: 0 | X31: 0
A32: ALLEGRA | B32: 1 | H32: 1 | P32: 1 | R32: 1 | S32: 0 | T32: 1 | U32: 0 | V32: 0 | W32: 0 | X32: 0
A33: AMANAY | B33: 1 | F33: 1 | P33: 1 | R33: 0 | S33: 1 | T33: 0 | U33: 1 | V33: 0 | W33: 0 | X33: 0
A34: ASTILLEROS HAZ | B34: 1 | H34: 1 | Q34: 1 | R34: 0 | S34: 1 | T34: 1 | U34: 0 | V34: 0 | W34: 0 | X34: 0 | Y34: 1 | AD34: 1 | AN34: 1 | AO34: 0 | AP34: 1 | AQ34: 1 | AR34: 0 | AS34: 0 | AT34: 0 | AU34: 0
A35: ASTILUX | B35: 1 | H35: 1 | P35: 1 | R35: 0 | S35: 1 | T35: 1 | U35: 0 | V35: 0 | W35: 0 | X35: 0
A36: B2 MARINE | B36: 1 | H36: 1 | P36: 1 | R36: 0 | S36: 1 | T36: 1 | U36: 0 | V36: 0 | W36: 0 | X36: 0
A37: BOSTON WHALER | B37: 1 | J37: 1 | P37: 1 | R37: 0 | S37: 1 | T37: 1 | U37: 0 | V37: 0 | W37: 0 | X37: 0
A38: BWA | B38: 1 | H38: 1 | Q38: 1 | R38: 0 | S38: 1 | T38: 0 | U38: 1 | V38: 0 | W38: 0 | X38: 0 | Y38: 1 | AE38: 1 | AN38: 1 | AO38: 0 | AP38: 1 | AQ38: 0 | AR38: 1 | AS38: 0 | AT38: 0 | AU38: 0
A39: CEREIXO | B39: 1 | H39: 1 | P39: 1 | R39: 0 | S39: 1 | T39: 1 | U39: 0 | V39: 0 | W39: 0 | X39: 0
A40: CHAPARRAL | B40: 1 | I40: 1 | Q40: 1 | R40: 0 | S40: 1 | T40: 1 | U40: 0 | V40: 0 | W40: 0 | X40: 0
A41: CRANCHI | B41: 1 | J41: 1 | P41: 1 | R41: 0 | S41: 1 | T41: 1 | U41: 0 | V41: 0 | W41: 0 | X41: 0 | Y41: 1 | AG41: 1 | AN41: 1 | AO41: 0 | AP41: 1 | AQ41: 1 | AR41: 0 | AS41: 0 | AT41: 0 | AU41: 0
A42: DAGANZ | B42: 1 | G42: 1 | P42: 1 | R42: 0 | S42: 1 | T42: 1 | U42: 0 | V42: 0 | W42: 0 | X42: 0
A43: DUFOUR | B43: 1 | J43: 1 | P43: 1 | R43: 0 | S43: 1 | T43: 0 | U43: 0 | V43: 0 | W43: 0 | X43: 1
A44: DUROMAR | B44: 1 | D44: 1 | P44: 1 | R44: 0 | S44: 1 | T44: 0 | U44: 0 | V44: 1 | W44: 0 | X44: 0
A45: EOLO | B45: 1 | H45: 1 | Q45: 1 | R45: 0 | S45: 1 | T45: 1 | U45: 0 | V45: 0 | W45: 0 | X45: 0
A46: FAETON | B46: 1 | I46: 1 | Q46: 1 | R46: 0 | S46: 1 | T46: 1 | U46: 0 | V46: 0 | W46: 0 | X46: 0
A47: FIBRAMAR | B47: 1 | I47: 1 | P47: 1 | R47: 0 | S47: 1 | T47: 1 | U47: 0 | V47: 0 | W47: 0 | X47: 0
A48: FOUR WINNS | B48: 1 | H48: 1 | Q48: 1 | R48: 0 | S48: 1 | T48: 1 | U48: 0 | V48: 0 | W48: 0 | X48: 0 | Y48: 1 | AF48: 1 | AM48: 1 | AO48: 0 | AP48: 1 | AQ48: 1 | AR48: 0 | AS48: 0 | AT48: 0 | AU48: 0
A49: GENESIS | B49: 1 | C49: 1 | P49: 1 | R49: 0 | S49: 1 | T49: 0 | U49: 1 | V49: 0 | W49: 0 | X49: 0
A50: GIRBAU | B50: 1 | I50: 1 | Q50: 1 | R50: 0 | S50: 1 | T50: 1 | U50: 0 | V50: 0 | W50: 0 | X50: 0
A51: GRAUVELL | B51: 1 | D51: 1 | P51: 1 | R51: 0 | S51: 1 | T51: 0 | U51: 0 | V51: 1 | W51: 0 | X51: 0 | Y51: 1 | AC51: 1 | AM51: 1 | AO51: 0 | AP51: 1 | AQ51: 0 | AR51: 0 | AS51: 1 | AT51: 0 | AU51: 0
A52: GROSTAR | B52: 1 | I52: 1 | Q52: 1 | R52: 0 | S52: 1 | T52: 1 | U52: 0 | V52: 0 | W52: 0 | X52: 0
A53: HALLBERG RASSY | B53: 1 | J53: 1 | P53: 1 | R53: 0 | S53: 1 | T53: 0 | U53: 0 | V53: 0 | W53: 0 | X53: 1
A54: HARMONY | B54: 1 | K54: 1 | P54: 1 | R54: 1 | S54: 0 | T54: 1 | U54: 0 | V54: 0 | W54: 0 | X54: 0
A55: JACKSON KAYAK | B55: 1 | G55: 1 | P55: 1 | R55: 0 | S55: 1 | T55: 1 | U55: 0 | V55: 0 | W55: 0 | X55: 0
A56: JAGO | B56: 1 | D56: 1 | P56: 1 | R56: 0 | S56: 1 | T56: 0 | U56: 0 | V56: 1 | W56: 0 | X56: 0
A57: JOUET | B57: 1 | J57: 1 | P57: 1 | R57: 0 | S57: 1 | T57: 0 | U57: 0 | V57: 0 | W57: 0 | X57: 1
A58: KARNIC | B58: 1 | H58: 1 | P58: 1 | R58: 0 | S58: 1 | T58: 1 | U58: 0 | V58: 0 | W58: 0 | X58: 0
A59: KIMPLE | B59: 1 | G59: 1 | Q59: 1 | R59: 0 | S59: 1 | T59: 1 | U59: 0 | V59: 0 | W59: 0 | X59: 0
A60: KYBIN | B60: 1 | D60: 1 | Q60: 1 | R60: 0 | S60: 1 | T60: 0 | U60: 0 | V60: 1 | W60: 0 | X60: 0 | Y60: 1 | Z60: 1 | AM60: 1 | AO60: 0 | AP60: 1 | AQ60: 0 | AR60: 0 | AS60: 1 | AT60: 0 | AU60: 0
A61: LA NORIA | B61: 1 | D61: 1 | P61: 1 | R61: 0 | S61: 1 | T61: 1 | U61: 0 | V61: 0 | W61: 0 | X61: 0
A62: LAGOON | B62: 1 | J62: 1 | Q62: 1 | R62: 1 | S62: 0 | T62: 1 | U62: 0 | V62: 0 | W62: 0 | X62: 0
A63: LEMA | B63: 1 | I63: 1 | Q63: 1 | R63: 0 | S63: 1 | T63: 1 | U63: 0 | V63: 0 | W63: 0 | X63: 0 | Y63: 1 | AE63: 1 | AN63: 1 | AO63: 0 | AP63: 1 | AQ63: 1 | AR63: 0 | AS63: 0 | AT63: 0 | AU63: 0
A64: LODESTAR | B64: 1 | G64: 1 | Q64: 1 | R64: 0 | S64: 1 | T64: 0 | U64: 1 | V64: 0 | W64: 0 | X64: 0 | Y64: 3 | AC64: 3 | AM64: 1 | AN64: 2 | AO64: 0 | AP64: 3 | AQ64: 0 | AR64: 3 | AS64: 0 | AT64: 0 | AU64: 0
A65: MARINE | B65: 1 | E65: 1 | P65: 1 | R65: 0 | S65: 1 | T65: 1 | U65: 0 | V65: 0 | W65: 0 | X65: 0
A66: MAXUM | B66: 1 | H66: 1 | P66: 1 | R66: 0 | S66: 1 | T66: 1 | U66: 0 | V66: 0 | W66: 0 | X66: 0
A67: MERCURY | B67: 1 | F67: 1 | P67: 1 | R67: 0 | S67: 1 | T67: 0 | U67: 1 | V67: 0 | W67: 0 | X67: 0 | Y67: 3 | Z67: 1 | AA67: 1 | AD67: 1 | AM67: 2 | AN67: 1 | AO67: 0 | AP67: 3 | AQ67: 0 | AR67: 0 | AS67: 3 | AT67: 0 | AU67: 0
A68: MERY NAUTIC | B68: 1 | H68: 1 | P68: 1 | R68: 0 | S68: 1 | T68: 1 | U68: 0 | V68: 0 | W68: 0 | X68: 0
A69: MINIJET | B69: 1 | C69: 1 | Q69: 1 | R69: 0 | S69: 1 | T69: 0 | U69: 1 | V69: 0 | W69: 0 | X69: 0
A70: MONTEREY BOATS | B70: 1 | I70: 1 | Q70: 1 | R70: 0 | S70: 1 | T70: 1 | U70: 0 | V70: 0 | W70: 0 | X70: 0 | Y70: 1 | AE70: 1 | AM70: 1 | AO70: 0 | AP70: 1 | AQ70: 1 | AR70: 0 | AS70: 0 | AT70: 0 | AU70: 0
A71: NARWHAL | B71: 1 | G71: 1 | P71: 1 | R71: 0 | S71: 1 | T71: 0 | U71: 1 | V71: 0 | W71: 0 | X71: 0 | Y71: 1 | AE71: 1 | AM71: 1 | AO71: 0 | AP71: 1 | AQ71: 0 | AR71: 1 | AS71: 0 | AT71: 0 | AU71: 0
A72: NAUTITECH | B72: 1 | J72: 1 | Q72: 1 | R72: 0 | S72: 1 | T72: 0 | U72: 0 | V72: 0 | W72: 0 | X72: 1
A73: NEUVISA | B73: 1 | G73: 1 | P73: 1 | R73: 0 | S73: 1 | T73: 0 | U73: 1 | V73: 0 | W73: 0 | X73: 0 | Y73: 1 | AB73: 1 | AN73: 1 | AO73: 0 | AP73: 1 | AQ73: 0 | AR73: 1 | AS73: 0 | AT73: 0 | AU73: 0
A74: OCEAN BAY BOATS | B74: 1 | E74: 1 | Q74: 1 | R74: 0 | S74: 1 | T74: 0 | U74: 0 | V74: 1 | W74: 0 | X74: 0 | Y74: 7 | AB74: 7 | AM74: 6 | AN74: 1 | AO74: 0 | AP74: 7 | AQ74: 0 | AR74: 0 | AS74: 7 | AT74: 0 | AU74: 0
A75: ORCA | B75: 1 | I75: 1 | P75: 1 | R75: 0 | S75: 1 | T75: 1 | U75: 0 | V75: 0 | W75: 0 | X75: 0 | Y75: 1 | AE75: 1 | AM75: 1 | AO75: 0 | AP75: 1 | AQ75: 1 | AR75: 0 | AS75: 0 | AT75: 0 | AU75: 0
A76: OTERO & LOSADA | B76: 1 | G76: 1 | Q76: 1 | R76: 0 | S76: 1 | T76: 1 | U76: 0 | V76: 0 | W76: 0 | X76: 0
A77: PECOSI | B77: 1 | H77: 1 | P77: 1 | R77: 0 | S77: 1 | T77: 1 | U77: 0 | V77: 0 | W77: 0 | X77: 0
A78: REMUS | B78: 1 | H78: 1 | Q78: 1 | R78: 0 | S78: 1 | T78: 1 | U78: 0 | V78: 0 | W78: 0 | X78: 0
A79: RIBERA | B79: 1 | I79: 1 | P79: 1 | R79: 0 | S79: 1 | T79: 0 | U79: 1 | V79: 0 | W79: 0 | X79: 0 | Y79: 1 | AF79: 1 | AN79: 1 | AO79: 0 | AP79: 1 | AQ79: 0 | AR79: 1 | AS79: 0 | AT79: 0 | AU79: 0
A80: RODMAN | B80: 1 | J80: 1 | P80: 1 | R80: 0 | S80: 1 | T80: 1 | U80: 0 | V80: 0 | W80: 0 | X80: 0
A81: SACS | B81: 1 | I81: 1 | Q81: 1 | R81: 0 | S81: 1 | T81: 0 | U81: 1 | V81: 0 | W81: 0 | X81: 0
A82: SAVER | B82: 1 | H82: 1 | P82: 1 | R82: 0 | S82: 1 | T82: 1 | U82: 0 | V82: 0 | W82: 0 | X82: 0
A83: SEA DOO | B83: 1 | G83: 1 | P83: 1 | R83: 0 | S83: 1 | T83: 1 | U83: 0 | V83: 0 | W83: 0 | X83: 0
A84: SEA PRO | B84: 1 | I84: 1 | Q84: 1 | R84: 0 | S84: 1 | T84: 1 | U84: 0 | V84: 0 | W84: 0 | X84: 0
A85: SEA RAY | B85: 1 | I85: 1 | Q85: 1 | R85: 0 | S85: 1 | T85: 1 | U85: 0 | V85: 0 | W85: 0 | X85: 0 | Y85: 2 | AE85: 1 | AI85: 1 | AM85: 1 | AN85: 1 | AO85: 0 | AP85: 2 | AQ85: 2 | AR85: 0 | AS85: 0 | AT85: 0 | AU85: 0
A86: SEVIPOL | B86: 1 | J86: 1 | Q86: 1 | R86: 0 | S86: 1 | T86: 0 | U86: 0 | V86: 0 | W86: 0 | X86: 1
A87: SUZUMAR | B87: 1 | C87: 1 | Q87: 1 | R87: 0 | S87: 1 | T87: 0 | U87: 0 | V87: 1 | W87: 0 | X87: 0
A88: TECNOFIBER | B88: 1 | I88: 1 | P88: 1 | R88: 1 | S88: 0 | T88: 1 | U88: 0 | V88: 0 | W88: 0 | X88: 0
A89: TRIMARCHI ANTONINO ANDREA | B89: 1 | H89: 1 | P89: 1 | R89: 1 | S89: 0 | T89: 1 | U89: 0 | V89: 0 | W89: 0 | X89: 0
A90: UNIESSE | B90: 1 | K90: 1 | P90: 1 | R90: 1 | S90: 0 | T90: 1 | U90: 0 | V90: 0 | W90: 0 | X90: 0
A91: VALIANT | B91: 1 | H91: 1 | Q91: 1 | R91: 0 | S91: 1 | T91: 0 | U91: 1 | V91: 0 | W91: 0 | X91: 0
A92: VANGUARD | B92: 1 | I92: 1 | P92: 1 | R92: 1 | S92: 0 | T92: 0 | U92: 1 | V92: 0 | W92: 0 | X92: 0 | Y92: 2 | AE92: 1 | AF92: 1 | AM92: 2 | AO92: 0 | AP92: 2 | AQ92: 0 | AR92: 2 | AS92: 0 | AT92: 0 | AU92: 0
A93: WRIGHTON | B93: 1 | J93: 1 | P93: 1 | R93: 0 | S93: 1 | T93: 0 | U93: 0 | V93: 0 | W93: 0 | X93: 1
A94: ZURITA | B94: 1 | D94: 1 | P94: 1 | R94: 0 | S94: 1 | T94: 0 | U94: 0 | V94: 1 | W94: 0 | X94: 0
A95: AQUAPARX | Y95: 2 | Z95: 1 | AA95: 1 | AM95: 2 | AO95: 0 | AP95: 2 | AQ95: 0 | AR95: 0 | AS95: 2 | AT95: 0 | AU95: 0
A96: ARVOR | Y96: 1 | AE96: 1 | AM96: 1 | AO96: 0 | AP96: 1 | AQ96: 1 | AR96: 0 | AS96: 0 | AT96: 0 | AU96: 0
A97: AUXINAVY | Y97: 1 | AE97: 1 | AN97: 1 | AO97: 0 | AP97: 1 | AQ97: 1 | AR97: 0 | AS97: 0 | AT97: 0 | AU97: 0
A98: AVON | Y98: 2 | AA98: 1 | AC98: 1 | AM98: 1 | AN98: 1 | AO98: 0 | AP98: 2 | AQ98: 0 | AR98: 2 | AS98: 0 | AT98: 0 | AU98: 0
A99: BIANCA | Y99: 1 | AG99: 1 | AM99: 1 | AO99: 0 | AP99: 1 | AQ99: 0 | AR99: 0 | AS99: 0 | AT99: 0 | AU99: 1
A100: CANTIERI DEL PARDO | Y100: 1 | AH100: 1 | AN100: 1 | AO100: 0 | AP100: 1 | AQ100: 1 | AR100: 0 | AS100: 0 | AT100: 0 | AU100: 0
A101: CAPEADOR | Y101: 1 | AF101: 1 | AM101: 1 | AO101: 0 | AP101: 1 | AQ101: 1 | AR101: 0 | AS101: 0 | AT101: 0 | AU101: 0
A102: CATANA | Y102: 1 | AI102: 1 | AN102: 1 | AO102: 0 | AP102: 1 | AQ102: 0 | AR102: 0 | AS102: 0 | AT102: 0 | AU102: 1
A103: CHARACTER BOATS | Y103: 1 | AE103: 1 | AN103: 1 | AO103: 0 | AP103: 1 | AQ103: 0 | AR103: 0 | AS103: 0 | AT103: 0 | AU103: 1
A104: CONSTRUCCIONES DE BARCOS DEL SUR | Y104: 1 | AF104: 1 | AM104: 1 | AO104: 0 | AP104: 1 | AQ104: 0 | AR104: 1 | AS104: 0 | AT104: 0 | AU104: 0
A105: CYP | Y105: 1 | AE105: 1 | AM105: 1 | AO105: 0 | AP105: 1 | AQ105: 1 | AR105: 0 | AS105: 0 | AT105: 0 | AU105: 0
A106: DUBHE | Y106: 1 | AF106: 1 | AM106: 1 | AO106: 0 | AP106: 1 | AQ106: 1 | AR106: 0 | AS106: 0 | AT106: 0 | AU106: 0
A107: DUCAUTO | Y107: 1 | AB107: 1 | AN107: 1 | AO107: 0 | AP107: 1 | AQ107: 1 | AR107: 0 | AS107: 0 | AT107: 0 | AU107: 0
A108: ELAN MARINE | Y108: 1 | AG108: 1 | AM108: 1 | AO108: 0 | AP108: 1 | AQ108: 0 | AR108: 0 | AS108: 0 | AT108: 0 | AU108: 1
A109: ELIMAT | Y109: 1 | AE109: 1 | AN109: 1 | AO109: 1 | AP109: 0 | AQ109: 1 | AR109: 0 | AS109: 0 | AT109: 0 | AU109: 0
A110: ESTABLE | Y110: 1 | AC110: 1 | AM110: 1 | AO110: 0 | AP110: 1 | AQ110: 1 | AR110: 0 | AS110: 0 | AT110: 0 | AU110: 0
A111: FAIRLINE | Y111: 1 | AG111: 1 | AM111: 1 | AO111: 0 | AP111: 1 | AQ111: 1 | AR111: 0 | AS111: 0 | AT111: 0 | AU111: 0
A112: FIBER CRAFT | Y112: 2 | AC112: 1 | AD112: 1 | AM112: 2 | AO112: 0 | AP112: 2 | AQ112: 2 | AR112: 0 | AS112: 0 | AT112: 0 | AU112: 0
A113: FIBERPLAST | Y113: 1 | AC113: 1 | AN113: 1 | AO113: 0 | AP113: 1 | AQ113: 1 | AR113: 0 | AS113: 0 | AT113: 0 | AU113: 0
A114: FISHERPRO | Y114: 2 | AA114: 2 | AM114: 2 | AO114: 0 | AP114: 2 | AQ114: 0 | AR114: 0 | AS114: 2 | AT114: 0 | AU114: 0
A115: FISHING | Y115: 1 | AF115: 1 | AM115: 1 | AO115: 1 | AP115: 0 | AQ115: 1 | AR115: 0 | AS115: 0 | AT115: 0 | AU115: 0
A116: FREZETWELT GARHERR | Y116: 1 | AE116: 1 | AM116: 1 | AO116: 0 | AP116: 1 | AQ116: 0 | AR116: 0 | AS116: 1 | AT116: 0 | AU116: 0
A117: HYDRO FORCE | Y117: 2 | AA117: 2 | AM117: 2 | AO117: 0 | AP117: 2 | AQ117: 0 | AR117: 0 | AS117: 2 | AT117: 0 | AU117: 0
A118: JEMAR | Y118: 1 | AE118: 1 | AM118: 1 | AO118: 0 | AP118: 1 | AQ118: 0 | AR118: 0 | AS118: 0 | AT118: 1 | AU118: 0
A119: KAWASAKI | Y119: 1 | AL119: 1 | AN119: 1 | AO119: 0 | AP119: 1 | AQ119: 0 | AR119: 0 | AS119: 0 | AT119: 0 | AU119: 0
A120: LATREX | Y120: 1 | AA120: 1 | AM120: 1 | AO120: 0 | AP120: 1 | AQ120: 1 | AR120: 0 | AS120: 0 | AT120: 0 | AU120: 0
A121: LIAN YA | Y121: 1 | AC121: 1 | AM121: 1 | AO121: 0 | AP121: 1 | AQ121: 0 | AR121: 0 | AS121: 1 | AT121: 0 | AU121: 0
A122: MARETI | Y122: 2 | AC122: 2 | AN122: 2 | AO122: 0 | AP122: 2 | AQ122: 2 | AR122: 0 | AS122: 0 | AT122: 0 | AU122: 0
A123: NAUTICA ESPOSITO | Y123: 1 | AF123: 1 | AN123: 1 | AO123: 0 | AP123: 1 | AQ123: 1 | AR123: 0 | AS123: 0 | AT123: 0 | AU123: 0
A124: OCQUETEAU | Y124: 2 | AF124: 2 | AM124: 1 | AN124: 1 | AO124: 0 | AP124: 2 | AQ124: 2 | AR124: 0 | AS124: 0 | AT124: 0 | AU124: 0
A125: PACIFIC CRAFT | Y125: 2 | AE125: 2 | AM125: 2 | AO125: 0 | AP125: 2 | AQ125: 2 | AR125: 0 | AS125: 0 | AT125: 0 | AU125: 0
A126: PLASTIMO | Y126: 1 | AA126: 1 | AM126: 1 | AO126: 1 | AP126: 0 | AQ126: 0 | AR126: 0 | AS126: 1 | AT126: 0 | AU126: 0
A127: POST CONSTRUCCION | Y127: 1 | AH127: 1 | AN127: 1 | AO127: 0 | AP127: 1 | AQ127: 1 | AR127: 0 | AS127: 0 | AT127: 0 | AU127: 0
A128: PRONAUTICA | Y128: 1 | AG128: 1 | AN128: 1 | AO128: 1 | AP128: 0 | AQ128: 1 | AR128: 0 | AS128: 0 | AT128: 0 | AU128: 0
A129: RIO IBERICA | Y129: 1 | AF129: 1 | AM129: 1 | AO129: 0 | AP129: 1 | AQ129: 1 | AR129: 0 | AS129: 0 | AT129: 0 | AU129: 0
A130: SABOR | Y130: 2 | AD130: 1 | AE130: 1 | AM130: 1 | AN130: 1 | AO130: 0 | AP130: 2 | AQ130: 2 | AR130: 0 | AS130: 0 | AT130: 0 | AU130: 0
A131: SELVA | Y131: 1 | AE131: 1 | AN131: 1 | AO131: 0 | AP131: 1 | AQ131: 1 | AR131: 0 | AS131: 0 | AT131: 0 | AU131: 0
A132: SENTINEL | Y132: 3 | AC132: 1 | AF132: 2 | AN132: 3 | AO132: 0 | AP132: 3 | AQ132: 3 | AR132: 0 | AS132: 0 | AT132: 0 | AU132: 0
A133: SESSA | Y133: 1 | AG133: 1 | AN133: 1 | AO133: 0 | AP133: 1 | AQ133: 1 | AR133: 0 | AS133: 0 | AT133: 0 | AU133: 0
A134: STARFISHER | Y134: 1 | AE134: 1 | AM134: 1 | AO134: 0 | AP134: 1 | AQ134: 1 | AR134: 0 | AS134: 0 | AT134: 0 | AU134: 0
A135: TARGA | Y135: 1 | AG135: 1 | AM135: 1 | AO135: 0 | AP135: 1 | AQ135: 1 | AR135: 0 | AS135: 0 | AT135: 0 | AU135: 0
A136: TRACKER MARINE | Y136: 1 | AE136: 1 | AN136: 1 | AO136: 0 | AP136: 1 | AQ136: 1 | AR136: 0 | AS136: 0 | AT136: 0 | AU136: 0
A137: TWISTER BOATS | Y137: 3 | AC137: 1 | AE137: 2 | AM137: 3 | AO137: 0 | AP137: 3 | AQ137: 0 | AR137: 0 | AS137: 3 | AT137: 0 | AU137: 0
A138: VETUS | Y138: 1 | Z138: 1 | AN138: 1 | AO138: 0 | AP138: 1 | AQ138: 0 | AR138: 0 | AS138: 1 | AT138: 0 | AU138: 0
A139: VIAMARE | Y139: 1 | AA139: 1 | AM139: 1 | AO139: 0 | AP139: 1 | AQ139: 0 | AR139: 0 | AS139: 1 | AT139: 0 | AU139: 0
A140: VORAZ | Y140: 1 | AD140: 1 | AM140: 1 | AO140: 1 | AP140: 0 | AQ140: 1 | AR140: 0 | AS140: 0 | AT140: 0 | AU140: 0
A141: WALKER BAY | Y141: 1 | Z141: 1 | AM141: 1 | AO141: 0 | AP141: 1 | AQ141: 1 | AR141: 0 | AS141: 0 | AT141: 0 | AU141: 0
A142: WAUQUIEZ | Y142: 1 | AG142: 1 | AM142: 1 | AO142: 0 | AP142: 1 | AQ142: 0 | AR142: 0 | AS142: 0 | AT142: 0 | AU142: 1
A143: WHALY | Y143: 3 | AA143: 1 | AC143: 1 | AD143: 1 | AM143: 2 | AN143: 1 | AO143: 1 | AP143: 2 | AQ143: 3 | AR143: 0 | AS143: 0 | AT143: 0 | AU143: 0
A144: WINDY | Y144: 2 | AF144: 1 | AH144: 1 | AM144: 1 | AN144: 1 | AO144: 0 | AP144: 2 | AQ144: 2 | AR144: 0 | AS144: 0 | AT144: 0 | AU144: 0
A145: YAM | Y145: 1 | AE145: 1 | AN145: 1 | AO145: 0 | AP145: 1 | AQ145: 0 | AR145: 1 | AS145: 0 | AT145: 0 | AU145: 0
A146: ZEBEC | Y146: 1 | AA146: 1 | AM146: 1 | AO146: 0 | AP146: 1 | AQ146: 0 | AR146: 1 | AS146: 0 | AT146: 0 | AU146: 0

Sheet Hoja6 (hidden)
A1: CAPITANIA | B1: ASTILLERO | C1: Numero Total | D1: <03 | E1: <03,5 | F1: <04 | G1: <04,5 | H1: <05 | I1: <06 | J1: <08 | K1: <12 | L1: <15 | M1: <20 | N1: <24 | O1: >=24 | P1: MOTOS | Q1: Misma Provincia | R1: Diferente Provincia | S1: Lista 6 | T1: Lista 7 | U1: RIGIDO | V1: SEMIRIGIDO | W1: NEUMATICO | X1: Sin Datos | Y1: VELA | Z1: Total ANT | AA1: 03 ANT | AB1: 035 ANT | AC1: 04 ANT | AD1: 045 ANT | AE1: 05 ANT | AF1: 06 ANT | AG1: 08 ANT | AH1: 12 ANT | AI1: 15 ANT | AJ1: 20 ANT | AK1: 24 ANT | AL1: >24 ANT | AM1: Motos ANT | AN1: Misma ANT | AO1: Dif ANT | AP1: 6 ANT | AQ1: 7 ANT | AR1: Rig ANT | AS1: Semi ANT | AT1: neu ANT | AU1: sd ANT | AV1: Vela ANT
A2: A CORUÑA | B2: ACHA | C2: 1 | K2: 1 | R2: 1 | S2: 1 | T2: 0 | U2: 1 | V2: 0 | W2: 0 | X2: 0 | Y2: 0
A3: A CORUÑA | B3: BAVARIA | C3: 1 | K3: 1 | R3: 1 | S3: 1 | T3: 0 | U3: 1 | V3: 0 | W3: 0 | X3: 0 | Y3: 0
A4: A CORUÑA | B4: CEREIXO | C4: 1 | I4: 1 | Q4: 1 | S4: 0 | T4: 1 | U4: 1 | V4: 0 | W4: 0 | X4: 0 | Y4: 0
A5: A CORUÑA | B5: CHAPARRAL | C5: 1 | J5: 1 | R5: 1 | S5: 0 | T5: 1 | U5: 1 | V5: 0 | W5: 0 | X5: 0 | Y5: 0
A6: A CORUÑA | B6: GROSTAR | C6: 1 | J6: 1 | R6: 1 | S6: 0 | T6: 1 | U6: 1 | V6: 0 | W6: 0 | X6: 0 | Y6: 0
A7: A CORUÑA | B7: JEANNEAU | C7: 1 | J7: 1 | R7: 1 | S7: 0 | T7: 1 | U7: 1 | V7: 0 | W7: 0 | X7: 0 | Y7: 0
A8: A CORUÑA | B8: LAGOON | C8: 1 | K8: 1 | R8: 1 | S8: 1 | T8: 0 | U8: 1 | V8: 0 | W8: 0 | X8: 0 | Y8: 0
A9: A CORUÑA | B9: NAUTITECH | C9: 1 | K9: 1 | R9: 1 | S9: 0 | T9: 1 | U9: 0 | V9: 0 | W9: 0 | X9: 0 | Y9: 1
A10: A CORUÑA | B10: SIN DATOS | C10: 1 | K10: 1 | R10: 1 | S10: 0 | T10: 1 | U10: 0 | V10: 0 | W10: 0 | X10: 0 | Y10: 1
A11: A CORUÑA | B11: YAMAHA | C11: 1 | P11: 1 | Q11: 1 | S11: 0 | T11: 1 | U11: 0 | V11: 0 | W11: 0 | X11: 0 | Y11: 0
A12: A CORUÑA | B12: BAYLINER | Z12: 1 | AF12: 1 | AO12: 1 | AP12: 0 | AQ12: 1 | AR12: 1 | AS12: 0 | AT12: 0 | AU12: 0 | AV12: 0
A13: A CORUÑA | B13: LEMA | Z13: 1 | AF13: 1 | AO13: 1 | AP13: 0 | AQ13: 1 | AR13: 1 | AS13: 0 | AT13: 0 | AU13: 0 | AV13: 0
A14: A CORUÑA | B14: NARWHAL | Z14: 1 | AF14: 1 | AN14: 1 | AP14: 0 | AQ14: 1 | AR14: 0 | AS14: 1 | AT14: 0 | AU14: 0 | AV14: 0
A15: A CORUÑA | B15: QUICKSILVER | Z15: 2 | AE15: 2 | AO15: 2 | AP15: 0 | AQ15: 2 | AR15: 2 | AS15: 0 | AT15: 0 | AU15: 0 | AV15: 0
A16: A CORUÑA | B16: SELVA | Z16: 1 | AF16: 1 | AO16: 1 | AP16: 0 | AQ16: 1 | AR16: 1 | AS16: 0 | AT16: 0 | AU16: 0 | AV16: 0
A17: A CORUÑA | B17: WAUQUIEZ | Z17: 1 | AH17: 1 | AN17: 1 | AP17: 0 | AQ17: 1 | AR17: 0 | AS17: 0 | AT17: 0 | AU17: 0 | AV17: 1
A18: ALGECIRAS | B18: AZIMUT | C18: 1 | M18: 1 | R18: 1 | S18: 0 | T18: 1 | U18: 1 | V18: 0 | W18: 0 | X18: 0 | Y18: 0
A19: ALGECIRAS | B19: BOMBARDIER | C19: 1 | P19: 1 | R19: 1 | S19: 0 | T19: 1 | U19: 0 | V19: 0 | W19: 0 | X19: 0 | Y19: 0
A20: ALGECIRAS | B20: INVICTUS | C20: 1 | J20: 1 | R20: 1 | S20: 1 | T20: 0 | U20: 1 | V20: 0 | W20: 0 | X20: 0 | Y20: 0
A21: ALGECIRAS | B21: JEANNEAU | C21: 1 | J21: 1 | R21: 1 | S21: 0 | T21: 1 | U21: 1 | V21: 0 | W21: 0 | X21: 0 | Y21: 0
A22: ALGECIRAS | B22: LODESTAR | C22: 1 | H22: 1 | R22: 1 | S22: 0 | T22: 1 | U22: 0 | V22: 1 | W22: 0 | X22: 0 | Y22: 0
A23: ALGECIRAS | B23: MONTEREY BOATS | C23: 1 | J23: 1 | R23: 1 | S23: 0 | T23: 1 | U23: 1 | V23: 0 | W23: 0 | X23: 0 | Y23: 0
A24: ALGECIRAS | B24: OZEAM | C24: 1 | E24: 1 | R24: 1 | S24: 0 | T24: 1 | U24: 0 | V24: 0 | W24: 1 | X24: 0 | Y24: 0
A25: ALGECIRAS | B25: RIBERA | C25: 1 | J25: 1 | Q25: 1 | S25: 0 | T25: 1 | U25: 0 | V25: 1 | W25: 0 | X25: 0 | Y25: 0
A26: ALGECIRAS | B26: SEA RIB´S | C26: 1 | I26: 1 | R26: 1 | S26: 0 | T26: 1 | U26: 0 | V26: 1 | W26: 0 | X26: 0 | Y26: 0
A27: ALGECIRAS | B27: YAMAHA | C27: 1 | P27: 1 | R27: 1 | S27: 0 | T27: 1 | U27: 0 | V27: 0 | W27: 0 | X27: 0 | Y27: 0
A28: ALGECIRAS | B28: CONSTRUCCIONES DE BARCOS DEL SUR | Z28: 1 | AG28: 1 | AN28: 1 | AP28: 0 | AQ28: 1 | AR28: 0 | AS28: 1 | AT28: 0 | AU28: 0 | AV28: 0
A29: ALGECIRAS | B29: DUBHE | Z29: 1 | AG29: 1 | AN29: 1 | AP29: 0 | AQ29: 1 | AR29: 1 | AS29: 0 | AT29: 0 | AU29: 0 | AV29: 0
A30: ALGECIRAS | B30: LIAN YA | Z30: 1 | AD30: 1 | AN30: 1 | AP30: 0 | AQ30: 1 | AR30: 0 | AS30: 0 | AT30: 1 | AU30: 0 | AV30: 0
A31: ALGECIRAS | B31: NEUVISA | Z31: 1 | AC31: 1 | AO31: 1 | AP31: 0 | AQ31: 1 | AR31: 0 | AS31: 1 | AT31: 0 | AU31: 0 | AV31: 0
A32: ALGECIRAS | B32: OCEAN BAY BOATS | Z32: 1 | AC32: 1 | AO32: 1 | AP32: 0 | AQ32: 1 | AR32: 0 | AS32: 0 | AT32: 1 | AU32: 0 | AV32: 0
A33: ALGECIRAS | B33: WHALY | Z33: 1 | AE33: 1 | AO33: 1 | AP33: 0 | AQ33: 1 | AR33: 1 | AS33: 0 | AT33: 0 | AU33: 0 | AV33: 0
A34: ALGECIRAS | B34: WINDY | Z34: 1 | AI34: 1 | AO34: 1 | AP34: 0 | AQ34: 1 | AR34: 1 | AS34: 0 | AT34: 0 | AU34: 0 | AV34: 0
A35: ALICANTE | B35: BOMBARDIER | C35: 5 | P35: 5 | Q35: 3 | R35: 2 | S35: 3 | T35: 2 | U35: 0 | V35: 0 | W35: 0 | X35: 0 | Y35: 0 | Z35: 3 | AM35: 3 | AN35: 2 | AO35: 1 | AP35: 0 | AQ35: 3 | AR35: 0 | AS35: 0 | AT35: 0 | AU35: 0 | AV35: 0
A36: ALICANTE | B36: ALLEGRA | C36: 1 | I36: 1 | Q36: 1 | S36: 1 | T36: 0 | U36: 1 | V36: 0 | W36: 0 | X36: 0 | Y36: 0
A37: ALICANTE | B37: BAYLINER | C37: 1 | I37: 1 | R37: 1 | S37: 0 | T37: 1 | U37: 1 | V37: 0 | W37: 0 | X37: 0 | Y37: 0 | Z37: 1 | AF37: 1 | AO37: 1 | AP37: 0 | AQ37: 1 | AR37: 1 | AS37: 0 | AT37: 0 | AU37: 0 | AV37: 0
A38: ALICANTE | B38: BENETEAU | C38: 1 | J38: 1 | Q38: 1 | S38: 0 | T38: 1 | U38: 0 | V38: 0 | W38: 0 | X38: 0 | Y38: 1
A39: ALICANTE | B39: BWA | C39: 1 | I39: 1 | R39: 1 | S39: 0 | T39: 1 | U39: 0 | V39: 1 | W39: 0 | X39: 0 | Y39: 0 | Z39: 1 | AF39: 1 | AO39: 1 | AP39: 0 | AQ39: 1 | AR39: 0 | AS39: 1 | AT39: 0 | AU39: 0 | AV39: 0
A40: ALICANTE | B40: GENESIS | C40: 1 | D40: 1 | Q40: 1 | S40: 0 | T40: 1 | U40: 0 | V40: 1 | W40: 0 | X40: 0 | Y40: 0
A41: ALICANTE | B41: OKI BOATS | C41: 1 | I41: 1 | R41: 1 | S41: 0 | T41: 1 | U41: 1 | V41: 0 | W41: 0 | X41: 0 | Y41: 0 | Z41: 1 | AF41: 1 | AN41: 1 | AP41: 0 | AQ41: 1 | AR41: 1 | AS41: 0 | AT41: 0 | AU41: 0 | AV41: 0
A42: ALICANTE | B42: QUICKSILVER | C42: 1 | I42: 1 | R42: 1 | S42: 0 | T42: 1 | U42: 1 | V42: 0 | W42: 0 | X42: 0 | Y42: 0 | Z42: 2 | AE42: 1 | AF42: 1 | AN42: 1 | AO42: 1 | AP42: 0 | AQ42: 2 | AR42: 2 | AS42: 0 | AT42: 0 | AU42: 0 | AV42: 0
A43: ALICANTE | B43: TECNOFIBER | C43: 1 | J43: 1 | Q43: 1 | S43: 1 | T43: 0 | U43: 1 | V43: 0 | W43: 0 | X43: 0 | Y43: 0
A44: ALICANTE | B44: VALIANT | C44: 1 | I44: 1 | R44: 1 | S44: 0 | T44: 1 | U44: 0 | V44: 1 | W44: 0 | X44: 0 | Y44: 0
A45: ALICANTE | B45: AUXINAVY | Z45: 1 | AF45: 1 | AO45: 1 | AP45: 0 | AQ45: 1 | AR45: 1 | AS45: 0 | AT45: 0 | AU45: 0 | AV45: 0
A46: ALICANTE | B46: BIANCA | Z46: 1 | AH46: 1 | AN46: 1 | AP46: 0 | AQ46: 1 | AR46: 0 | AS46: 0 | AT46: 0 | AU46: 0 | AV46: 1
A47: ALICANTE | B47: CHARACTER BOATS | Z47: 1 | AF47: 1 | AO47: 1 | AP47: 0 | AQ47: 1 | AR47: 0 | AS47: 0 | AT47: 0 | AU47: 0 | AV47: 1
A48: ALICANTE | B48: ESTABLE | Z48: 1 | AD48: 1 | AN48: 1 | AP48: 0 | AQ48: 1 | AR48: 1 | AS48: 0 | AT48: 0 | AU48: 0 | AV48: 0
A49: ALICANTE | B49: FREZETWELT GARHERR | Z49: 1 | AF49: 1 | AN49: 1 | AP49: 0 | AQ49: 1 | AR49: 0 | AS49: 0 | AT49: 1 | AU49: 0 | AV49: 0
A50: ALICANTE | B50: JEANNEAU | Z50: 3 | AG50: 3 | AO50: 3 | AP50: 0 | AQ50: 3 | AR50: 3 | AS50: 0 | AT50: 0 | AU50: 0 | AV50: 0
A51: ALICANTE | B51: LATREX | Z51: 1 | AB51: 1 | AN51: 1 | AP51: 0 | AQ51: 1 | AR51: 1 | AS51: 0 | AT51: 0 | AU51: 0 | AV51: 0
A52: ALICANTE | B52: MONTEREY BOATS | Z52: 1 | AF52: 1 | AN52: 1 | AP52: 0 | AQ52: 1 | AR52: 1 | AS52: 0 | AT52: 0 | AU52: 0 | AV52: 0
A53: ALICANTE | B53: SEA RAY | Z53: 1 | AF53: 1 | AN53: 1 | AP53: 0 | AQ53: 1 | AR53: 1 | AS53: 0 | AT53: 0 | AU53: 0 | AV53: 0
A54: ALICANTE | B54: VETUS | Z54: 1 | AA54: 1 | AO54: 1 | AP54: 0 | AQ54: 1 | AR54: 0 | AS54: 0 | AT54: 1 | AU54: 0 | AV54: 0
A55: ALICANTE | B55: VIAMARE | Z55: 1 | AB55: 1 | AN55: 1 | AP55: 0 | AQ55: 1 | AR55: 0 | AS55: 0 | AT55: 1 | AU55: 0 | AV55: 0
A56: ALICANTE | B56: YAMAHA | Z56: 2 | AM56: 2 | AN56: 2 | AP56: 0 | AQ56: 2 | AR56: 0 | AS56: 0 | AT56: 0 | AU56: 0 | AV56: 0
A57: ALICANTE | B57: ZEBEC | Z57: 1 | AB57: 1 | AN57: 1 | AP57: 0 | AQ57: 1 | AR57: 0 | AS57: 1 | AT57: 0 | AU57: 0 | AV57: 0
A58: ALMERIA | B58: BOMBARD | C58: 2 | I58: 2 | Q58: 1 | R58: 1 | S58: 1 | T58: 1 | U58: 0 | V58: 2 | W58: 0 | X58: 0 | Y58: 0
A59: ALMERIA | B59: BOMBARDIER | C59: 2 | P59: 2 | Q59: 2 | S59: 0 | T59: 2 | U59: 0 | V59: 0 | W59: 0 | X59: 0 | Y59: 0
A60: ALMERIA | B60: COBRA INFLABLE | C60: 2 | D60: 1 | I60: 1 | Q60: 1 | R60: 1 | S60: 0 | T60: 2 | U60: 0 | V60: 1 | W60: 1 | X60: 0 | Y60: 0
A61: ALMERIA | B61: QUICKSILVER | C61: 2 | D61: 1 | H61: 1 | Q61: 1 | R61: 1 | S61: 0 | T61: 2 | U61: 1 | V61: 0 | W61: 1 | X61: 0 | Y61: 0 | Z61: 3 | AG61: 3 | AO61: 3 | AP61: 0 | AQ61: 3 | AR61: 3 | AS61: 0 | AT61: 0 | AU61: 0 | AV61: 0
A62: ALMERIA | B62: JAGO | C62: 1 | E62: 1 | Q62: 1 | S62: 0 | T62: 1 | U62: 0 | V62: 0 | W62: 1 | X62: 0 | Y62: 0
A63: ALMERIA | B63: LEMA | C63: 1 | J63: 1 | R63: 1 | S63: 0 | T63: 1 | U63: 1 | V63: 0 | W63: 0 | X63: 0 | Y63: 0
A64: ALMERIA | B64: OZEAM | C64: 1 | D64: 1 | R64: 1 | S64: 0 | T64: 1 | U64: 0 | V64: 0 | W64: 1 | X64: 0 | Y64: 0
A65: ALMERIA | B65: AQUAPARX | Z65: 1 | AB65: 1 | AN65: 1 | AP65: 0 | AQ65: 1 | AR65: 0 | AS65: 0 | AT65: 1 | AU65: 0 | AV65: 0
A66: ALMERIA | B66: ASTILLEROS HAZ | Z66: 1 | AE66: 1 | AO66: 1 | AP66: 0 | AQ66: 1 | AR66: 1 | AS66: 0 | AT66: 0 | AU66: 0 | AV66: 0
A67: ALMERIA | B67: BAYLINER | Z67: 1 | AG67: 1 | AO67: 1 | AP67: 0 | AQ67: 1 | AR67: 1 | AS67: 0 | AT67: 0 | AU67: 0 | AV67: 0
A68: ALMERIA | B68: OCEAN BAY BOATS | Z68: 1 | AC68: 1 | AN68: 1 | AP68: 0 | AQ68: 1 | AR68: 0 | AS68: 0 | AT68: 1 | AU68: 0 | AV68: 0
A69: ALMERIA | B69: YAMAHA | Z69: 1 | AM69: 1 | AN69: 1 | AP69: 0 | AQ69: 1 | AR69: 0 | AS69: 0 | AT69: 0 | AU69: 0 | AV69: 0
A70: AVILES | B70: JEMAR | Z70: 1 | AF70: 1 | AN70: 1 | AP70: 0 | AQ70: 1 | AR70: 0 | AS70: 0 | AT70: 0 | AU70: 1 | AV70: 0
A71: BARCELONA | B71: QUICKSILVER | C71: 4 | F71: 1 | I71: 2 | J71: 1 | Q71: 4 | S71: 0 | T71: 4 | U71: 3 | V71: 0 | W71: 1 | X71: 0 | Y71: 0
A72: BARCELONA | B72: BENETEAU | C72: 3 | J72: 2 | L72: 1 | R72: 3 | S72: 0 | T72: 3 | U72: 2 | V72: 0 | W72: 0 | X72: 0 | Y72: 1
A73: BARCELONA | B73: B2 MARINE | C73: 1 | I73: 1 | Q73: 1 | S73: 0 | T73: 1 | U73: 1 | V73: 0 | W73: 0 | X73: 0 | Y73: 0
A74: BARCELONA | B74: BAVARIA | C74: 1 | K74: 1 | Q74: 1 | S74: 0 | T74: 1 | U74: 0 | V74: 0 | W74: 0 | X74: 0 | Y74: 1 | Z74: 1 | AH74: 1 | AN74: 1 | AP74: 0 | AQ74: 1 | AR74: 1 | AS74: 0 | AT74: 0 | AU74: 0 | AV74: 0
A75: BARCELONA | B75: BOMBARDIER | C75: 1 | P75: 1 | R75: 1 | S75: 0 | T75: 1 | U75: 0 | V75: 0 | W75: 0 | X75: 0 | Y75: 0
A76: BARCELONA | B76: BOSTON WHALER | C76: 1 | K76: 1 | Q76: 1 | S76: 0 | T76: 1 | U76: 1 | V76: 0 | W76: 0 | X76: 0 | Y76: 0
A77: BARCELONA | B77: CRANCHI | C77: 1 | K77: 1 | Q77: 1 | S77: 0 | T77: 1 | U77: 1 | V77: 0 | W77: 0 | X77: 0 | Y77: 0 | Z77: 1 | AH77: 1 | AO77: 1 | AP77: 0 | AQ77: 1 | AR77: 1 | AS77: 0 | AT77: 0 | AU77: 0 | AV77: 0
A78: BARCELONA | B78: GIRBAU | C78: 1 | J78: 1 | R78: 1 | S78: 0 | T78: 1 | U78: 1 | V78: 0 | W78: 0 | X78: 0 | Y78: 0
A79: BARCELONA | B79: JEANNEAU | C79: 1 | K79: 1 | R79: 1 | S79: 0 | T79: 1 | U79: 1 | V79: 0 | W79: 0 | X79: 0 | Y79: 0 | Z79: 1 | AJ79: 1 | AO79: 1 | AP79: 0 | AQ79: 1 | AR79: 1 | AS79: 0 | AT79: 0 | AU79: 0 | AV79: 0
A80: BARCELONA | B80: OBE & CARMEN | C80: 1 | J80: 1 | R80: 1 | S80: 0 | T80: 1 | U80: 1 | V80: 0 | W80: 0 | X80: 0 | Y80: 0
A81: BARCELONA | B81: ORCA | C81: 1 | J81: 1 | Q81: 1 | S81: 0 | T81: 1 | U81: 1 | V81: 0 | W81: 0 | X81: 0 | Y81: 0
A82: BARCELONA | B82: PROTENDER | C82: 1 | E82: 1 | Q82: 1 | S82: 0 | T82: 1 | U82: 0 | V82: 0 | W82: 1 | X82: 0 | Y82: 0
A83: BARCELONA | B83: RODMAN | C83: 1 | K83: 1 | Q83: 1 | S83: 0 | T83: 1 | U83: 1 | V83: 0 | W83: 0 | X83: 0 | Y83: 0
A84: BARCELONA | B84: SACS | C84: 1 | J84: 1 | R84: 1 | S84: 0 | T84: 1 | U84: 0 | V84: 1 | W84: 0 | X84: 0 | Y84: 0
A85: BARCELONA | B85: SEA PRO | C85: 1 | J85: 1 | R85: 1 | S85: 0 | T85: 1 | U85: 1 | V85: 0 | W85: 0 | X85: 0 | Y85: 0
A86: BARCELONA | B86: AVON | Z86: 1 | AB86: 1 | AO86: 1 | AP86: 0 | AQ86: 1 | AR86: 0 | AS86: 1 | AT86: 0 | AU86: 0 | AV86: 0
A87: BARCELONA | B87: BAYLINER | Z87: 1 | AE87: 1 | AN87: 1 | AP87: 0 | AQ87: 1 | AR87: 1 | AS87: 0 | AT87: 0 | AU87: 0 | AV87: 0
A88: BARCELONA | B88: CANTIERI DEL PARDO | Z88: 1 | AI88: 1 | AO88: 1 | AP88: 0 | AQ88: 1 | AR88: 1 | AS88: 0 | AT88: 0 | AU88: 0 | AV88: 0
A89: BARCELONA | B89: ELAN MARINE | Z89: 1 | AH89: 1 | AN89: 1 | AP89: 0 | AQ89: 1 | AR89: 0 | AS89: 0 | AT89: 0 | AU89: 0 | AV89: 1
A90: BARCELONA | B90: ELIMAT | Z90: 1 | AF90: 1 | AO90: 1 | AP90: 1 | AQ90: 0 | AR90: 1 | AS90: 0 | AT90: 0 | AU90: 0 | AV90: 0
A91: BARCELONA | B91: FISHING | Z91: 1 | AG91: 1 | AN91: 1 | AP91: 1 | AQ91: 0 | AR91: 1 | AS91: 0 | AT91: 0 | AU91: 0 | AV91: 0
A92: BARCELONA | B92: NAUTICA ESPOSITO | Z92: 1 | AG92: 1 | AO92: 1 | AP92: 0 | AQ92: 1 | AR92: 1 | AS92: 0 | AT92: 0 | AU92: 0 | AV92: 0
A93: BARCELONA | B93: TARGA | Z93: 1 | AH93: 1 | AN93: 1 | AP93: 0 | AQ93: 1 | AR93: 1 | AS93: 0 | AT93: 0 | AU93: 0 | AV93: 0
A94: BARCELONA | B94: TWISTER BOATS | Z94: 3 | AD94: 1 | AF94: 2 | AN94: 3 | AP94: 0 | AQ94: 3 | AR94: 0 | AS94: 0 | AT94: 3 | AU94: 0 | AV94: 0
A95: BARCELONA | B95: YAMAHA | Z95: 1 | AM95: 1 | AO95: 1 | AP95: 1 | AQ95: 0 | AR95: 0 | AS95: 0 | AT95: 0 | AU95: 0 | AV95: 0
A96: BILBAO | B96: BOMBARDIER | C96: 4 | P96: 4 | Q96: 1 | R96: 3 | S96: 1 | T96: 3 | U96: 0 | V96: 0 | W96: 0 | X96: 0 | Y96: 0 | Z96: 3 | AM96: 3 | AO96: 3 | AP96: 0 | AQ96: 3 | AR96: 0 | AS96: 0 | AT96: 0 | AU96: 0 | AV96: 0
A97: BILBAO | B97: JEANNEAU | C97: 2 | J97: 1 | K97: 1 | R97: 2 | S97: 0 | T97: 2 | U97: 1 | V97: 0 | W97: 0 | X97: 0 | Y97: 1 | Z97: 1 | AI97: 1 | AO97: 1 | AP97: 0 | AQ97: 1 | AR97: 1 | AS97: 0 | AT97: 0 | AU97: 0 | AV97: 0
A98: BILBAO | B98: ASTILLEROS HAZ | C98: 1 | I98: 1 | R98: 1 | S98: 0 | T98: 1 | U98: 1 | V98: 0 | W98: 0 | X98: 0 | Y98: 0
A99: BILBAO | B99: HALLBERG RASSY | C99: 1 | K99: 1 | Q99: 1 | S99: 0 | T99: 1 | U99: 0 | V99: 0 | W99: 0 | X99: 0 | Y99: 1
A100: BILBAO | B100: HONDA HONWAVE | C100: 1 | E100: 1 | Q100: 1 | S100: 0 | T100: 1 | U100: 0 | V100: 0 | W100: 1 | X100: 0 | Y100: 0
A101: BILBAO | B101: J BOATS | C101: 1 | K101: 1 | Q101: 1 | S101: 1 | T101: 0 | U101: 0 | V101: 0 | W101: 0 | X101: 0 | Y101: 1
A102: BILBAO | B102: JACKSON KAYAK | C102: 1 | H102: 1 | Q102: 1 | S102: 0 | T102: 1 | U102: 1 | V102: 0 | W102: 0 | X102: 0 | Y102: 0
A103: BILBAO | B103: SEVIPOL | C103: 1 | K103: 1 | R103: 1 | S103: 0 | T103: 1 | U103: 0 | V103: 0 | W103: 0 | X103: 0 | Y103: 1
A104: BILBAO | B104: WILLIAMS MARINE | C104: 1 | E104: 1 | R104: 1 | S104: 0 | T104: 1 | U104: 0 | V104: 1 | W104: 0 | X104: 0 | Y104: 0
A105: BILBAO | B105: ZODIAC | C105: 1 | E105: 1 | R105: 1 | S105: 0 | T105: 1 | U105: 0 | V105: 1 | W105: 0 | X105: 0 | Y105: 0 | Z105: 1 | AF105: 1 | AO105: 1 | AP105: 0 | AQ105: 1 | AR105: 0 | AS105: 1 | AT105: 0 | AU105: 0 | AV105: 0
A106: BILBAO | B106: BENETEAU | Z106: 1 | AI106: 1 | AO106: 1 | AP106: 0 | AQ106: 1 | AR106: 0 | AS106: 0 | AT106: 0 | AU106: 0 | AV106: 1
A107: BILBAO | B107: KAWASAKI | Z107: 1 | AM107: 1 | AO107: 1 | AP107: 0 | AQ107: 1 | AR107: 0 | AS107: 0 | AT107: 0 | AU107: 0 | AV107: 0
A108: BILBAO | B108: PACIFIC CRAFT | Z108: 1 | AF108: 1 | AN108: 1 | AP108: 0 | AQ108: 1 | AR108: 1 | AS108: 0 | AT108: 0 | AU108: 0 | AV108: 0
A109: BILBAO | B109: POST CONSTRUCCION | Z109: 1 | AI109: 1 | AO109: 1 | AP109: 0 | AQ109: 1 | AR109: 1 | AS109: 0 | AT109: 0 | AU109: 0 | AV109: 0
A110: BILBAO | B110: QUICKSILVER | Z110: 1 | AG110: 1 | AO110: 1 | AP110: 0 | AQ110: 1 | AR110: 1 | AS110: 0 | AT110: 0 | AU110: 0 | AV110: 0
A111: BILBAO | B111: SABOR | Z111: 1 | AF111: 1 | AO111: 1 | AP111: 0 | AQ111: 1 | AR111: 1 | AS111: 0 | AT111: 0 | AU111: 0 | AV111: 0
A112: BILBAO | B112: SEA RIB´S | Z112: 1 | AF112: 1 | AN112: 1 | AP112: 0 | AQ112: 1 | AR112: 0 | AS112: 1 | AT112: 0 | AU112: 0 | AV112: 0
A113: BILBAO | B113: YAMAHA | Z113: 1 | AM113: 1 | AO113: 1 | AP113: 0 | AQ113: 1 | AR113: 0 | AS113: 0 | AT113: 0 | AU113: 0 | AV113: 0
A114: CADIZ | B114: BOMBARDIER | C114: 1 | P114: 1 | R114: 1 | S114: 0 | T114: 1 | U114: 0 | V114: 0 | W114: 0 | X114: 0 | Y114: 0 | Z114: 1 | AM114: 1 | AN114: 1 | AP114: 0 | AQ114: 1 | AR114: 0 | AS114: 0 | AT114: 0 | AU114: 0 | AV114: 0
A115: CADIZ | B115: DAGANZ | C115: 1 | H115: 1 | Q115: 1 | S115: 0 | T115: 1 | U115: 1 | V115: 0 | W115: 0 | X115: 0 | Y115: 0
A116: CADIZ | B116: MERCURY | C116: 1 | G116: 1 | Q116: 1 | S116: 0 | T116: 1 | U116: 0 | V116: 1 | W116: 0 | X116: 0 | Y116: 0 | Z116: 1 | AB116: 1 | AO116: 1 | AP116: 0 | AQ116: 1 | AR116: 0 | AS116: 0 | AT116: 1 | AU116: 0 | AV116: 0
A117: CADIZ | B117: MERY NAUTIC | C117: 1 | I117: 1 | Q117: 1 | S117: 0 | T117: 1 | U117: 1 | V117: 0 | W117: 0 | X117: 0 | Y117: 0
A118: CADIZ | B118: OBE & CARMEN | C118: 1 | H118: 1 | Q118: 1 | S118: 0 | T118: 1 | U118: 1 | V118: 0 | W118: 0 | X118: 0 | Y118: 0
A119: CADIZ | B119: SIN DATOS | C119: 1 | J119: 1 | R119: 1 | S119: 0 | T119: 1 | U119: 1 | V119: 0 | W119: 0 | X119: 0 | Y119: 0
A120: CADIZ | B120: ARVOR | Z120: 1 | AF120: 1 | AN120: 1 | AP120: 0 | AQ120: 1 | AR120: 1 | AS120: 0 | AT120: 0 | AU120: 0 | AV120: 0
A121: CADIZ | B121: COBRA INFLABLE | Z121: 1 | AF121: 1 | AO121: 1 | AP121: 0 | AQ121: 1 | AR121: 0 | AS121: 1 | AT121: 0 | AU121: 0 | AV121: 0
A122: CADIZ | B122: FIBER CRAFT | Z122: 1 | AD122: 1 | AN122: 1 | AP122: 0 | AQ122: 1 | AR122: 1 | AS122: 0 | AT122: 0 | AU122: 0 | AV122: 0
A123: CADIZ | B123: LODESTAR | Z123: 3 | AD123: 3 | AN123: 1 | AO123: 2 | AP123: 0 | AQ123: 3 | AR123: 0 | AS123: 3 | AT123: 0 | AU123: 0 | AV123: 0
A124: CADIZ | B124: OCQUETEAU | Z124: 1 | AG124: 1 | AN124: 1 | AP124: 0 | AQ124: 1 | AR124: 1 | AS124: 0 | AT124: 0 | AU124: 0 | AV124: 0
A125: CADIZ | B125: ORCA | Z125: 1 | AF125: 1 | AN125: 1 | AP125: 0 | AQ125: 1 | AR125: 1 | AS125: 0 | AT125: 0 | AU125: 0 | AV125: 0
A126: CADIZ | B126: ZODIAC | Z126: 1 | AA126: 1 | AO126: 1 | AP126: 0 | AQ126: 1 | AR126: 0 | AS126: 0 | AT126: 1 | AU126: 0 | AV126: 0
A127: CARTAGENA | B127: BOMBARDIER | C127: 7 | P127: 7 | Q127: 3 | R127: 4 | S127: 5 | T127: 2 | U127: 0 | V127: 0 | W127: 0 | X127: 0 | Y127: 0 | Z127: 1 | AM127: 1 | AO127: 1 | AP127: 0 | AQ127: 1 | AR127: 0 | AS127: 0 | AT127: 0 | AU127: 0 | AV127: 0
A128: CARTAGENA | B128: OZEAM | C128: 2 | D128: 1 | E128: 1 | Q128: 2 | S128: 0 | T128: 2 | U128: 0 | V128: 0 | W128: 2 | X128: 0 | Y128: 0 | Z128: 2 | AB128: 2 | AN128: 2 | AP128: 0 | AQ128: 2 | AR128: 0 | AS128: 0 | AT128: 2 | AU128: 0 | AV128: 0
A129: CARTAGENA | B129: DIPOL | C129: 1 | I129: 1 | Q129: 1 | S129: 0 | T129: 1 | U129: 1 | V129: 0 | W129: 0 | X129: 0 | Y129: 0
A130: CARTAGENA | B130: JOUET | C130: 1 | K130: 1 | Q130: 1 | S130: 0 | T130: 1 | U130: 0 | V130: 0 | W130: 0 | X130: 0 | Y130: 1
A131: CARTAGENA | B131: REMUS | C131: 1 | I131: 1 | R131: 1 | S131: 0 | T131: 1 | U131: 1 | V131: 0 | W131: 0 | X131: 0 | Y131: 0
A132: CARTAGENA | B132: SEA DOO | C132: 1 | H132: 1 | Q132: 1 | S132: 0 | T132: 1 | U132: 1 | V132: 0 | W132: 0 | X132: 0 | Y132: 0
A133: CARTAGENA | B133: ZODIAC | C133: 1 | G133: 1 | Q133: 1 | S133: 0 | T133: 1 | U133: 0 | V133: 1 | W133: 0 | X133: 0 | Y133: 0 | Z133: 1 | AC133: 1 | AN133: 1 | AP133: 0 | AQ133: 1 | AR133: 0 | AS133: 1 | AT133: 0 | AU133: 0 | AV133: 0
A134: CARTAGENA | B134: BENETEAU | Z134: 1 | AG134: 1 | AN134: 1 | AP134: 0 | AQ134: 1 | AR134: 1 | AS134: 0 | AT134: 0 | AU134: 0 | AV134: 0
A135: CARTAGENA | B135: MARETI | Z135: 2 | AD135: 2 | AO135: 2 | AP135: 0 | AQ135: 2 | AR135: 2 | AS135: 0 | AT135: 0 | AU135: 0 | AV135: 0
A136: CARTAGENA | B136: OCEAN BAY BOATS | Z136: 2 | AC136: 2 | AN136: 2 | AP136: 0 | AQ136: 2 | AR136: 0 | AS136: 0 | AT136: 2 | AU136: 0 | AV136: 0
A137: CARTAGENA | B137: WALKER BAY | Z137: 1 | AA137: 1 | AN137: 1 | AP137: 0 | AQ137: 1 | AR137: 1 | AS137: 0 | AT137: 0 | AU137: 0 | AV137: 0
A138: CASTELLON | B138: BOMBARDIER | C138: 4 | P138: 4 | Q138: 1 | R138: 3 | S138: 1 | T138: 3 | U138: 0 | V138: 0 | W138: 0 | X138: 0 | Y138: 0
A139: CASTELLON | B139: JEANNEAU | C139: 2 | J139: 2 | R139: 2 | S139: 0 | T139: 2 | U139: 2 | V139: 0 | W139: 0 | X139: 0 | Y139: 0
A140: CASTELLON | B140: DIPOL | C140: 1 | G140: 1 | Q140: 1 | S140: 0 | T140: 1 | U140: 1 | V140: 0 | W140: 0 | X140: 0 | Y140: 0
A141: CASTELLON | B141: EOLO | C141: 1 | I141: 1 | R141: 1 | S141: 0 | T141: 1 | U141: 1 | V141: 0 | W141: 0 | X141: 0 | Y141: 0
A142: CASTELLON | B142: J BOATS | C142: 1 | K142: 1 | R142: 1 | S142: 0 | T142: 1 | U142: 0 | V142: 0 | W142: 0 | X142: 0 | Y142: 1
A143: CASTELLON | B143: KYBIN | C143: 1 | E143: 1 | R143: 1 | S143: 0 | T143: 1 | U143: 0 | V143: 0 | W143: 1 | X143: 0 | Y143: 0
A144: CASTELLON | B144: PROTENDER | C144: 1 | D144: 1 | Q144: 1 | S144: 0 | T144: 1 | U144: 0 | V144: 0 | W144: 1 | X144: 0 | Y144: 0
A145: CASTELLON | B145: BENETEAU | Z145: 1 | AG145: 1 | AO145: 1 | AP145: 0 | AQ145: 1 | AR145: 1 | AS145: 0 | AT145: 0 | AU145: 0 | AV145: 0
A146: GIJON | B146: FOUR WINNS | C146: 1 | I146: 1 | R146: 1 | S146: 0 | T146: 1 | U146: 1 | V146: 0 | W146: 0 | X146: 0 | Y146: 0
A147: GIJON | B147: QUICKSILVER | Z147: 1 | AF147: 1 | AO147: 1 | AP147: 0 | AQ147: 1 | AR147: 1 | AS147: 0 | AT147: 0 | AU147: 0 | AV147: 0
A148: GIJON | B148: SENTINEL | Z148: 2 | AG148: 2 | AO148: 2 | AP148: 0 | AQ148: 2 | AR148: 2 | AS148: 0 | AT148: 0 | AU148: 0 | AV148: 0
A149: GIJON | B149: ZODIAC | Z149: 1 | AD149: 1 | AN149: 1 | AP149: 0 | AQ149: 1 | AR149: 0 | AS149: 1 | AT149: 0 | AU149: 0 | AV149: 0
A150: HUELVA | B150: BOMBARDIER | C150: 5 | P150: 5 | Q150: 4 | R150: 1 | S150: 0 | T150: 5 | U150: 0 | V150: 0 | W150: 0 | X150: 0 | Y150: 0
A151: HUELVA | B151: COBRA INFLABLE | C151: 3 | F151: 3 | Q151: 3 | S151: 3 | T151: 0 | U151: 0 | V151: 0 | W151: 3 | X151: 0 | Y151: 0
A152: HUELVA | B152: OZEAM | C152: 1 | D152: 1 | Q152: 1 | S152: 0 | T152: 1 | U152: 0 | V152: 0 | W152: 1 | X152: 0 | Y152: 0
A153: HUELVA | B153: SIN DATOS | C153: 1 | G153: 1 | Q153: 1 | S153: 0 | T153: 1 | U153: 0 | V153: 1 | W153: 0 | X153: 0 | Y153: 0
A154: HUELVA | B154: WHALY | Z154: 1 | AB154: 1 | AN154: 1 | AP154: 0 | AQ154: 1 | AR154: 1 | AS154: 0 | AT154: 0 | AU154: 0 | AV154: 0
A155: HUELVA | B155: YAMAHA | Z155: 1 | AM155: 1 | AN155: 1 | AP155: 0 | AQ155: 1 | AR155: 0 | AS155: 0 | AT155: 0 | AU155: 0 | AV155: 0
A156: LAS PALMAS | B156: APEX INFLATABLES | C156: 2 | F156: 2 | Q156: 2 | S156: 0 | T156: 2 | U156: 0 | V156: 2 | W156: 0 | X156: 0 | Y156: 0
A157: LAS PALMAS | B157: HONDA HONWAVE | C157: 2 | F157: 2 | Q157: 2 | S157: 0 | T157: 2 | U157: 0 | V157: 0 | W157: 2 | X157: 0 | Y157: 0
A158: LAS PALMAS | B158: LOMAC | C158: 2 | F158: 2 | Q158: 2 | S158: 2 | T158: 0 | U158: 0 | V158: 2 | W158: 0 | X158: 0 | Y158: 0
A159: LAS PALMAS | B159: AMANAY | C159: 1 | G159: 1 | Q159: 1 | S159: 0 | T159: 1 | U159: 0 | V159: 1 | W159: 0 | X159: 0 | Y159: 0
A160: LAS PALMAS | B160: BAVARIA | C160: 1 | K160: 1 | Q160: 1 | S160: 1 | T160: 0 | U160: 1 | V160: 0 | W160: 0 | X160: 0 | Y160: 0
A161: LAS PALMAS | B161: SAVER | C161: 1 | I161: 1 | Q161: 1 | S161: 0 | T161: 1 | U161: 1 | V161: 0 | W161: 0 | X161: 0 | Y161: 0
A162: LAS PALMAS | B162: UNIESSE | C162: 1 | L162: 1 | Q162: 1 | S162: 1 | T162: 0 | U162: 1 | V162: 0 | W162: 0 | X162: 0 | Y162: 0
A163: LAS PALMAS | B163: ZURITA | C163: 1 | E163: 1 | Q163: 1 | S163: 0 | T163: 1 | U163: 0 | V163: 0 | W163: 1 | X163: 0 | Y163: 0
A164: LAS PALMAS | B164: FIBER CRAFT | Z164: 1 | AE164: 1 | AN164: 1 | AP164: 0 | AQ164: 1 | AR164: 1 | AS164: 0 | AT164: 0 | AU164: 0 | AV164: 0
A165: LAS PALMAS | B165: FISHERPRO | Z165: 2 | AB165: 2 | AN165: 2 | AP165: 0 | AQ165: 2 | AR165: 0 | AS165: 0 | AT165: 2 | AU165: 0 | AV165: 0
A166: LAS PALMAS | B166: HYDRO FORCE | Z166: 2 | AB166: 2 | AN166: 2 | AP166: 0 | AQ166: 2 | AR166: 0 | AS166: 0 | AT166: 2 | AU166: 0 | AV166: 0
A167: LAS PALMAS | B167: MERCURY | Z167: 2 | AA167: 1 | AE167: 1 | AN167: 2 | AP167: 0 | AQ167: 2 | AR167: 0 | AS167: 0 | AT167: 2 | AU167: 0 | AV167: 0
A168: LAS PALMAS | B168: SIN DATOS | Z168: 1 | AG168: 1 | AN168: 1 | AP168: 1 | AQ168: 0 | AR168: 1 | AS168: 0 | AT168: 0 | AU168: 0 | AV168: 0
A169: LUGO | B169: JEANNEAU | C169: 1 | I169: 1 | R169: 1 | S169: 0 | T169: 1 | U169: 1 | V169: 0 | W169: 0 | X169: 0 | Y169: 0
A170: LUGO | B170: SENTINEL | Z170: 1 | AD170: 1 | AO170: 1 | AP170: 0 | AQ170: 1 | AR170: 1 | AS170: 0 | AT170: 0 | AU170: 0 | AV170: 0
A171: MALAGA | B171: DIPOL | C171: 2 | F171: 2 | Q171: 2 | S171: 2 | T171: 0 | U171: 2 | V171: 0 | W171: 0 | X171: 0 | Y171: 0
A172: MALAGA | B172: QUICKSILVER | C172: 2 | E172: 1 | I172: 1 | Q172: 1 | R172: 1 | S172: 0 | T172: 2 | U172: 1 | V172: 0 | W172: 1 | X172: 0 | Y172: 0
A173: MALAGA | B173: DUROMAR | C173: 1 | E173: 1 | Q173: 1 | S173: 0 | T173: 1 | U173: 0 | V173: 0 | W173: 1 | X173: 0 | Y173: 0
A174: MALAGA | B174: GRAUVELL | C174: 1 | E174: 1 | Q174: 1 | S174: 0 | T174: 1 | U174: 0 | V174: 0 | W174: 1 | X174: 0 | Y174: 0
A175: MALAGA | B175: KARNIC | C175: 1 | I175: 1 | Q175: 1 | S175: 0 | T175: 1 | U175: 1 | V175: 0 | W175: 0 | X175: 0 | Y175: 0
A176: MALAGA | B176: LA NORIA | C176: 1 | E176: 1 | Q176: 1 | S176: 0 | T176: 1 | U176: 1 | V176: 0 | W176: 0 | X176: 0 | Y176: 0
A177: MALAGA | B177: SEA RAY | C177: 1 | J177: 1 | R177: 1 | S177: 0 | T177: 1 | U177: 1 | V177: 0 | W177: 0 | X177: 0 | Y177: 0 | Z177: 1 | AJ177: 1 | AO177: 1 | AP177: 0 | AQ177: 1 | AR177: 1 | AS177: 0 | AT177: 0 | AU177: 0 | AV177: 0
A178: MALAGA | B178: SEA RIB´S | C178: 1 | G178: 1 | Q178: 1 | S178: 1 | T178: 0 | U178: 0 | V178: 1 | W178: 0 | X178: 0 | Y178: 0
A179: MALAGA | B179: SIN DATOS | C179: 1 | I179: 1 | Q179: 1 | S179: 0 | T179: 1 | U179: 1 | V179: 0 | W179: 0 | X179: 0 | Y179: 0
A180: MALAGA | B180: TRIMARCHI ANTONINO ANDREA | C180: 1 | I180: 1 | Q180: 1 | S180: 1 | T180: 0 | U180: 1 | V180: 0 | W180: 0 | X180: 0 | Y180: 0
A181: MALAGA | B181: WRIGHTON | C181: 1 | K181: 1 | Q181: 1 | S181: 0 | T181: 1 | U181: 0 | V181: 0 | W181: 0 | X181: 0 | Y181: 1
A182: MALAGA | B182: BOMBARDIER | Z182: 3 | AM182: 3 | AN182: 3 | AP182: 0 | AQ182: 3 | AR182: 0 | AS182: 0 | AT182: 0 | AU182: 0 | AV182: 0
A183: MALAGA | B183: ZODIAC | Z183: 2 | AB183: 2 | AN183: 1 | AO183: 1 | AP183: 0 | AQ183: 2 | AR183: 0 | AS183: 1 | AT183: 1 | AU183: 0 | AV183: 0
A184: MELILLA | B184: YAMAHA | C184: 2 | P184: 2 | Q184: 2 | S184: 0 | T184: 2 | U184: 0 | V184: 0 | W184: 0 | X184: 0 | Y184: 0 | Z184: 1 | AM184: 1 | AN184: 1 | AP184: 0 | AQ184: 1 | AR184: 0 | AS184: 0 | AT184: 0 | AU184: 0 | AV184: 0
A185: MOTRIL | B185: BOMBARDIER | C185: 1 | P185: 1 | Q185: 1 | S185: 0 | T185: 1 | U185: 0 | V185: 0 | W185: 0 | X185: 0 | Y185: 0 | Z185: 4 | AM185: 4 | AN185: 3 | AO185: 1 | AP185: 0 | AQ185: 4 | AR185: 0 | AS185: 0 | AT185: 0 | AU185: 0 | AV185: 0
A186: MOTRIL | B186: HONDA HONWAVE | Z186: 1 | AC186: 1 | AO186: 1 | AP186: 0 | AQ186: 1 | AR186: 0 | AS186: 0 | AT186: 1 | AU186: 0 | AV186: 0
A187: MOTRIL | B187: OCEAN BAY BOATS | Z187: 1 | AC187: 1 | AN187: 1 | AP187: 0 | AQ187: 1 | AR187: 0 | AS187: 0 | AT187: 1 | AU187: 0 | AV187: 0
A188: PALAMOS | B188: FAETON | C188: 1 | J188: 1 | R188: 1 | S188: 0 | T188: 1 | U188: 1 | V188: 0 | W188: 0 | X188: 0 | Y188: 0
A189: PALAMOS | B189: HARMONY | C189: 1 | L189: 1 | Q189: 1 | S189: 1 | T189: 0 | U189: 1 | V189: 0 | W189: 0 | X189: 0 | Y189: 0
A190: PALAMOS | B190: HONDA HONWAVE | C190: 1 | D190: 1 | Q190: 1 | S190: 0 | T190: 1 | U190: 0 | V190: 0 | W190: 1 | X190: 0 | Y190: 0
A191: PALAMOS | B191: SUZUMAR | C191: 1 | D191: 1 | R191: 1 | S191: 0 | T191: 1 | U191: 0 | V191: 0 | W191: 1 | X191: 0 | Y191: 0
A192: PALAMOS | B192: BENETEAU | Z192: 1 | AG192: 1 | AN192: 1 | AP192: 1 | AQ192: 0 | AR192: 1 | AS192: 0 | AT192: 0 | AU192: 0 | AV192: 0
A193: PALAMOS | B193: JEANNEAU | Z193: 1 | AG193: 1 | AO193: 1 | AP193: 0 | AQ193: 1 | AR193: 1 | AS193: 0 | AT193: 0 | AU193: 0 | AV193: 0
A194: PALAMOS | B194: OCEAN BAY BOATS | Z194: 1 | AC194: 1 | AN194: 1 | AP194: 0 | AQ194: 1 | AR194: 0 | AS194: 0 | AT194: 1 | AU194: 0 | AV194: 0
A195: PALAMOS | B195: QUICKSILVER | Z195: 1 | AG195: 1 | AO195: 1 | AP195: 0 | AQ195: 1 | AR195: 1 | AS195: 0 | AT195: 0 | AU195: 0 | AV195: 0
A196: PALAMOS | B196: VORAZ | Z196: 1 | AE196: 1 | AN196: 1 | AP196: 1 | AQ196: 0 | AR196: 1 | AS196: 0 | AT196: 0 | AU196: 0 | AV196: 0
A197: PALMA MALLORCA | B197: BOMBARDIER | C197: 3 | P197: 3 | Q197: 3 | S197: 0 | T197: 3 | U197: 0 | V197: 0 | W197: 0 | X197: 0 | Y197: 0
A198: PALMA MALLORCA | B198: ZODIAC | C198: 3 | F198: 1 | I198: 1 | J198: 1 | R198: 3 | S198: 0 | T198: 3 | U198: 0 | V198: 2 | W198: 1 | X198: 0 | Y198: 0
A199: PALMA MALLORCA | B199: CANTIERI CAPELLI | C199: 2 | J199: 1 | K199: 1 | Q199: 2 | S199: 1 | T199: 1 | U199: 0 | V199: 2 | W199: 0 | X199: 0 | Y199: 0 | Z199: 1 | AH199: 1 | AO199: 1 | AP199: 0 | AQ199: 1 | AR199: 0 | AS199: 1 | AT199: 0 | AU199: 0 | AV199: 0
A200: PALMA MALLORCA | B200: DUFOUR | C200: 1 | K200: 1 | Q200: 1 | S200: 0 | T200: 1 | U200: 0 | V200: 0 | W200: 0 | X200: 0 | Y200: 1
... 82 more rows

Sheet Hoja7 (hidden)
A1: ASTILLERO | B1: Numero Total | C1: <03 | D1: <03,5 | E1: <04 | F1: <04,5 | G1: <05 | H1: <06 | I1: <08 | J1: <12 | K1: <15 | L1: <20 | M1: <24 | N1: >=24 | O1: MOTOS | P1: Misma Provincia | Q1: Diferente Provincia | R1: Lista 6 | S1: Lista 7 | T1: RIGIDO | U1: SEMIRIGIDO | V1: NEUMATICO | W1: Sin Datos | X1: VELA | Y1: SumaDeTotal ANT | Z1: SumaDe03 ANT | AA1: SumaDe035 ANT | AB1: SumaDe04 ANT | AC1: SumaDe045 ANT | AD1: SumaDe05 ANT | AE1: SumaDe06 ANT | AF1: SumaDe08 ANT | AG1: SumaDe12 ANT | AH1: SumaDe15 ANT | AI1: SumaDe20 ANT | AJ1: SumaDe24 ANT | AK1: SumaDe>24 ANT | AL1: SumaDeMotos ANT | AM1: SumaDeMisma ANT | AN1: SumaDeDif ANT | AO1: SumaDe6 ANT | AP1: SumaDe7 ANT | AQ1: SumaDeRig ANT | AR1: SumaDeSemi ANT | AS1: SumaDeneu ANT | AT1: SumaDesd ANT | AU1: SumaDeVela ANT
A2: BOMBARDIER | B2: 36 | O2: 36 | P2: 19 | Q2: 17 | R2: 10 | S2: 26 | T2: 0 | U2: 0 | V2: 0 | W2: 0 | X2: 0 | Y2: 17 | AL2: 17 | AM2: 11 | AN2: 6 | AO2: 0 | AP2: 17 | AQ2: 0 | AR2: 0 | AS2: 0 | AT2: 0 | AU2: 0
A3: JEANNEAU | B3: 13 | H3: 3 | I3: 7 | J3: 3 | P3: 4 | Q3: 9 | R3: 0 | S3: 13 | T3: 11 | U3: 0 | V3: 0 | W3: 0 | X3: 2 | Y3: 8 | AF3: 4 | AG3: 1 | AH3: 2 | AI3: 1 | AM3: 2 | AN3: 6 | AO3: 1 | AP3: 7 | AQ3: 7 | AR3: 0 | AS3: 0 | AT3: 0 | AU3: 1
A4: QUICKSILVER | B4: 13 | C4: 1 | D4: 1 | E4: 1 | G4: 1 | H4: 4 | I4: 5 | P4: 7 | Q4: 6 | R4: 1 | S4: 12 | T4: 10 | U4: 0 | V4: 3 | W4: 0 | X4: 0 | Y4: 15 | AC4: 1 | AD4: 4 | AE4: 4 | AF4: 6 | AM4: 5 | AN4: 10 | AO4: 0 | AP4: 15 | AQ4: 15 | AR4: 0 | AS4: 0 | AT4: 0 | AU4: 0
A5: ASTIXANO | B5: 11 | F5: 2 | G5: 2 | H5: 6 | I5: 1 | P5: 2 | Q5: 9 | R5: 0 | S5: 11 | T5: 11 | U5: 0 | V5: 0 | W5: 0 | X5: 0 | Y5: 10 | AA5: 1 | AB5: 7 | AC5: 1 | AE5: 1 | AN5: 10 | AO5: 0 | AP5: 10 | AQ5: 10 | AR5: 0 | AS5: 0 | AT5: 0 | AU5: 0
A6: DIPOL | B6: 9 | E6: 2 | F6: 2 | H6: 5 | P6: 7 | Q6: 2 | R6: 2 | S6: 7 | T6: 9 | U6: 0 | V6: 0 | W6: 0 | X6: 0 | Y6: 2 | AC6: 1 | AE6: 1 | AM6: 2 | AO6: 0 | AP6: 2 | AQ6: 2 | AR6: 0 | AS6: 0 | AT6: 0 | AU6: 0
A7: BENETEAU | B7: 7 | I7: 5 | J7: 1 | K7: 1 | P7: 2 | Q7: 5 | R7: 0 | S7: 7 | T7: 4 | U7: 0 | V7: 0 | W7: 0 | X7: 3 | Y7: 8 | AF7: 3 | AG7: 1 | AH7: 4 | AM7: 5 | AN7: 3 | AO7: 1 | AP7: 7 | AQ7: 4 | AR7: 0 | AS7: 0 | AT7: 0 | AU7: 4
A8: SIN DATOS | B8: 7 | E8: 1 | F8: 2 | H8: 1 | I8: 1 | J8: 1 | K8: 1 | P8: 4 | Q8: 3 | R8: 1 | S8: 6 | T8: 3 | U8: 1 | V8: 0 | W8: 1 | X8: 2 | Y8: 4 | AB8: 1 | AF8: 1 | AG8: 1 | AH8: 1 | AM8: 3 | AN8: 1 | AO8: 1 | AP8: 3 | AQ8: 3 | AR8: 0 | AS8: 0 | AT8: 0 | AU8: 1
A9: YAMAHA | B9: 7 | O9: 7 | P9: 5 | Q9: 2 | R9: 2 | S9: 5 | T9: 0 | U9: 0 | V9: 0 | W9: 0 | X9: 0 | Y9: 9 | AL9: 9 | AM9: 6 | AN9: 3 | AO9: 2 | AP9: 7 | AQ9: 0 | AR9: 0 | AS9: 0 | AT9: 0 | AU9: 0
A10: OZEAM | B10: 6 | C10: 3 | D10: 3 | P10: 4 | Q10: 2 | R10: 0 | S10: 6 | T10: 0 | U10: 0 | V10: 6 | W10: 0 | X10: 0 | Y10: 3 | AA10: 3 | AM10: 3 | AO10: 0 | AP10: 3 | AQ10: 0 | AR10: 0 | AS10: 3 | AT10: 0 | AU10: 0
A11: ZODIAC | B11: 6 | D11: 2 | E11: 1 | F11: 1 | H11: 1 | I11: 1 | P11: 2 | Q11: 4 | R11: 0 | S11: 6 | T11: 0 | U11: 4 | V11: 2 | W11: 0 | X11: 0 | Y11: 6 | Z11: 1 | AA11: 2 | AB11: 1 | AC11: 1 | AE11: 1 | AM11: 3 | AN11: 3 | AO11: 0 | AP11: 6 | AQ11: 0 | AR11: 4 | AS11: 2 | AT11: 0 | AU11: 0
A12: COBRA INFLABLE | B12: 5 | C12: 1 | E12: 3 | H12: 1 | P12: 4 | Q12: 1 | R12: 3 | S12: 2 | T12: 0 | U12: 1 | V12: 4 | W12: 0 | X12: 0 | Y12: 1 | AE12: 1 | AN12: 1 | AO12: 0 | AP12: 1 | AQ12: 0 | AR12: 1 | AS12: 0 | AT12: 0 | AU12: 0
A13: HONDA HONWAVE | B13: 4 | C13: 1 | D13: 1 | E13: 2 | P13: 4 | R13: 0 | S13: 4 | T13: 0 | U13: 0 | V13: 4 | W13: 0 | X13: 0 | Y13: 1 | AB13: 1 | AN13: 1 | AO13: 0 | AP13: 1 | AQ13: 0 | AR13: 0 | AS13: 1 | AT13: 0 | AU13: 0
A14: BAVARIA | B14: 3 | J14: 3 | P14: 2 | Q14: 1 | R14: 2 | S14: 1 | T14: 2 | U14: 0 | V14: 0 | W14: 0 | X14: 1 | Y14: 1 | AG14: 1 | AM14: 1 | AO14: 0 | AP14: 1 | AQ14: 1 | AR14: 0 | AS14: 0 | AT14: 0 | AU14: 0
A15: J BOATS | B15: 3 | J15: 3 | P15: 1 | Q15: 2 | R15: 1 | S15: 2 | T15: 0 | U15: 0 | V15: 0 | W15: 0 | X15: 3
A16: SEA RIB´S | B16: 3 | F16: 1 | H16: 2 | P16: 2 | Q16: 1 | R16: 1 | S16: 2 | T16: 0 | U16: 3 | V16: 0 | W16: 0 | X16: 0 | Y16: 1 | AE16: 1 | AM16: 1 | AO16: 0 | AP16: 1 | AQ16: 0 | AR16: 1 | AS16: 0 | AT16: 0 | AU16: 0
A17: AGF | B17: 2 | G17: 1 | I17: 1 | P17: 1 | Q17: 1 | R17: 0 | S17: 2 | T17: 2 | U17: 0 | V17: 0 | W17: 0 | X17: 0 | Y17: 1 | AE17: 1 | AN17: 1 | AO17: 0 | AP17: 1 | AQ17: 1 | AR17: 0 | AS17: 0 | AT17: 0 | AU17: 0
A18: APEX INFLATABLES | B18: 2 | E18: 2 | P18: 2 | R18: 0 | S18: 2 | T18: 0 | U18: 2 | V18: 0 | W18: 0 | X18: 0
A19: ASTEC | B19: 2 | E19: 1 | I19: 1 | P19: 1 | Q19: 1 | R19: 0 | S19: 2 | T19: 1 | U19: 1 | V19: 0 | W19: 0 | X19: 0
A20: AZIMUT | B20: 2 | K20: 1 | L20: 1 | P20: 1 | Q20: 1 | R20: 0 | S20: 2 | T20: 2 | U20: 0 | V20: 0 | W20: 0 | X20: 0
A21: BAYLINER | B21: 2 | H21: 2 | P21: 1 | Q21: 1 | R21: 0 | S21: 2 | T21: 2 | U21: 0 | V21: 0 | W21: 0 | X21: 0 | Y21: 5 | AD21: 1 | AE21: 3 | AF21: 1 | AM21: 1 | AN21: 4 | AO21: 0 | AP21: 5 | AQ21: 5 | AR21: 0 | AS21: 0 | AT21: 0 | AU21: 0
A22: BOMBARD | B22: 2 | H22: 2 | P22: 1 | Q22: 1 | R22: 1 | S22: 1 | T22: 0 | U22: 2 | V22: 0 | W22: 0 | X22: 0
A23: CANTIERI CAPELLI | B23: 2 | I23: 1 | J23: 1 | P23: 2 | R23: 1 | S23: 1 | T23: 0 | U23: 2 | V23: 0 | W23: 0 | X23: 0 | Y23: 1 | AG23: 1 | AN23: 1 | AO23: 0 | AP23: 1 | AQ23: 0 | AR23: 1 | AS23: 0 | AT23: 0 | AU23: 0
A24: GOLDEN SHIP | B24: 2 | G24: 1 | H24: 1 | P24: 1 | Q24: 1 | R24: 0 | S24: 2 | T24: 0 | U24: 1 | V24: 1 | W24: 0 | X24: 0
A25: INVICTUS | B25: 2 | H25: 1 | I25: 1 | P25: 1 | Q25: 1 | R25: 2 | S25: 0 | T25: 2 | U25: 0 | V25: 0 | W25: 0 | X25: 0
A26: LOMAC | B26: 2 | E26: 2 | P26: 2 | R26: 2 | S26: 0 | T26: 0 | U26: 2 | V26: 0 | W26: 0 | X26: 0 | Y26: 1 | AB26: 1 | AN26: 1 | AO26: 0 | AP26: 1 | AQ26: 0 | AR26: 1 | AS26: 0 | AT26: 0 | AU26: 0
A27: OBE & CARMEN | B27: 2 | G27: 1 | I27: 1 | P27: 1 | Q27: 1 | R27: 0 | S27: 2 | T27: 2 | U27: 0 | V27: 0 | W27: 0 | X27: 0
A28: OKI BOATS | B28: 2 | H28: 2 | P28: 1 | Q28: 1 | R28: 0 | S28: 2 | T28: 2 | U28: 0 | V28: 0 | W28: 0 | X28: 0 | Y28: 1 | AE28: 1 | AM28: 1 | AO28: 0 | AP28: 1 | AQ28: 1 | AR28: 0 | AS28: 0 | AT28: 0 | AU28: 0
A29: PROTENDER | B29: 2 | C29: 1 | D29: 1 | P29: 2 | R29: 0 | S29: 2 | T29: 0 | U29: 0 | V29: 2 | W29: 0 | X29: 0
A30: WILLIAMS MARINE | B30: 2 | D30: 2 | P30: 1 | Q30: 1 | R30: 0 | S30: 2 | T30: 0 | U30: 2 | V30: 0 | W30: 0 | X30: 0
A31: ACHA | B31: 1 | J31: 1 | Q31: 1 | R31: 1 | S31: 0 | T31: 1 | U31: 0 | V31: 0 | W31: 0 | X31: 0
A32: ALLEGRA | B32: 1 | H32: 1 | P32: 1 | R32: 1 | S32: 0 | T32: 1 | U32: 0 | V32: 0 | W32: 0 | X32: 0
A33: AMANAY | B33: 1 | F33: 1 | P33: 1 | R33: 0 | S33: 1 | T33: 0 | U33: 1 | V33: 0 | W33: 0 | X33: 0
A34: ASTILLEROS HAZ | B34: 1 | H34: 1 | Q34: 1 | R34: 0 | S34: 1 | T34: 1 | U34: 0 | V34: 0 | W34: 0 | X34: 0 | Y34: 1 | AD34: 1 | AN34: 1 | AO34: 0 | AP34: 1 | AQ34: 1 | AR34: 0 | AS34: 0 | AT34: 0 | AU34: 0
A35: ASTILUX | B35: 1 | H35: 1 | P35: 1 | R35: 0 | S35: 1 | T35: 1 | U35: 0 | V35: 0 | W35: 0 | X35: 0
A36: B2 MARINE | B36: 1 | H36: 1 | P36: 1 | R36: 0 | S36: 1 | T36: 1 | U36: 0 | V36: 0 | W36: 0 | X36: 0
A37: BOSTON WHALER | B37: 1 | J37: 1 | P37: 1 | R37: 0 | S37: 1 | T37: 1 | U37: 0 | V37: 0 | W37: 0 | X37: 0
A38: BWA | B38: 1 | H38: 1 | Q38: 1 | R38: 0 | S38: 1 | T38: 0 | U38: 1 | V38: 0 | W38: 0 | X38: 0 | Y38: 1 | AE38: 1 | AN38: 1 | AO38: 0 | AP38: 1 | AQ38: 0 | AR38: 1 | AS38: 0 | AT38: 0 | AU38: 0
A39: CEREIXO | B39: 1 | H39: 1 | P39: 1 | R39: 0 | S39: 1 | T39: 1 | U39: 0 | V39: 0 | W39: 0 | X39: 0
A40: CHAPARRAL | B40: 1 | I40: 1 | Q40: 1 | R40: 0 | S40: 1 | T40: 1 | U40: 0 | V40: 0 | W40: 0 | X40: 0
A41: CRANCHI | B41: 1 | J41: 1 | P41: 1 | R41: 0 | S41: 1 | T41: 1 | U41: 0 | V41: 0 | W41: 0 | X41: 0 | Y41: 1 | AG41: 1 | AN41: 1 | AO41: 0 | AP41: 1 | AQ41: 1 | AR41: 0 | AS41: 0 | AT41: 0 | AU41: 0
A42: DAGANZ | B42: 1 | G42: 1 | P42: 1 | R42: 0 | S42: 1 | T42: 1 | U42: 0 | V42: 0 | W42: 0 | X42: 0
A43: DUFOUR | B43: 1 | J43: 1 | P43: 1 | R43: 0 | S43: 1 | T43: 0 | U43: 0 | V43: 0 | W43: 0 | X43: 1
A44: DUROMAR | B44: 1 | D44: 1 | P44: 1 | R44: 0 | S44: 1 | T44: 0 | U44: 0 | V44: 1 | W44: 0 | X44: 0
A45: EOLO | B45: 1 | H45: 1 | Q45: 1 | R45: 0 | S45: 1 | T45: 1 | U45: 0 | V45: 0 | W45: 0 | X45: 0
A46: FAETON | B46: 1 | I46: 1 | Q46: 1 | R46: 0 | S46: 1 | T46: 1 | U46: 0 | V46: 0 | W46: 0 | X46: 0
A47: FIBRAMAR | B47: 1 | I47: 1 | P47: 1 | R47: 0 | S47: 1 | T47: 1 | U47: 0 | V47: 0 | W47: 0 | X47: 0
A48: FOUR WINNS | B48: 1 | H48: 1 | Q48: 1 | R48: 0 | S48: 1 | T48: 1 | U48: 0 | V48: 0 | W48: 0 | X48: 0 | Y48: 1 | AF48: 1 | AM48: 1 | AO48: 0 | AP48: 1 | AQ48: 1 | AR48: 0 | AS48: 0 | AT48: 0 | AU48: 0
A49: GENESIS | B49: 1 | C49: 1 | P49: 1 | R49: 0 | S49: 1 | T49: 0 | U49: 1 | V49: 0 | W49: 0 | X49: 0
A50: GIRBAU | B50: 1 | I50: 1 | Q50: 1 | R50: 0 | S50: 1 | T50: 1 | U50: 0 | V50: 0 | W50: 0 | X50: 0
A51: GRAUVELL | B51: 1 | D51: 1 | P51: 1 | R51: 0 | S51: 1 | T51: 0 | U51: 0 | V51: 1 | W51: 0 | X51: 0 | Y51: 1 | AC51: 1 | AM51: 1 | AO51: 0 | AP51: 1 | AQ51: 0 | AR51: 0 | AS51: 1 | AT51: 0 | AU51: 0
A52: GROSTAR | B52: 1 | I52: 1 | Q52: 1 | R52: 0 | S52: 1 | T52: 1 | U52: 0 | V52: 0 | W52: 0 | X52: 0
A53: HALLBERG RASSY | B53: 1 | J53: 1 | P53: 1 | R53: 0 | S53: 1 | T53: 0 | U53: 0 | V53: 0 | W53: 0 | X53: 1
A54: HARMONY | B54: 1 | K54: 1 | P54: 1 | R54: 1 | S54: 0 | T54: 1 | U54: 0 | V54: 0 | W54: 0 | X54: 0
A55: JACKSON KAYAK | B55: 1 | G55: 1 | P55: 1 | R55: 0 | S55: 1 | T55: 1 | U55: 0 | V55: 0 | W55: 0 | X55: 0
A56: JAGO | B56: 1 | D56: 1 | P56: 1 | R56: 0 | S56: 1 | T56: 0 | U56: 0 | V56: 1 | W56: 0 | X56: 0
A57: JOUET | B57: 1 | J57: 1 | P57: 1 | R57: 0 | S57: 1 | T57: 0 | U57: 0 | V57: 0 | W57: 0 | X57: 1
A58: KARNIC | B58: 1 | H58: 1 | P58: 1 | R58: 0 | S58: 1 | T58: 1 | U58: 0 | V58: 0 | W58: 0 | X58: 0
A59: KIMPLE | B59: 1 | G59: 1 | Q59: 1 | R59: 0 | S59: 1 | T59: 1 | U59: 0 | V59: 0 | W59: 0 | X59: 0
A60: KYBIN | B60: 1 | D60: 1 | Q60: 1 | R60: 0 | S60: 1 | T60: 0 | U60: 0 | V60: 1 | W60: 0 | X60: 0 | Y60: 1 | Z60: 1 | AM60: 1 | AO60: 0 | AP60: 1 | AQ60: 0 | AR60: 0 | AS60: 1 | AT60: 0 | AU60: 0
A61: LA NORIA | B61: 1 | D61: 1 | P61: 1 | R61: 0 | S61: 1 | T61: 1 | U61: 0 | V61: 0 | W61: 0 | X61: 0
A62: LAGOON | B62: 1 | J62: 1 | Q62: 1 | R62: 1 | S62: 0 | T62: 1 | U62: 0 | V62: 0 | W62: 0 | X62: 0
A63: LEMA | B63: 1 | I63: 1 | Q63: 1 | R63: 0 | S63: 1 | T63: 1 | U63: 0 | V63: 0 | W63: 0 | X63: 0 | Y63: 1 | AE63: 1 | AN63: 1 | AO63: 0 | AP63: 1 | AQ63: 1 | AR63: 0 | AS63: 0 | AT63: 0 | AU63: 0
A64: LODESTAR | B64: 1 | G64: 1 | Q64: 1 | R64: 0 | S64: 1 | T64: 0 | U64: 1 | V64: 0 | W64: 0 | X64: 0 | Y64: 3 | AC64: 3 | AM64: 1 | AN64: 2 | AO64: 0 | AP64: 3 | AQ64: 0 | AR64: 3 | AS64: 0 | AT64: 0 | AU64: 0
A65: MARINE | B65: 1 | E65: 1 | P65: 1 | R65: 0 | S65: 1 | T65: 1 | U65: 0 | V65: 0 | W65: 0 | X65: 0
A66: MAXUM | B66: 1 | H66: 1 | P66: 1 | R66: 0 | S66: 1 | T66: 1 | U66: 0 | V66: 0 | W66: 0 | X66: 0
A67: MERCURY | B67: 1 | F67: 1 | P67: 1 | R67: 0 | S67: 1 | T67: 0 | U67: 1 | V67: 0 | W67: 0 | X67: 0 | Y67: 3 | Z67: 1 | AA67: 1 | AD67: 1 | AM67: 2 | AN67: 1 | AO67: 0 | AP67: 3 | AQ67: 0 | AR67: 0 | AS67: 3 | AT67: 0 | AU67: 0
A68: MERY NAUTIC | B68: 1 | H68: 1 | P68: 1 | R68: 0 | S68: 1 | T68: 1 | U68: 0 | V68: 0 | W68: 0 | X68: 0
A69: MINIJET | B69: 1 | C69: 1 | Q69: 1 | R69: 0 | S69: 1 | T69: 0 | U69: 1 | V69: 0 | W69: 0 | X69: 0
A70: MONTEREY BOATS | B70: 1 | I70: 1 | Q70: 1 | R70: 0 | S70: 1 | T70: 1 | U70: 0 | V70: 0 | W70: 0 | X70: 0 | Y70: 1 | AE70: 1 | AM70: 1 | AO70: 0 | AP70: 1 | AQ70: 1 | AR70: 0 | AS70: 0 | AT70: 0 | AU70: 0
A71: NARWHAL | B71: 1 | G71: 1 | P71: 1 | R71: 0 | S71: 1 | T71: 0 | U71: 1 | V71: 0 | W71: 0 | X71: 0 | Y71: 1 | AE71: 1 | AM71: 1 | AO71: 0 | AP71: 1 | AQ71: 0 | AR71: 1 | AS71: 0 | AT71: 0 | AU71: 0
A72: NAUTITECH | B72: 1 | J72: 1 | Q72: 1 | R72: 0 | S72: 1 | T72: 0 | U72: 0 | V72: 0 | W72: 0 | X72: 1
A73: NEUVISA | B73: 1 | G73: 1 | P73: 1 | R73: 0 | S73: 1 | T73: 0 | U73: 1 | V73: 0 | W73: 0 | X73: 0 | Y73: 1 | AB73: 1 | AN73: 1 | AO73: 0 | AP73: 1 | AQ73: 0 | AR73: 1 | AS73: 0 | AT73: 0 | AU73: 0
A74: OCEAN BAY BOATS | B74: 1 | E74: 1 | Q74: 1 | R74: 0 | S74: 1 | T74: 0 | U74: 0 | V74: 1 | W74: 0 | X74: 0 | Y74: 7 | AB74: 7 | AM74: 6 | AN74: 1 | AO74: 0 | AP74: 7 | AQ74: 0 | AR74: 0 | AS74: 7 | AT74: 0 | AU74: 0
A75: ORCA | B75: 1 | I75: 1 | P75: 1 | R75: 0 | S75: 1 | T75: 1 | U75: 0 | V75: 0 | W75: 0 | X75: 0 | Y75: 1 | AE75: 1 | AM75: 1 | AO75: 0 | AP75: 1 | AQ75: 1 | AR75: 0 | AS75: 0 | AT75: 0 | AU75: 0
A76: OTERO & LOSADA | B76: 1 | G76: 1 | Q76: 1 | R76: 0 | S76: 1 | T76: 1 | U76: 0 | V76: 0 | W76: 0 | X76: 0
A77: PECOSI | B77: 1 | H77: 1 | P77: 1 | R77: 0 | S77: 1 | T77: 1 | U77: 0 | V77: 0 | W77: 0 | X77: 0
A78: REMUS | B78: 1 | H78: 1 | Q78: 1 | R78: 0 | S78: 1 | T78: 1 | U78: 0 | V78: 0 | W78: 0 | X78: 0
A79: RIBERA | B79: 1 | I79: 1 | P79: 1 | R79: 0 | S79: 1 | T79: 0 | U79: 1 | V79: 0 | W79: 0 | X79: 0 | Y79: 1 | AF79: 1 | AN79: 1 | AO79: 0 | AP79: 1 | AQ79: 0 | AR79: 1 | AS79: 0 | AT79: 0 | AU79: 0
A80: RODMAN | B80: 1 | J80: 1 | P80: 1 | R80: 0 | S80: 1 | T80: 1 | U80: 0 | V80: 0 | W80: 0 | X80: 0
A81: SACS | B81: 1 | I81: 1 | Q81: 1 | R81: 0 | S81: 1 | T81: 0 | U81: 1 | V81: 0 | W81: 0 | X81: 0
A82: SAVER | B82: 1 | H82: 1 | P82: 1 | R82: 0 | S82: 1 | T82: 1 | U82: 0 | V82: 0 | W82: 0 | X82: 0
A83: SEA DOO | B83: 1 | G83: 1 | P83: 1 | R83: 0 | S83: 1 | T83: 1 | U83: 0 | V83: 0 | W83: 0 | X83: 0
A84: SEA PRO | B84: 1 | I84: 1 | Q84: 1 | R84: 0 | S84: 1 | T84: 1 | U84: 0 | V84: 0 | W84: 0 | X84: 0
A85: SEA RAY | B85: 1 | I85: 1 | Q85: 1 | R85: 0 | S85: 1 | T85: 1 | U85: 0 | V85: 0 | W85: 0 | X85: 0 | Y85: 2 | AE85: 1 | AI85: 1 | AM85: 1 | AN85: 1 | AO85: 0 | AP85: 2 | AQ85: 2 | AR85: 0 | AS85: 0 | AT85: 0 | AU85: 0
A86: SEVIPOL | B86: 1 | J86: 1 | Q86: 1 | R86: 0 | S86: 1 | T86: 0 | U86: 0 | V86: 0 | W86: 0 | X86: 1
A87: SUZUMAR | B87: 1 | C87: 1 | Q87: 1 | R87: 0 | S87: 1 | T87: 0 | U87: 0 | V87: 1 | W87: 0 | X87: 0
A88: TECNOFIBER | B88: 1 | I88: 1 | P88: 1 | R88: 1 | S88: 0 | T88: 1 | U88: 0 | V88: 0 | W88: 0 | X88: 0
A89: TRIMARCHI ANTONINO ANDREA | B89: 1 | H89: 1 | P89: 1 | R89: 1 | S89: 0 | T89: 1 | U89: 0 | V89: 0 | W89: 0 | X89: 0
A90: UNIESSE | B90: 1 | K90: 1 | P90: 1 | R90: 1 | S90: 0 | T90: 1 | U90: 0 | V90: 0 | W90: 0 | X90: 0
A91: VALIANT | B91: 1 | H91: 1 | Q91: 1 | R91: 0 | S91: 1 | T91: 0 | U91: 1 | V91: 0 | W91: 0 | X91: 0
A92: VANGUARD | B92: 1 | I92: 1 | P92: 1 | R92: 1 | S92: 0 | T92: 0 | U92: 1 | V92: 0 | W92: 0 | X92: 0 | Y92: 2 | AE92: 1 | AF92: 1 | AM92: 2 | AO92: 0 | AP92: 2 | AQ92: 0 | AR92: 2 | AS92: 0 | AT92: 0 | AU92: 0
A93: WRIGHTON | B93: 1 | J93: 1 | P93: 1 | R93: 0 | S93: 1 | T93: 0 | U93: 0 | V93: 0 | W93: 0 | X93: 1
A94: ZURITA | B94: 1 | D94: 1 | P94: 1 | R94: 0 | S94: 1 | T94: 0 | U94: 0 | V94: 1 | W94: 0 | X94: 0
A95: AQUAPARX | Y95: 2 | Z95: 1 | AA95: 1 | AM95: 2 | AO95: 0 | AP95: 2 | AQ95: 0 | AR95: 0 | AS95: 2 | AT95: 0 | AU95: 0
A96: ARVOR | Y96: 1 | AE96: 1 | AM96: 1 | AO96: 0 | AP96: 1 | AQ96: 1 | AR96: 0 | AS96: 0 | AT96: 0 | AU96: 0
A97: AUXINAVY | Y97: 1 | AE97: 1 | AN97: 1 | AO97: 0 | AP97: 1 | AQ97: 1 | AR97: 0 | AS97: 0 | AT97: 0 | AU97: 0
A98: AVON | Y98: 2 | AA98: 1 | AC98: 1 | AM98: 1 | AN98: 1 | AO98: 0 | AP98: 2 | AQ98: 0 | AR98: 2 | AS98: 0 | AT98: 0 | AU98: 0
A99: BIANCA | Y99: 1 | AG99: 1 | AM99: 1 | AO99: 0 | AP99: 1 | AQ99: 0 | AR99: 0 | AS99: 0 | AT99: 0 | AU99: 1
A100: CANTIERI DEL PARDO | Y100: 1 | AH100: 1 | AN100: 1 | AO100: 0 | AP100: 1 | AQ100: 1 | AR100: 0 | AS100: 0 | AT100: 0 | AU100: 0
A101: CAPEADOR | Y101: 1 | AF101: 1 | AM101: 1 | AO101: 0 | AP101: 1 | AQ101: 1 | AR101: 0 | AS101: 0 | AT101: 0 | AU101: 0
A102: CATANA | Y102: 1 | AI102: 1 | AN102: 1 | AO102: 0 | AP102: 1 | AQ102: 0 | AR102: 0 | AS102: 0 | AT102: 0 | AU102: 1
A103: CHARACTER BOATS | Y103: 1 | AE103: 1 | AN103: 1 | AO103: 0 | AP103: 1 | AQ103: 0 | AR103: 0 | AS103: 0 | AT103: 0 | AU103: 1
A104: CONSTRUCCIONES DE BARCOS DEL SUR | Y104: 1 | AF104: 1 | AM104: 1 | AO104: 0 | AP104: 1 | AQ104: 0 | AR104: 1 | AS104: 0 | AT104: 0 | AU104: 0
A105: CYP | Y105: 1 | AE105: 1 | AM105: 1 | AO105: 0 | AP105: 1 | AQ105: 1 | AR105: 0 | AS105: 0 | AT105: 0 | AU105: 0
A106: DUBHE | Y106: 1 | AF106: 1 | AM106: 1 | AO106: 0 | AP106: 1 | AQ106: 1 | AR106: 0 | AS106: 0 | AT106: 0 | AU106: 0
A107: DUCAUTO | Y107: 1 | AB107: 1 | AN107: 1 | AO107: 0 | AP107: 1 | AQ107: 1 | AR107: 0 | AS107: 0 | AT107: 0 | AU107: 0
A108: ELAN MARINE | Y108: 1 | AG108: 1 | AM108: 1 | AO108: 0 | AP108: 1 | AQ108: 0 | AR108: 0 | AS108: 0 | AT108: 0 | AU108: 1
A109: ELIMAT | Y109: 1 | AE109: 1 | AN109: 1 | AO109: 1 | AP109: 0 | AQ109: 1 | AR109: 0 | AS109: 0 | AT109: 0 | AU109: 0
A110: ESTABLE | Y110: 1 | AC110: 1 | AM110: 1 | AO110: 0 | AP110: 1 | AQ110: 1 | AR110: 0 | AS110: 0 | AT110: 0 | AU110: 0
A111: FAIRLINE | Y111: 1 | AG111: 1 | AM111: 1 | AO111: 0 | AP111: 1 | AQ111: 1 | AR111: 0 | AS111: 0 | AT111: 0 | AU111: 0
A112: FIBER CRAFT | Y112: 2 | AC112: 1 | AD112: 1 | AM112: 2 | AO112: 0 | AP112: 2 | AQ112: 2 | AR112: 0 | AS112: 0 | AT112: 0 | AU112: 0
A113: FIBERPLAST | Y113: 1 | AC113: 1 | AN113: 1 | AO113: 0 | AP113: 1 | AQ113: 1 | AR113: 0 | AS113: 0 | AT113: 0 | AU113: 0
A114: FISHERPRO | Y114: 2 | AA114: 2 | AM114: 2 | AO114: 0 | AP114: 2 | AQ114: 0 | AR114: 0 | AS114: 2 | AT114: 0 | AU114: 0
A115: FISHING | Y115: 1 | AF115: 1 | AM115: 1 | AO115: 1 | AP115: 0 | AQ115: 1 | AR115: 0 | AS115: 0 | AT115: 0 | AU115: 0
A116: FREZETWELT GARHERR | Y116: 1 | AE116: 1 | AM116: 1 | AO116: 0 | AP116: 1 | AQ116: 0 | AR116: 0 | AS116: 1 | AT116: 0 | AU116: 0
A117: HYDRO FORCE | Y117: 2 | AA117: 2 | AM117: 2 | AO117: 0 | AP117: 2 | AQ117: 0 | AR117: 0 | AS117: 2 | AT117: 0 | AU117: 0
A118: JEMAR | Y118: 1 | AE118: 1 | AM118: 1 | AO118: 0 | AP118: 1 | AQ118: 0 | AR118: 0 | AS118: 0 | AT118: 1 | AU118: 0
A119: KAWASAKI | Y119: 1 | AL119: 1 | AN119: 1 | AO119: 0 | AP119: 1 | AQ119: 0 | AR119: 0 | AS119: 0 | AT119: 0 | AU119: 0
A120: LATREX | Y120: 1 | AA120: 1 | AM120: 1 | AO120: 0 | AP120: 1 | AQ120: 1 | AR120: 0 | AS120: 0 | AT120: 0 | AU120: 0
A121: LIAN YA | Y121: 1 | AC121: 1 | AM121: 1 | AO121: 0 | AP121: 1 | AQ121: 0 | AR121: 0 | AS121: 1 | AT121: 0 | AU121: 0
A122: MARETI | Y122: 2 | AC122: 2 | AN122: 2 | AO122: 0 | AP122: 2 | AQ122: 2 | AR122: 0 | AS122: 0 | AT122: 0 | AU122: 0
A123: NAUTICA ESPOSITO | Y123: 1 | AF123: 1 | AN123: 1 | AO123: 0 | AP123: 1 | AQ123: 1 | AR123: 0 | AS123: 0 | AT123: 0 | AU123: 0
A124: OCQUETEAU | Y124: 2 | AF124: 2 | AM124: 1 | AN124: 1 | AO124: 0 | AP124: 2 | AQ124: 2 | AR124: 0 | AS124: 0 | AT124: 0 | AU124: 0
A125: PACIFIC CRAFT | Y125: 2 | AE125: 2 | AM125: 2 | AO125: 0 | AP125: 2 | AQ125: 2 | AR125: 0 | AS125: 0 | AT125: 0 | AU125: 0
A126: PLASTIMO | Y126: 1 | AA126: 1 | AM126: 1 | AO126: 1 | AP126: 0 | AQ126: 0 | AR126: 0 | AS126: 1 | AT126: 0 | AU126: 0
A127: POST CONSTRUCCION | Y127: 1 | AH127: 1 | AN127: 1 | AO127: 0 | AP127: 1 | AQ127: 1 | AR127: 0 | AS127: 0 | AT127: 0 | AU127: 0
A128: PRONAUTICA | Y128: 1 | AG128: 1 | AN128: 1 | AO128: 1 | AP128: 0 | AQ128: 1 | AR128: 0 | AS128: 0 | AT128: 0 | AU128: 0
A129: RIO IBERICA | Y129: 1 | AF129: 1 | AM129: 1 | AO129: 0 | AP129: 1 | AQ129: 1 | AR129: 0 | AS129: 0 | AT129: 0 | AU129: 0
A130: SABOR | Y130: 2 | AD130: 1 | AE130: 1 | AM130: 1 | AN130: 1 | AO130: 0 | AP130: 2 | AQ130: 2 | AR130: 0 | AS130: 0 | AT130: 0 | AU130: 0
A131: SELVA | Y131: 1 | AE131: 1 | AN131: 1 | AO131: 0 | AP131: 1 | AQ131: 1 | AR131: 0 | AS131: 0 | AT131: 0 | AU131: 0
A132: SENTINEL | Y132: 3 | AC132: 1 | AF132: 2 | AN132: 3 | AO132: 0 | AP132: 3 | AQ132: 3 | AR132: 0 | AS132: 0 | AT132: 0 | AU132: 0
A133: SESSA | Y133: 1 | AG133: 1 | AN133: 1 | AO133: 0 | AP133: 1 | AQ133: 1 | AR133: 0 | AS133: 0 | AT133: 0 | AU133: 0
A134: STARFISHER | Y134: 1 | AE134: 1 | AM134: 1 | AO134: 0 | AP134: 1 | AQ134: 1 | AR134: 0 | AS134: 0 | AT134: 0 | AU134: 0
A135: TARGA | Y135: 1 | AG135: 1 | AM135: 1 | AO135: 0 | AP135: 1 | AQ135: 1 | AR135: 0 | AS135: 0 | AT135: 0 | AU135: 0
A136: TRACKER MARINE | Y136: 1 | AE136: 1 | AN136: 1 | AO136: 0 | AP136: 1 | AQ136: 1 | AR136: 0 | AS136: 0 | AT136: 0 | AU136: 0
A137: TWISTER BOATS | Y137: 3 | AC137: 1 | AE137: 2 | AM137: 3 | AO137: 0 | AP137: 3 | AQ137: 0 | AR137: 0 | AS137: 3 | AT137: 0 | AU137: 0
A138: VETUS | Y138: 1 | Z138: 1 | AN138: 1 | AO138: 0 | AP138: 1 | AQ138: 0 | AR138: 0 | AS138: 1 | AT138: 0 | AU138: 0
A139: VIAMARE | Y139: 1 | AA139: 1 | AM139: 1 | AO139: 0 | AP139: 1 | AQ139: 0 | AR139: 0 | AS139: 1 | AT139: 0 | AU139: 0
A140: VORAZ | Y140: 1 | AD140: 1 | AM140: 1 | AO140: 1 | AP140: 0 | AQ140: 1 | AR140: 0 | AS140: 0 | AT140: 0 | AU140: 0
A141: WALKER BAY | Y141: 1 | Z141: 1 | AM141: 1 | AO141: 0 | AP141: 1 | AQ141: 1 | AR141: 0 | AS141: 0 | AT141: 0 | AU141: 0
A142: WAUQUIEZ | Y142: 1 | AG142: 1 | AM142: 1 | AO142: 0 | AP142: 1 | AQ142: 0 | AR142: 0 | AS142: 0 | AT142: 0 | AU142: 1
A143: WHALY | Y143: 3 | AA143: 1 | AC143: 1 | AD143: 1 | AM143: 2 | AN143: 1 | AO143: 1 | AP143: 2 | AQ143: 3 | AR143: 0 | AS143: 0 | AT143: 0 | AU143: 0
A144: WINDY | Y144: 2 | AF144: 1 | AH144: 1 | AM144: 1 | AN144: 1 | AO144: 0 | AP144: 2 | AQ144: 2 | AR144: 0 | AS144: 0 | AT144: 0 | AU144: 0
A145: YAM | Y145: 1 | AE145: 1 | AN145: 1 | AO145: 0 | AP145: 1 | AQ145: 0 | AR145: 1 | AS145: 0 | AT145: 0 | AU145: 0
A146: ZEBEC | Y146: 1 | AA146: 1 | AM146: 1 | AO146: 0 | AP146: 1 | AQ146: 0 | AR146: 1 | AS146: 0 | AT146: 0 | AU146: 0

Sheet Hoja8 (hidden)
A1: CAPITANIA | B1: ASTILLERO | C1: Numero Total | D1: <03 | E1: <03,5 | F1: <04 | G1: <04,5 | H1: <05 | I1: <06 | J1: <08 | K1: <12 | L1: <15 | M1: <20 | N1: <24 | O1: >=24 | P1: MOTOS | Q1: Misma Provincia | R1: Diferente Provincia | S1: Lista 6 | T1: Lista 7 | U1: RIGIDO | V1: SEMIRIGIDO | W1: NEUMATICO | X1: Sin Datos | Y1: VELA | Z1: Total ANT | AA1: 03 ANT | AB1: 035 ANT | AC1: 04 ANT | AD1: 045 ANT | AE1: 05 ANT | AF1: 06 ANT | AG1: 08 ANT | AH1: 12 ANT | AI1: 15 ANT | AJ1: 20 ANT | AK1: 24 ANT | AL1: >24 ANT | AM1: Motos ANT | AN1: Misma ANT | AO1: Dif ANT | AP1: 6 ANT | AQ1: 7 ANT | AR1: Rig ANT | AS1: Semi ANT | AT1: neu ANT | AU1: sd ANT | AV1: Vela ANT
A2: A CORUÑA | B2: ACHA | C2: 1 | K2: 1 | R2: 1 | S2: 1 | T2: 0 | U2: 1 | V2: 0 | W2: 0 | X2: 0 | Y2: 0
A3: A CORUÑA | B3: BAVARIA | C3: 1 | K3: 1 | R3: 1 | S3: 1 | T3: 0 | U3: 1 | V3: 0 | W3: 0 | X3: 0 | Y3: 0
A4: A CORUÑA | B4: CEREIXO | C4: 1 | I4: 1 | Q4: 1 | S4: 0 | T4: 1 | U4: 1 | V4: 0 | W4: 0 | X4: 0 | Y4: 0
A5: A CORUÑA | B5: CHAPARRAL | C5: 1 | J5: 1 | R5: 1 | S5: 0 | T5: 1 | U5: 1 | V5: 0 | W5: 0 | X5: 0 | Y5: 0
A6: A CORUÑA | B6: GROSTAR | C6: 1 | J6: 1 | R6: 1 | S6: 0 | T6: 1 | U6: 1 | V6: 0 | W6: 0 | X6: 0 | Y6: 0
A7: A CORUÑA | B7: JEANNEAU | C7: 1 | J7: 1 | R7: 1 | S7: 0 | T7: 1 | U7: 1 | V7: 0 | W7: 0 | X7: 0 | Y7: 0
A8: A CORUÑA | B8: LAGOON | C8: 1 | K8: 1 | R8: 1 | S8: 1 | T8: 0 | U8: 1 | V8: 0 | W8: 0 | X8: 0 | Y8: 0
A9: A CORUÑA | B9: NAUTITECH | C9: 1 | K9: 1 | R9: 1 | S9: 0 | T9: 1 | U9: 0 | V9: 0 | W9: 0 | X9: 0 | Y9: 1
A10: A CORUÑA | B10: SIN DATOS | C10: 1 | K10: 1 | R10: 1 | S10: 0 | T10: 1 | U10: 0 | V10: 0 | W10: 0 | X10: 0 | Y10: 1
A11: A CORUÑA | B11: YAMAHA | C11: 1 | P11: 1 | Q11: 1 | S11: 0 | T11: 1 | U11: 0 | V11: 0 | W11: 0 | X11: 0 | Y11: 0
A12: A CORUÑA | B12: BAYLINER | Z12: 1 | AF12: 1 | AO12: 1 | AP12: 0 | AQ12: 1 | AR12: 1 | AS12: 0 | AT12: 0 | AU12: 0 | AV12: 0
A13: A CORUÑA | B13: LEMA | Z13: 1 | AF13: 1 | AO13: 1 | AP13: 0 | AQ13: 1 | AR13: 1 | AS13: 0 | AT13: 0 | AU13: 0 | AV13: 0
A14: A CORUÑA | B14: NARWHAL | Z14: 1 | AF14: 1 | AN14: 1 | AP14: 0 | AQ14: 1 | AR14: 0 | AS14: 1 | AT14: 0 | AU14: 0 | AV14: 0
A15: A CORUÑA | B15: QUICKSILVER | Z15: 2 | AE15: 2 | AO15: 2 | AP15: 0 | AQ15: 2 | AR15: 2 | AS15: 0 | AT15: 0 | AU15: 0 | AV15: 0
A16: A CORUÑA | B16: SELVA | Z16: 1 | AF16: 1 | AO16: 1 | AP16: 0 | AQ16: 1 | AR16: 1 | AS16: 0 | AT16: 0 | AU16: 0 | AV16: 0
A17: A CORUÑA | B17: WAUQUIEZ | Z17: 1 | AH17: 1 | AN17: 1 | AP17: 0 | AQ17: 1 | AR17: 0 | AS17: 0 | AT17: 0 | AU17: 0 | AV17: 1
A18: ALGECIRAS | B18: AZIMUT | C18: 1 | M18: 1 | R18: 1 | S18: 0 | T18: 1 | U18: 1 | V18: 0 | W18: 0 | X18: 0 | Y18: 0
A19: ALGECIRAS | B19: BOMBARDIER | C19: 1 | P19: 1 | R19: 1 | S19: 0 | T19: 1 | U19: 0 | V19: 0 | W19: 0 | X19: 0 | Y19: 0
A20: ALGECIRAS | B20: INVICTUS | C20: 1 | J20: 1 | R20: 1 | S20: 1 | T20: 0 | U20: 1 | V20: 0 | W20: 0 | X20: 0 | Y20: 0
A21: ALGECIRAS | B21: JEANNEAU | C21: 1 | J21: 1 | R21: 1 | S21: 0 | T21: 1 | U21: 1 | V21: 0 | W21: 0 | X21: 0 | Y21: 0
A22: ALGECIRAS | B22: LODESTAR | C22: 1 | H22: 1 | R22: 1 | S22: 0 | T22: 1 | U22: 0 | V22: 1 | W22: 0 | X22: 0 | Y22: 0
A23: ALGECIRAS | B23: MONTEREY BOATS | C23: 1 | J23: 1 | R23: 1 | S23: 0 | T23: 1 | U23: 1 | V23: 0 | W23: 0 | X23: 0 | Y23: 0
A24: ALGECIRAS | B24: OZEAM | C24: 1 | E24: 1 | R24: 1 | S24: 0 | T24: 1 | U24: 0 | V24: 0 | W24: 1 | X24: 0 | Y24: 0
A25: ALGECIRAS | B25: RIBERA | C25: 1 | J25: 1 | Q25: 1 | S25: 0 | T25: 1 | U25: 0 | V25: 1 | W25: 0 | X25: 0 | Y25: 0
A26: ALGECIRAS | B26: SEA RIB´S | C26: 1 | I26: 1 | R26: 1 | S26: 0 | T26: 1 | U26: 0 | V26: 1 | W26: 0 | X26: 0 | Y26: 0
A27: ALGECIRAS | B27: YAMAHA | C27: 1 | P27: 1 | R27: 1 | S27: 0 | T27: 1 | U27: 0 | V27: 0 | W27: 0 | X27: 0 | Y27: 0
A28: ALGECIRAS | B28: CONSTRUCCIONES DE BARCOS DEL SUR | Z28: 1 | AG28: 1 | AN28: 1 | AP28: 0 | AQ28: 1 | AR28: 0 | AS28: 1 | AT28: 0 | AU28: 0 | AV28: 0
A29: ALGECIRAS | B29: DUBHE | Z29: 1 | AG29: 1 | AN29: 1 | AP29: 0 | AQ29: 1 | AR29: 1 | AS29: 0 | AT29: 0 | AU29: 0 | AV29: 0
A30: ALGECIRAS | B30: LIAN YA | Z30: 1 | AD30: 1 | AN30: 1 | AP30: 0 | AQ30: 1 | AR30: 0 | AS30: 0 | AT30: 1 | AU30: 0 | AV30: 0
A31: ALGECIRAS | B31: NEUVISA | Z31: 1 | AC31: 1 | AO31: 1 | AP31: 0 | AQ31: 1 | AR31: 0 | AS31: 1 | AT31: 0 | AU31: 0 | AV31: 0
A32: ALGECIRAS | B32: OCEAN BAY BOATS | Z32: 1 | AC32: 1 | AO32: 1 | AP32: 0 | AQ32: 1 | AR32: 0 | AS32: 0 | AT32: 1 | AU32: 0 | AV32: 0
A33: ALGECIRAS | B33: WHALY | Z33: 1 | AE33: 1 | AO33: 1 | AP33: 0 | AQ33: 1 | AR33: 1 | AS33: 0 | AT33: 0 | AU33: 0 | AV33: 0
A34: ALGECIRAS | B34: WINDY | Z34: 1 | AI34: 1 | AO34: 1 | AP34: 0 | AQ34: 1 | AR34: 1 | AS34: 0 | AT34: 0 | AU34: 0 | AV34: 0
A35: ALICANTE | B35: BOMBARDIER | C35: 5 | P35: 5 | Q35: 3 | R35: 2 | S35: 3 | T35: 2 | U35: 0 | V35: 0 | W35: 0 | X35: 0 | Y35: 0 | Z35: 3 | AM35: 3 | AN35: 2 | AO35: 1 | AP35: 0 | AQ35: 3 | AR35: 0 | AS35: 0 | AT35: 0 | AU35: 0 | AV35: 0
A36: ALICANTE | B36: ALLEGRA | C36: 1 | I36: 1 | Q36: 1 | S36: 1 | T36: 0 | U36: 1 | V36: 0 | W36: 0 | X36: 0 | Y36: 0
A37: ALICANTE | B37: BAYLINER | C37: 1 | I37: 1 | R37: 1 | S37: 0 | T37: 1 | U37: 1 | V37: 0 | W37: 0 | X37: 0 | Y37: 0 | Z37: 1 | AF37: 1 | AO37: 1 | AP37: 0 | AQ37: 1 | AR37: 1 | AS37: 0 | AT37: 0 | AU37: 0 | AV37: 0
A38: ALICANTE | B38: BENETEAU | C38: 1 | J38: 1 | Q38: 1 | S38: 0 | T38: 1 | U38: 0 | V38: 0 | W38: 0 | X38: 0 | Y38: 1
A39: ALICANTE | B39: BWA | C39: 1 | I39: 1 | R39: 1 | S39: 0 | T39: 1 | U39: 0 | V39: 1 | W39: 0 | X39: 0 | Y39: 0 | Z39: 1 | AF39: 1 | AO39: 1 | AP39: 0 | AQ39: 1 | AR39: 0 | AS39: 1 | AT39: 0 | AU39: 0 | AV39: 0
A40: ALICANTE | B40: GENESIS | C40: 1 | D40: 1 | Q40: 1 | S40: 0 | T40: 1 | U40: 0 | V40: 1 | W40: 0 | X40: 0 | Y40: 0
A41: ALICANTE | B41: OKI BOATS | C41: 1 | I41: 1 | R41: 1 | S41: 0 | T41: 1 | U41: 1 | V41: 0 | W41: 0 | X41: 0 | Y41: 0 | Z41: 1 | AF41: 1 | AN41: 1 | AP41: 0 | AQ41: 1 | AR41: 1 | AS41: 0 | AT41: 0 | AU41: 0 | AV41: 0
A42: ALICANTE | B42: QUICKSILVER | C42: 1 | I42: 1 | R42: 1 | S42: 0 | T42: 1 | U42: 1 | V42: 0 | W42: 0 | X42: 0 | Y42: 0 | Z42: 2 | AE42: 1 | AF42: 1 | AN42: 1 | AO42: 1 | AP42: 0 | AQ42: 2 | AR42: 2 | AS42: 0 | AT42: 0 | AU42: 0 | AV42: 0
A43: ALICANTE | B43: TECNOFIBER | C43: 1 | J43: 1 | Q43: 1 | S43: 1 | T43: 0 | U43: 1 | V43: 0 | W43: 0 | X43: 0 | Y43: 0
A44: ALICANTE | B44: VALIANT | C44: 1 | I44: 1 | R44: 1 | S44: 0 | T44: 1 | U44: 0 | V44: 1 | W44: 0 | X44: 0 | Y44: 0
A45: ALICANTE | B45: AUXINAVY | Z45: 1 | AF45: 1 | AO45: 1 | AP45: 0 | AQ45: 1 | AR45: 1 | AS45: 0 | AT45: 0 | AU45: 0 | AV45: 0
A46: ALICANTE | B46: BIANCA | Z46: 1 | AH46: 1 | AN46: 1 | AP46: 0 | AQ46: 1 | AR46: 0 | AS46: 0 | AT46: 0 | AU46: 0 | AV46: 1
A47: ALICANTE | B47: CHARACTER BOATS | Z47: 1 | AF47: 1 | AO47: 1 | AP47: 0 | AQ47: 1 | AR47: 0 | AS47: 0 | AT47: 0 | AU47: 0 | AV47: 1
A48: ALICANTE | B48: ESTABLE | Z48: 1 | AD48: 1 | AN48: 1 | AP48: 0 | AQ48: 1 | AR48: 1 | AS48: 0 | AT48: 0 | AU48: 0 | AV48: 0
A49: ALICANTE | B49: FREZETWELT GARHERR | Z49: 1 | AF49: 1 | AN49: 1 | AP49: 0 | AQ49: 1 | AR49: 0 | AS49: 0 | AT49: 1 | AU49: 0 | AV49: 0
A50: ALICANTE | B50: JEANNEAU | Z50: 3 | AG50: 3 | AO50: 3 | AP50: 0 | AQ50: 3 | AR50: 3 | AS50: 0 | AT50: 0 | AU50: 0 | AV50: 0
A51: ALICANTE | B51: LATREX | Z51: 1 | AB51: 1 | AN51: 1 | AP51: 0 | AQ51: 1 | AR51: 1 | AS51: 0 | AT51: 0 | AU51: 0 | AV51: 0
A52: ALICANTE | B52: MONTEREY BOATS | Z52: 1 | AF52: 1 | AN52: 1 | AP52: 0 | AQ52: 1 | AR52: 1 | AS52: 0 | AT52: 0 | AU52: 0 | AV52: 0
A53: ALICANTE | B53: SEA RAY | Z53: 1 | AF53: 1 | AN53: 1 | AP53: 0 | AQ53: 1 | AR53: 1 | AS53: 0 | AT53: 0 | AU53: 0 | AV53: 0
A54: ALICANTE | B54: VETUS | Z54: 1 | AA54: 1 | AO54: 1 | AP54: 0 | AQ54: 1 | AR54: 0 | AS54: 0 | AT54: 1 | AU54: 0 | AV54: 0
A55: ALICANTE | B55: VIAMARE | Z55: 1 | AB55: 1 | AN55: 1 | AP55: 0 | AQ55: 1 | AR55: 0 | AS55: 0 | AT55: 1 | AU55: 0 | AV55: 0
A56: ALICANTE | B56: YAMAHA | Z56: 2 | AM56: 2 | AN56: 2 | AP56: 0 | AQ56: 2 | AR56: 0 | AS56: 0 | AT56: 0 | AU56: 0 | AV56: 0
A57: ALICANTE | B57: ZEBEC | Z57: 1 | AB57: 1 | AN57: 1 | AP57: 0 | AQ57: 1 | AR57: 0 | AS57: 1 | AT57: 0 | AU57: 0 | AV57: 0
A58: ALMERIA | B58: BOMBARD | C58: 2 | I58: 2 | Q58: 1 | R58: 1 | S58: 1 | T58: 1 | U58: 0 | V58: 2 | W58: 0 | X58: 0 | Y58: 0
A59: ALMERIA | B59: BOMBARDIER | C59: 2 | P59: 2 | Q59: 2 | S59: 0 | T59: 2 | U59: 0 | V59: 0 | W59: 0 | X59: 0 | Y59: 0
A60: ALMERIA | B60: COBRA INFLABLE | C60: 2 | D60: 1 | I60: 1 | Q60: 1 | R60: 1 | S60: 0 | T60: 2 | U60: 0 | V60: 1 | W60: 1 | X60: 0 | Y60: 0
A61: ALMERIA | B61: QUICKSILVER | C61: 2 | D61: 1 | H61: 1 | Q61: 1 | R61: 1 | S61: 0 | T61: 2 | U61: 1 | V61: 0 | W61: 1 | X61: 0 | Y61: 0 | Z61: 3 | AG61: 3 | AO61: 3 | AP61: 0 | AQ61: 3 | AR61: 3 | AS61: 0 | AT61: 0 | AU61: 0 | AV61: 0
A62: ALMERIA | B62: JAGO | C62: 1 | E62: 1 | Q62: 1 | S62: 0 | T62: 1 | U62: 0 | V62: 0 | W62: 1 | X62: 0 | Y62: 0
A63: ALMERIA | B63: LEMA | C63: 1 | J63: 1 | R63: 1 | S63: 0 | T63: 1 | U63: 1 | V63: 0 | W63: 0 | X63: 0 | Y63: 0
A64: ALMERIA | B64: OZEAM | C64: 1 | D64: 1 | R64: 1 | S64: 0 | T64: 1 | U64: 0 | V64: 0 | W64: 1 | X64: 0 | Y64: 0
A65: ALMERIA | B65: AQUAPARX | Z65: 1 | AB65: 1 | AN65: 1 | AP65: 0 | AQ65: 1 | AR65: 0 | AS65: 0 | AT65: 1 | AU65: 0 | AV65: 0
A66: ALMERIA | B66: ASTILLEROS HAZ | Z66: 1 | AE66: 1 | AO66: 1 | AP66: 0 | AQ66: 1 | AR66: 1 | AS66: 0 | AT66: 0 | AU66: 0 | AV66: 0
A67: ALMERIA | B67: BAYLINER | Z67: 1 | AG67: 1 | AO67: 1 | AP67: 0 | AQ67: 1 | AR67: 1 | AS67: 0 | AT67: 0 | AU67: 0 | AV67: 0
A68: ALMERIA | B68: OCEAN BAY BOATS | Z68: 1 | AC68: 1 | AN68: 1 | AP68: 0 | AQ68: 1 | AR68: 0 | AS68: 0 | AT68: 1 | AU68: 0 | AV68: 0
A69: ALMERIA | B69: YAMAHA | Z69: 1 | AM69: 1 | AN69: 1 | AP69: 0 | AQ69: 1 | AR69: 0 | AS69: 0 | AT69: 0 | AU69: 0 | AV69: 0
A70: AVILES | B70: JEMAR | Z70: 1 | AF70: 1 | AN70: 1 | AP70: 0 | AQ70: 1 | AR70: 0 | AS70: 0 | AT70: 0 | AU70: 1 | AV70: 0
A71: BARCELONA | B71: QUICKSILVER | C71: 4 | F71: 1 | I71: 2 | J71: 1 | Q71: 4 | S71: 0 | T71: 4 | U71: 3 | V71: 0 | W71: 1 | X71: 0 | Y71: 0
A72: BARCELONA | B72: BENETEAU | C72: 3 | J72: 2 | L72: 1 | R72: 3 | S72: 0 | T72: 3 | U72: 2 | V72: 0 | W72: 0 | X72: 0 | Y72: 1
A73: BARCELONA | B73: B2 MARINE | C73: 1 | I73: 1 | Q73: 1 | S73: 0 | T73: 1 | U73: 1 | V73: 0 | W73: 0 | X73: 0 | Y73: 0
A74: BARCELONA | B74: BAVARIA | C74: 1 | K74: 1 | Q74: 1 | S74: 0 | T74: 1 | U74: 0 | V74: 0 | W74: 0 | X74: 0 | Y74: 1 | Z74: 1 | AH74: 1 | AN74: 1 | AP74: 0 | AQ74: 1 | AR74: 1 | AS74: 0 | AT74: 0 | AU74: 0 | AV74: 0
A75: BARCELONA | B75: BOMBARDIER | C75: 1 | P75: 1 | R75: 1 | S75: 0 | T75: 1 | U75: 0 | V75: 0 | W75: 0 | X75: 0 | Y75: 0
A76: BARCELONA | B76: BOSTON WHALER | C76: 1 | K76: 1 | Q76: 1 | S76: 0 | T76: 1 | U76: 1 | V76: 0 | W76: 0 | X76: 0 | Y76: 0
A77: BARCELONA | B77: CRANCHI | C77: 1 | K77: 1 | Q77: 1 | S77: 0 | T77: 1 | U77: 1 | V77: 0 | W77: 0 | X77: 0 | Y77: 0 | Z77: 1 | AH77: 1 | AO77: 1 | AP77: 0 | AQ77: 1 | AR77: 1 | AS77: 0 | AT77: 0 | AU77: 0 | AV77: 0
A78: BARCELONA | B78: GIRBAU | C78: 1 | J78: 1 | R78: 1 | S78: 0 | T78: 1 | U78: 1 | V78: 0 | W78: 0 | X78: 0 | Y78: 0
A79: BARCELONA | B79: JEANNEAU | C79: 1 | K79: 1 | R79: 1 | S79: 0 | T79: 1 | U79: 1 | V79: 0 | W79: 0 | X79: 0 | Y79: 0 | Z79: 1 | AJ79: 1 | AO79: 1 | AP79: 0 | AQ79: 1 | AR79: 1 | AS79: 0 | AT79: 0 | AU79: 0 | AV79: 0
A80: BARCELONA | B80: OBE & CARMEN | C80: 1 | J80: 1 | R80: 1 | S80: 0 | T80: 1 | U80: 1 | V80: 0 | W80: 0 | X80: 0 | Y80: 0
A81: BARCELONA | B81: ORCA | C81: 1 | J81: 1 | Q81: 1 | S81: 0 | T81: 1 | U81: 1 | V81: 0 | W81: 0 | X81: 0 | Y81: 0
A82: BARCELONA | B82: PROTENDER | C82: 1 | E82: 1 | Q82: 1 | S82: 0 | T82: 1 | U82: 0 | V82: 0 | W82: 1 | X82: 0 | Y82: 0
A83: BARCELONA | B83: RODMAN | C83: 1 | K83: 1 | Q83: 1 | S83: 0 | T83: 1 | U83: 1 | V83: 0 | W83: 0 | X83: 0 | Y83: 0
A84: BARCELONA | B84: SACS | C84: 1 | J84: 1 | R84: 1 | S84: 0 | T84: 1 | U84: 0 | V84: 1 | W84: 0 | X84: 0 | Y84: 0
A85: BARCELONA | B85: SEA PRO | C85: 1 | J85: 1 | R85: 1 | S85: 0 | T85: 1 | U85: 1 | V85: 0 | W85: 0 | X85: 0 | Y85: 0
A86: BARCELONA | B86: AVON | Z86: 1 | AB86: 1 | AO86: 1 | AP86: 0 | AQ86: 1 | AR86: 0 | AS86: 1 | AT86: 0 | AU86: 0 | AV86: 0
A87: BARCELONA | B87: BAYLINER | Z87: 1 | AE87: 1 | AN87: 1 | AP87: 0 | AQ87: 1 | AR87: 1 | AS87: 0 | AT87: 0 | AU87: 0 | AV87: 0
A88: BARCELONA | B88: CANTIERI DEL PARDO | Z88: 1 | AI88: 1 | AO88: 1 | AP88: 0 | AQ88: 1 | AR88: 1 | AS88: 0 | AT88: 0 | AU88: 0 | AV88: 0
A89: BARCELONA | B89: ELAN MARINE | Z89: 1 | AH89: 1 | AN89: 1 | AP89: 0 | AQ89: 1 | AR89: 0 | AS89: 0 | AT89: 0 | AU89: 0 | AV89: 1
A90: BARCELONA | B90: ELIMAT | Z90: 1 | AF90: 1 | AO90: 1 | AP90: 1 | AQ90: 0 | AR90: 1 | AS90: 0 | AT90: 0 | AU90: 0 | AV90: 0
A91: BARCELONA | B91: FISHING | Z91: 1 | AG91: 1 | AN91: 1 | AP91: 1 | AQ91: 0 | AR91: 1 | AS91: 0 | AT91: 0 | AU91: 0 | AV91: 0
A92: BARCELONA | B92: NAUTICA ESPOSITO | Z92: 1 | AG92: 1 | AO92: 1 | AP92: 0 | AQ92: 1 | AR92: 1 | AS92: 0 | AT92: 0 | AU92: 0 | AV92: 0
A93: BARCELONA | B93: TARGA | Z93: 1 | AH93: 1 | AN93: 1 | AP93: 0 | AQ93: 1 | AR93: 1 | AS93: 0 | AT93: 0 | AU93: 0 | AV93: 0
A94: BARCELONA | B94: TWISTER BOATS | Z94: 3 | AD94: 1 | AF94: 2 | AN94: 3 | AP94: 0 | AQ94: 3 | AR94: 0 | AS94: 0 | AT94: 3 | AU94: 0 | AV94: 0
A95: BARCELONA | B95: YAMAHA | Z95: 1 | AM95: 1 | AO95: 1 | AP95: 1 | AQ95: 0 | AR95: 0 | AS95: 0 | AT95: 0 | AU95: 0 | AV95: 0
A96: BILBAO | B96: BOMBARDIER | C96: 4 | P96: 4 | Q96: 1 | R96: 3 | S96: 1 | T96: 3 | U96: 0 | V96: 0 | W96: 0 | X96: 0 | Y96: 0 | Z96: 3 | AM96: 3 | AO96: 3 | AP96: 0 | AQ96: 3 | AR96: 0 | AS96: 0 | AT96: 0 | AU96: 0 | AV96: 0
A97: BILBAO | B97: JEANNEAU | C97: 2 | J97: 1 | K97: 1 | R97: 2 | S97: 0 | T97: 2 | U97: 1 | V97: 0 | W97: 0 | X97: 0 | Y97: 1 | Z97: 1 | AI97: 1 | AO97: 1 | AP97: 0 | AQ97: 1 | AR97: 1 | AS97: 0 | AT97: 0 | AU97: 0 | AV97: 0
A98: BILBAO | B98: ASTILLEROS HAZ | C98: 1 | I98: 1 | R98: 1 | S98: 0 | T98: 1 | U98: 1 | V98: 0 | W98: 0 | X98: 0 | Y98: 0
A99: BILBAO | B99: HALLBERG RASSY | C99: 1 | K99: 1 | Q99: 1 | S99: 0 | T99: 1 | U99: 0 | V99: 0 | W99: 0 | X99: 0 | Y99: 1
A100: BILBAO | B100: HONDA HONWAVE | C100: 1 | E100: 1 | Q100: 1 | S100: 0 | T100: 1 | U100: 0 | V100: 0 | W100: 1 | X100: 0 | Y100: 0
A101: BILBAO | B101: J BOATS | C101: 1 | K101: 1 | Q101: 1 | S101: 1 | T101: 0 | U101: 0 | V101: 0 | W101: 0 | X101: 0 | Y101: 1
A102: BILBAO | B102: JACKSON KAYAK | C102: 1 | H102: 1 | Q102: 1 | S102: 0 | T102: 1 | U102: 1 | V102: 0 | W102: 0 | X102: 0 | Y102: 0
A103: BILBAO | B103: SEVIPOL | C103: 1 | K103: 1 | R103: 1 | S103: 0 | T103: 1 | U103: 0 | V103: 0 | W103: 0 | X103: 0 | Y103: 1
A104: BILBAO | B104: WILLIAMS MARINE | C104: 1 | E104: 1 | R104: 1 | S104: 0 | T104: 1 | U104: 0 | V104: 1 | W104: 0 | X104: 0 | Y104: 0
A105: BILBAO | B105: ZODIAC | C105: 1 | E105: 1 | R105: 1 | S105: 0 | T105: 1 | U105: 0 | V105: 1 | W105: 0 | X105: 0 | Y105: 0 | Z105: 1 | AF105: 1 | AO105: 1 | AP105: 0 | AQ105: 1 | AR105: 0 | AS105: 1 | AT105: 0 | AU105: 0 | AV105: 0
A106: BILBAO | B106: BENETEAU | Z106: 1 | AI106: 1 | AO106: 1 | AP106: 0 | AQ106: 1 | AR106: 0 | AS106: 0 | AT106: 0 | AU106: 0 | AV106: 1
A107: BILBAO | B107: KAWASAKI | Z107: 1 | AM107: 1 | AO107: 1 | AP107: 0 | AQ107: 1 | AR107: 0 | AS107: 0 | AT107: 0 | AU107: 0 | AV107: 0
A108: BILBAO | B108: PACIFIC CRAFT | Z108: 1 | AF108: 1 | AN108: 1 | AP108: 0 | AQ108: 1 | AR108: 1 | AS108: 0 | AT108: 0 | AU108: 0 | AV108: 0
A109: BILBAO | B109: POST CONSTRUCCION | Z109: 1 | AI109: 1 | AO109: 1 | AP109: 0 | AQ109: 1 | AR109: 1 | AS109: 0 | AT109: 0 | AU109: 0 | AV109: 0
A110: BILBAO | B110: QUICKSILVER | Z110: 1 | AG110: 1 | AO110: 1 | AP110: 0 | AQ110: 1 | AR110: 1 | AS110: 0 | AT110: 0 | AU110: 0 | AV110: 0
A111: BILBAO | B111: SABOR | Z111: 1 | AF111: 1 | AO111: 1 | AP111: 0 | AQ111: 1 | AR111: 1 | AS111: 0 | AT111: 0 | AU111: 0 | AV111: 0
A112: BILBAO | B112: SEA RIB´S | Z112: 1 | AF112: 1 | AN112: 1 | AP112: 0 | AQ112: 1 | AR112: 0 | AS112: 1 | AT112: 0 | AU112: 0 | AV112: 0
A113: BILBAO | B113: YAMAHA | Z113: 1 | AM113: 1 | AO113: 1 | AP113: 0 | AQ113: 1 | AR113: 0 | AS113: 0 | AT113: 0 | AU113: 0 | AV113: 0
A114: CADIZ | B114: BOMBARDIER | C114: 1 | P114: 1 | R114: 1 | S114: 0 | T114: 1 | U114: 0 | V114: 0 | W114: 0 | X114: 0 | Y114: 0 | Z114: 1 | AM114: 1 | AN114: 1 | AP114: 0 | AQ114: 1 | AR114: 0 | AS114: 0 | AT114: 0 | AU114: 0 | AV114: 0
A115: CADIZ | B115: DAGANZ | C115: 1 | H115: 1 | Q115: 1 | S115: 0 | T115: 1 | U115: 1 | V115: 0 | W115: 0 | X115: 0 | Y115: 0
A116: CADIZ | B116: MERCURY | C116: 1 | G116: 1 | Q116: 1 | S116: 0 | T116: 1 | U116: 0 | V116: 1 | W116: 0 | X116: 0 | Y116: 0 | Z116: 1 | AB116: 1 | AO116: 1 | AP116: 0 | AQ116: 1 | AR116: 0 | AS116: 0 | AT116: 1 | AU116: 0 | AV116: 0
A117: CADIZ | B117: MERY NAUTIC | C117: 1 | I117: 1 | Q117: 1 | S117: 0 | T117: 1 | U117: 1 | V117: 0 | W117: 0 | X117: 0 | Y117: 0
A118: CADIZ | B118: OBE & CARMEN | C118: 1 | H118: 1 | Q118: 1 | S118: 0 | T118: 1 | U118: 1 | V118: 0 | W118: 0 | X118: 0 | Y118: 0
A119: CADIZ | B119: SIN DATOS | C119: 1 | J119: 1 | R119: 1 | S119: 0 | T119: 1 | U119: 1 | V119: 0 | W119: 0 | X119: 0 | Y119: 0
A120: CADIZ | B120: ARVOR | Z120: 1 | AF120: 1 | AN120: 1 | AP120: 0 | AQ120: 1 | AR120: 1 | AS120: 0 | AT120: 0 | AU120: 0 | AV120: 0
A121: CADIZ | B121: COBRA INFLABLE | Z121: 1 | AF121: 1 | AO121: 1 | AP121: 0 | AQ121: 1 | AR121: 0 | AS121: 1 | AT121: 0 | AU121: 0 | AV121: 0
A122: CADIZ | B122: FIBER CRAFT | Z122: 1 | AD122: 1 | AN122: 1 | AP122: 0 | AQ122: 1 | AR122: 1 | AS122: 0 | AT122: 0 | AU122: 0 | AV122: 0
A123: CADIZ | B123: LODESTAR | Z123: 3 | AD123: 3 | AN123: 1 | AO123: 2 | AP123: 0 | AQ123: 3 | AR123: 0 | AS123: 3 | AT123: 0 | AU123: 0 | AV123: 0
A124: CADIZ | B124: OCQUETEAU | Z124: 1 | AG124: 1 | AN124: 1 | AP124: 0 | AQ124: 1 | AR124: 1 | AS124: 0 | AT124: 0 | AU124: 0 | AV124: 0
A125: CADIZ | B125: ORCA | Z125: 1 | AF125: 1 | AN125: 1 | AP125: 0 | AQ125: 1 | AR125: 1 | AS125: 0 | AT125: 0 | AU125: 0 | AV125: 0
A126: CADIZ | B126: ZODIAC | Z126: 1 | AA126: 1 | AO126: 1 | AP126: 0 | AQ126: 1 | AR126: 0 | AS126: 0 | AT126: 1 | AU126: 0 | AV126: 0
A127: CARTAGENA | B127: BOMBARDIER | C127: 7 | P127: 7 | Q127: 3 | R127: 4 | S127: 5 | T127: 2 | U127: 0 | V127: 0 | W127: 0 | X127: 0 | Y127: 0 | Z127: 1 | AM127: 1 | AO127: 1 | AP127: 0 | AQ127: 1 | AR127: 0 | AS127: 0 | AT127: 0 | AU127: 0 | AV127: 0
A128: CARTAGENA | B128: OZEAM | C128: 2 | D128: 1 | E128: 1 | Q128: 2 | S128: 0 | T128: 2 | U128: 0 | V128: 0 | W128: 2 | X128: 0 | Y128: 0 | Z128: 2 | AB128: 2 | AN128: 2 | AP128: 0 | AQ128: 2 | AR128: 0 | AS128: 0 | AT128: 2 | AU128: 0 | AV128: 0
A129: CARTAGENA | B129: DIPOL | C129: 1 | I129: 1 | Q129: 1 | S129: 0 | T129: 1 | U129: 1 | V129: 0 | W129: 0 | X129: 0 | Y129: 0
A130: CARTAGENA | B130: JOUET | C130: 1 | K130: 1 | Q130: 1 | S130: 0 | T130: 1 | U130: 0 | V130: 0 | W130: 0 | X130: 0 | Y130: 1
A131: CARTAGENA | B131: REMUS | C131: 1 | I131: 1 | R131: 1 | S131: 0 | T131: 1 | U131: 1 | V131: 0 | W131: 0 | X131: 0 | Y131: 0
A132: CARTAGENA | B132: SEA DOO | C132: 1 | H132: 1 | Q132: 1 | S132: 0 | T132: 1 | U132: 1 | V132: 0 | W132: 0 | X132: 0 | Y132: 0
A133: CARTAGENA | B133: ZODIAC | C133: 1 | G133: 1 | Q133: 1 | S133: 0 | T133: 1 | U133: 0 | V133: 1 | W133: 0 | X133: 0 | Y133: 0 | Z133: 1 | AC133: 1 | AN133: 1 | AP133: 0 | AQ133: 1 | AR133: 0 | AS133: 1 | AT133: 0 | AU133: 0 | AV133: 0
A134: CARTAGENA | B134: BENETEAU | Z134: 1 | AG134: 1 | AN134: 1 | AP134: 0 | AQ134: 1 | AR134: 1 | AS134: 0 | AT134: 0 | AU134: 0 | AV134: 0
A135: CARTAGENA | B135: MARETI | Z135: 2 | AD135: 2 | AO135: 2 | AP135: 0 | AQ135: 2 | AR135: 2 | AS135: 0 | AT135: 0 | AU135: 0 | AV135: 0
A136: CARTAGENA | B136: OCEAN BAY BOATS | Z136: 2 | AC136: 2 | AN136: 2 | AP136: 0 | AQ136: 2 | AR136: 0 | AS136: 0 | AT136: 2 | AU136: 0 | AV136: 0
A137: CARTAGENA | B137: WALKER BAY | Z137: 1 | AA137: 1 | AN137: 1 | AP137: 0 | AQ137: 1 | AR137: 1 | AS137: 0 | AT137: 0 | AU137: 0 | AV137: 0
A138: CASTELLON | B138: BOMBARDIER | C138: 4 | P138: 4 | Q138: 1 | R138: 3 | S138: 1 | T138: 3 | U138: 0 | V138: 0 | W138: 0 | X138: 0 | Y138: 0
A139: CASTELLON | B139: JEANNEAU | C139: 2 | J139: 2 | R139: 2 | S139: 0 | T139: 2 | U139: 2 | V139: 0 | W139: 0 | X139: 0 | Y139: 0
A140: CASTELLON | B140: DIPOL | C140: 1 | G140: 1 | Q140: 1 | S140: 0 | T140: 1 | U140: 1 | V140: 0 | W140: 0 | X140: 0 | Y140: 0
A141: CASTELLON | B141: EOLO | C141: 1 | I141: 1 | R141: 1 | S141: 0 | T141: 1 | U141: 1 | V141: 0 | W141: 0 | X141: 0 | Y141: 0
A142: CASTELLON | B142: J BOATS | C142: 1 | K142: 1 | R142: 1 | S142: 0 | T142: 1 | U142: 0 | V142: 0 | W142: 0 | X142: 0 | Y142: 1
A143: CASTELLON | B143: KYBIN | C143: 1 | E143: 1 | R143: 1 | S143: 0 | T143: 1 | U143: 0 | V143: 0 | W143: 1 | X143: 0 | Y143: 0
A144: CASTELLON | B144: PROTENDER | C144: 1 | D144: 1 | Q144: 1 | S144: 0 | T144: 1 | U144: 0 | V144: 0 | W144: 1 | X144: 0 | Y144: 0
A145: CASTELLON | B145: BENETEAU | Z145: 1 | AG145: 1 | AO145: 1 | AP145: 0 | AQ145: 1 | AR145: 1 | AS145: 0 | AT145: 0 | AU145: 0 | AV145: 0
A146: GIJON | B146: FOUR WINNS | C146: 1 | I146: 1 | R146: 1 | S146: 0 | T146: 1 | U146: 1 | V146: 0 | W146: 0 | X146: 0 | Y146: 0
A147: GIJON | B147: QUICKSILVER | Z147: 1 | AF147: 1 | AO147: 1 | AP147: 0 | AQ147: 1 | AR147: 1 | AS147: 0 | AT147: 0 | AU147: 0 | AV147: 0
A148: GIJON | B148: SENTINEL | Z148: 2 | AG148: 2 | AO148: 2 | AP148: 0 | AQ148: 2 | AR148: 2 | AS148: 0 | AT148: 0 | AU148: 0 | AV148: 0
A149: GIJON | B149: ZODIAC | Z149: 1 | AD149: 1 | AN149: 1 | AP149: 0 | AQ149: 1 | AR149: 0 | AS149: 1 | AT149: 0 | AU149: 0 | AV149: 0
A150: HUELVA | B150: BOMBARDIER | C150: 5 | P150: 5 | Q150: 4 | R150: 1 | S150: 0 | T150: 5 | U150: 0 | V150: 0 | W150: 0 | X150: 0 | Y150: 0
A151: HUELVA | B151: COBRA INFLABLE | C151: 3 | F151: 3 | Q151: 3 | S151: 3 | T151: 0 | U151: 0 | V151: 0 | W151: 3 | X151: 0 | Y151: 0
A152: HUELVA | B152: OZEAM | C152: 1 | D152: 1 | Q152: 1 | S152: 0 | T152: 1 | U152: 0 | V152: 0 | W152: 1 | X152: 0 | Y152: 0
A153: HUELVA | B153: SIN DATOS | C153: 1 | G153: 1 | Q153: 1 | S153: 0 | T153: 1 | U153: 0 | V153: 1 | W153: 0 | X153: 0 | Y153: 0
A154: HUELVA | B154: WHALY | Z154: 1 | AB154: 1 | AN154: 1 | AP154: 0 | AQ154: 1 | AR154: 1 | AS154: 0 | AT154: 0 | AU154: 0 | AV154: 0
A155: HUELVA | B155: YAMAHA | Z155: 1 | AM155: 1 | AN155: 1 | AP155: 0 | AQ155: 1 | AR155: 0 | AS155: 0 | AT155: 0 | AU155: 0 | AV155: 0
A156: LAS PALMAS | B156: APEX INFLATABLES | C156: 2 | F156: 2 | Q156: 2 | S156: 0 | T156: 2 | U156: 0 | V156: 2 | W156: 0 | X156: 0 | Y156: 0
A157: LAS PALMAS | B157: HONDA HONWAVE | C157: 2 | F157: 2 | Q157: 2 | S157: 0 | T157: 2 | U157: 0 | V157: 0 | W157: 2 | X157: 0 | Y157: 0
A158: LAS PALMAS | B158: LOMAC | C158: 2 | F158: 2 | Q158: 2 | S158: 2 | T158: 0 | U158: 0 | V158: 2 | W158: 0 | X158: 0 | Y158: 0
A159: LAS PALMAS | B159: AMANAY | C159: 1 | G159: 1 | Q159: 1 | S159: 0 | T159: 1 | U159: 0 | V159: 1 | W159: 0 | X159: 0 | Y159: 0
A160: LAS PALMAS | B160: BAVARIA | C160: 1 | K160: 1 | Q160: 1 | S160: 1 | T160: 0 | U160: 1 | V160: 0 | W160: 0 | X160: 0 | Y160: 0
A161: LAS PALMAS | B161: SAVER | C161: 1 | I161: 1 | Q161: 1 | S161: 0 | T161: 1 | U161: 1 | V161: 0 | W161: 0 | X161: 0 | Y161: 0
A162: LAS PALMAS | B162: UNIESSE | C162: 1 | L162: 1 | Q162: 1 | S162: 1 | T162: 0 | U162: 1 | V162: 0 | W162: 0 | X162: 0 | Y162: 0
A163: LAS PALMAS | B163: ZURITA | C163: 1 | E163: 1 | Q163: 1 | S163: 0 | T163: 1 | U163: 0 | V163: 0 | W163: 1 | X163: 0 | Y163: 0
A164: LAS PALMAS | B164: FIBER CRAFT | Z164: 1 | AE164: 1 | AN164: 1 | AP164: 0 | AQ164: 1 | AR164: 1 | AS164: 0 | AT164: 0 | AU164: 0 | AV164: 0
A165: LAS PALMAS | B165: FISHERPRO | Z165: 2 | AB165: 2 | AN165: 2 | AP165: 0 | AQ165: 2 | AR165: 0 | AS165: 0 | AT165: 2 | AU165: 0 | AV165: 0
A166: LAS PALMAS | B166: HYDRO FORCE | Z166: 2 | AB166: 2 | AN166: 2 | AP166: 0 | AQ166: 2 | AR166: 0 | AS166: 0 | AT166: 2 | AU166: 0 | AV166: 0
A167: LAS PALMAS | B167: MERCURY | Z167: 2 | AA167: 1 | AE167: 1 | AN167: 2 | AP167: 0 | AQ167: 2 | AR167: 0 | AS167: 0 | AT167: 2 | AU167: 0 | AV167: 0
A168: LAS PALMAS | B168: SIN DATOS | Z168: 1 | AG168: 1 | AN168: 1 | AP168: 1 | AQ168: 0 | AR168: 1 | AS168: 0 | AT168: 0 | AU168: 0 | AV168: 0
A169: LUGO | B169: JEANNEAU | C169: 1 | I169: 1 | R169: 1 | S169: 0 | T169: 1 | U169: 1 | V169: 0 | W169: 0 | X169: 0 | Y169: 0
A170: LUGO | B170: SENTINEL | Z170: 1 | AD170: 1 | AO170: 1 | AP170: 0 | AQ170: 1 | AR170: 1 | AS170: 0 | AT170: 0 | AU170: 0 | AV170: 0
A171: MALAGA | B171: DIPOL | C171: 2 | F171: 2 | Q171: 2 | S171: 2 | T171: 0 | U171: 2 | V171: 0 | W171: 0 | X171: 0 | Y171: 0
A172: MALAGA | B172: QUICKSILVER | C172: 2 | E172: 1 | I172: 1 | Q172: 1 | R172: 1 | S172: 0 | T172: 2 | U172: 1 | V172: 0 | W172: 1 | X172: 0 | Y172: 0
A173: MALAGA | B173: DUROMAR | C173: 1 | E173: 1 | Q173: 1 | S173: 0 | T173: 1 | U173: 0 | V173: 0 | W173: 1 | X173: 0 | Y173: 0
A174: MALAGA | B174: GRAUVELL | C174: 1 | E174: 1 | Q174: 1 | S174: 0 | T174: 1 | U174: 0 | V174: 0 | W174: 1 | X174: 0 | Y174: 0
A175: MALAGA | B175: KARNIC | C175: 1 | I175: 1 | Q175: 1 | S175: 0 | T175: 1 | U175: 1 | V175: 0 | W175: 0 | X175: 0 | Y175: 0
A176: MALAGA | B176: LA NORIA | C176: 1 | E176: 1 | Q176: 1 | S176: 0 | T176: 1 | U176: 1 | V176: 0 | W176: 0 | X176: 0 | Y176: 0
A177: MALAGA | B177: SEA RAY | C177: 1 | J177: 1 | R177: 1 | S177: 0 | T177: 1 | U177: 1 | V177: 0 | W177: 0 | X177: 0 | Y177: 0 | Z177: 1 | AJ177: 1 | AO177: 1 | AP177: 0 | AQ177: 1 | AR177: 1 | AS177: 0 | AT177: 0 | AU177: 0 | AV177: 0
A178: MALAGA | B178: SEA RIB´S | C178: 1 | G178: 1 | Q178: 1 | S178: 1 | T178: 0 | U178: 0 | V178: 1 | W178: 0 | X178: 0 | Y178: 0
A179: MALAGA | B179: SIN DATOS | C179: 1 | I179: 1 | Q179: 1 | S179: 0 | T179: 1 | U179: 1 | V179: 0 | W179: 0 | X179: 0 | Y179: 0
A180: MALAGA | B180: TRIMARCHI ANTONINO ANDREA | C180: 1 | I180: 1 | Q180: 1 | S180: 1 | T180: 0 | U180: 1 | V180: 0 | W180: 0 | X180: 0 | Y180: 0
A181: MALAGA | B181: WRIGHTON | C181: 1 | K181: 1 | Q181: 1 | S181: 0 | T181: 1 | U181: 0 | V181: 0 | W181: 0 | X181: 0 | Y181: 1
A182: MALAGA | B182: BOMBARDIER | Z182: 3 | AM182: 3 | AN182: 3 | AP182: 0 | AQ182: 3 | AR182: 0 | AS182: 0 | AT182: 0 | AU182: 0 | AV182: 0
A183: MALAGA | B183: ZODIAC | Z183: 2 | AB183: 2 | AN183: 1 | AO183: 1 | AP183: 0 | AQ183: 2 | AR183: 0 | AS183: 1 | AT183: 1 | AU183: 0 | AV183: 0
A184: MELILLA | B184: YAMAHA | C184: 2 | P184: 2 | Q184: 2 | S184: 0 | T184: 2 | U184: 0 | V184: 0 | W184: 0 | X184: 0 | Y184: 0 | Z184: 1 | AM184: 1 | AN184: 1 | AP184: 0 | AQ184: 1 | AR184: 0 | AS184: 0 | AT184: 0 | AU184: 0 | AV184: 0
A185: MOTRIL | B185: BOMBARDIER | C185: 1 | P185: 1 | Q185: 1 | S185: 0 | T185: 1 | U185: 0 | V185: 0 | W185: 0 | X185: 0 | Y185: 0 | Z185: 4 | AM185: 4 | AN185: 3 | AO185: 1 | AP185: 0 | AQ185: 4 | AR185: 0 | AS185: 0 | AT185: 0 | AU185: 0 | AV185: 0
A186: MOTRIL | B186: HONDA HONWAVE | Z186: 1 | AC186: 1 | AO186: 1 | AP186: 0 | AQ186: 1 | AR186: 0 | AS186: 0 | AT186: 1 | AU186: 0 | AV186: 0
A187: MOTRIL | B187: OCEAN BAY BOATS | Z187: 1 | AC187: 1 | AN187: 1 | AP187: 0 | AQ187: 1 | AR187: 0 | AS187: 0 | AT187: 1 | AU187: 0 | AV187: 0
A188: PALAMOS | B188: FAETON | C188: 1 | J188: 1 | R188: 1 | S188: 0 | T188: 1 | U188: 1 | V188: 0 | W188: 0 | X188: 0 | Y188: 0
A189: PALAMOS | B189: HARMONY | C189: 1 | L189: 1 | Q189: 1 | S189: 1 | T189: 0 | U189: 1 | V189: 0 | W189: 0 | X189: 0 | Y189: 0
A190: PALAMOS | B190: HONDA HONWAVE | C190: 1 | D190: 1 | Q190: 1 | S190: 0 | T190: 1 | U190: 0 | V190: 0 | W190: 1 | X190: 0 | Y190: 0
A191: PALAMOS | B191: SUZUMAR | C191: 1 | D191: 1 | R191: 1 | S191: 0 | T191: 1 | U191: 0 | V191: 0 | W191: 1 | X191: 0 | Y191: 0
A192: PALAMOS | B192: BENETEAU | Z192: 1 | AG192: 1 | AN192: 1 | AP192: 1 | AQ192: 0 | AR192: 1 | AS192: 0 | AT192: 0 | AU192: 0 | AV192: 0
A193: PALAMOS | B193: JEANNEAU | Z193: 1 | AG193: 1 | AO193: 1 | AP193: 0 | AQ193: 1 | AR193: 1 | AS193: 0 | AT193: 0 | AU193: 0 | AV193: 0
A194: PALAMOS | B194: OCEAN BAY BOATS | Z194: 1 | AC194: 1 | AN194: 1 | AP194: 0 | AQ194: 1 | AR194: 0 | AS194: 0 | AT194: 1 | AU194: 0 | AV194: 0
A195: PALAMOS | B195: QUICKSILVER | Z195: 1 | AG195: 1 | AO195: 1 | AP195: 0 | AQ195: 1 | AR195: 1 | AS195: 0 | AT195: 0 | AU195: 0 | AV195: 0
A196: PALAMOS | B196: VORAZ | Z196: 1 | AE196: 1 | AN196: 1 | AP196: 1 | AQ196: 0 | AR196: 1 | AS196: 0 | AT196: 0 | AU196: 0 | AV196: 0
A197: PALMA MALLORCA | B197: BOMBARDIER | C197: 3 | P197: 3 | Q197: 3 | S197: 0 | T197: 3 | U197: 0 | V197: 0 | W197: 0 | X197: 0 | Y197: 0
A198: PALMA MALLORCA | B198: ZODIAC | C198: 3 | F198: 1 | I198: 1 | J198: 1 | R198: 3 | S198: 0 | T198: 3 | U198: 0 | V198: 2 | W198: 1 | X198: 0 | Y198: 0
A199: PALMA MALLORCA | B199: CANTIERI CAPELLI | C199: 2 | J199: 1 | K199: 1 | Q199: 2 | S199: 1 | T199: 1 | U199: 0 | V199: 2 | W199: 0 | X199: 0 | Y199: 0 | Z199: 1 | AH199: 1 | AO199: 1 | AP199: 0 | AQ199: 1 | AR199: 0 | AS199: 1 | AT199: 0 | AU199: 0 | AV199: 0
A200: PALMA MALLORCA | B200: DUFOUR | C200: 1 | K200: 1 | Q200: 1 | S200: 0 | T200: 1 | U200: 0 | V200: 0 | W200: 0 | X200: 0 | Y200: 1
... 82 more rows

Sheet Hoja9 (hidden)
A1: CAPITANIA | B1: Numero Total | C1: <03 | D1: <03,5 | E1: <04 | F1: <04,5 | G1: <05 | H1: <06 | I1: <08 | J1: <12 | K1: <15 | L1: <20 | M1: <24 | N1: >=24 | O1: MOTOS | P1: Misma Provincia | Q1: Diferente Provincia | R1: Lista 6 | S1: Lista 7 | T1: RIGIDO | U1: SEMIRIGIDO | V1: NEUMATICO | W1: Sin Datos | X1: VELA | Y1: Total ANT | Z1: 03 ANT | AA1: 035 ANT | AB1: 04 ANT | AC1: 045 ANT | AD1: 05 ANT | AE1: 06 ANT | AF1: 075 ANT | AG1: 12 ANT | AH1: 15 ANT | AI1: 20 ANT | AJ1: 24 ANT | AK1: >24 ANT | AL1: Motos ANT | AM1: Misma ANT | AN1: Dif ANT | AO1: 6 ANT | AP1: 7 ANT | AQ1: Rig ANT | AR1: Semi ANT | AS1: neu ANT | AT1: sd ANT | AU1: Vela ANT
A2: SIN DATOS | B2: 2 | D2: 1 | H2: 1 | Q2: 2 | R2: 0 | S2: 2 | T2: 0 | U2: 1 | V2: 1 | W2: 0 | X2: 0 | Y2: 4 | AB2: 1 | AC2: 2 | AD2: 1 | AN2: 4 | AO2: 0 | AP2: 4 | AQ2: 1 | AR2: 2 | AS2: 1 | AT2: 0 | AU2: 0
A3: Alicante | B3: 8 | C3: 1 | H3: 1 | I3: 3 | O3: 3 | P3: 7 | Q3: 1 | R3: 5 | S3: 3 | T3: 3 | U3: 1 | V3: 0 | W3: 0 | X3: 1 | Y3: 19 | AA3: 3 | AC3: 3 | AD3: 1 | AE3: 5 | AG3: 2 | AH3: 1 | AL3: 4 | AM3: 14 | AN3: 5 | AO3: 0 | AP3: 19 | AQ3: 8 | AR3: 3 | AS3: 2 | AT3: 0 | AU3: 2
A4: Almería | B4: 9 | C4: 2 | D4: 1 | H4: 3 | O4: 3 | P4: 6 | Q4: 3 | R4: 1 | S4: 8 | T4: 1 | U4: 2 | V4: 3 | W4: 0 | X4: 0 | Y4: 4 | AA4: 1 | AB4: 1 | AE4: 1 | AL4: 1 | AM4: 3 | AN4: 1 | AO4: 0 | AP4: 4 | AQ4: 0 | AR4: 1 | AS4: 2 | AT4: 0 | AU4: 0
A5: Asturias (Oviedo) | B5: 1 | I5: 1 | Q5: 1 | R5: 1 | S5: 0 | T5: 1 | U5: 0 | V5: 0 | W5: 0 | X5: 0 | Y5: 5 | AC5: 2 | AE5: 2 | AL5: 1 | AM5: 2 | AN5: 3 | AO5: 0 | AP5: 5 | AQ5: 2 | AR5: 1 | AS5: 0 | AT5: 1 | AU5: 0
A6: Badajoz | B6: 1 | O6: 1 | Q6: 1 | R6: 0 | S6: 1 | T6: 0 | U6: 0 | V6: 0 | W6: 0 | X6: 0 | Y6: 1 | Z6: 1 | AN6: 1 | AO6: 0 | AP6: 1 | AQ6: 0 | AR6: 0 | AS6: 1 | AT6: 0 | AU6: 0
A7: Baleares (Palma de Mallorca) | B7: 27 | D7: 1 | H7: 7 | I7: 10 | J7: 5 | O7: 4 | P7: 13 | Q7: 14 | R7: 3 | S7: 24 | T7: 16 | U7: 4 | V7: 0 | W7: 0 | X7: 3 | Y7: 27 | AC7: 3 | AD7: 2 | AE7: 6 | AF7: 8 | AG7: 2 | AH7: 4 | AI7: 1 | AL7: 1 | AM7: 16 | AN7: 11 | AO7: 2 | AP7: 25 | AQ7: 20 | AR7: 3 | AS7: 0 | AT7: 0 | AU7: 3
A8: Barcelona | B8: 16 | C8: 2 | D8: 1 | E8: 1 | H8: 4 | I8: 3 | J8: 5 | P8: 11 | Q8: 5 | R8: 0 | S8: 16 | T8: 9 | U8: 2 | V8: 3 | W8: 0 | X8: 2 | Y8: 14 | AC8: 1 | AD8: 2 | AE8: 5 | AF8: 3 | AG8: 3 | AM8: 8 | AN8: 6 | AO8: 1 | AP8: 13 | AQ8: 10 | AR8: 0 | AS8: 3 | AT8: 0 | AU8: 1
A9: Burgos | B9: 1 | J9: 1 | Q9: 1 | R9: 0 | S9: 1 | T9: 0 | U9: 0 | V9: 0 | W9: 0 | X9: 1
A10: Cáceres | Y10: 1 | AA10: 1 | AN10: 1 | AO10: 0 | AP10: 1 | AQ10: 1 | AR10: 0 | AS10: 0 | AT10: 0 | AU10: 0
A11: Cádiz | B11: 6 | F11: 1 | G11: 2 | H11: 1 | I11: 1 | O11: 1 | P11: 5 | Q11: 1 | R11: 0 | S11: 6 | T11: 3 | U11: 2 | V11: 0 | W11: 0 | X11: 0 | Y11: 13 | AC11: 4 | AE11: 3 | AF11: 4 | AL11: 2 | AM11: 9 | AN11: 4 | AO11: 0 | AP11: 13 | AQ11: 7 | AR11: 3 | AS11: 1 | AT11: 0 | AU11: 0
A12: Cantabria (Santander) | B12: 7 | D12: 1 | F12: 1 | G12: 1 | H12: 2 | I12: 2 | P12: 6 | Q12: 1 | R12: 0 | S12: 7 | T12: 5 | U12: 1 | V12: 1 | W12: 0 | X12: 0 | Y12: 2 | AE12: 2 | AM12: 1 | AN12: 1 | AO12: 0 | AP12: 2 | AQ12: 2 | AR12: 0 | AS12: 0 | AT12: 0 | AU12: 0
A13: Castellón | B13: 3 | C13: 1 | F13: 1 | O13: 1 | P13: 3 | R13: 1 | S13: 2 | T13: 1 | U13: 0 | V13: 1 | W13: 0 | X13: 0 | Y13: 1 | AL13: 1 | AN13: 1 | AO13: 0 | AP13: 1 | AQ13: 0 | AR13: 0 | AS13: 0 | AT13: 0 | AU13: 0
A14: Córdoba | B14: 1 | G14: 1 | Q14: 1 | R14: 0 | S14: 1 | T14: 1 | U14: 0 | V14: 0 | W14: 0 | X14: 0 | Y14: 1 | AA14: 1 | AN14: 1 | AO14: 0 | AP14: 1 | AQ14: 0 | AR14: 0 | AS14: 1 | AT14: 0 | AU14: 0
A15: Coruña | B15: 8 | F15: 1 | G15: 1 | H15: 3 | I15: 1 | O15: 2 | P15: 2 | Q15: 6 | R15: 0 | S15: 8 | T15: 6 | U15: 0 | V15: 0 | W15: 0 | X15: 0 | Y15: 7 | AB15: 4 | AE15: 1 | AG15: 1 | AL15: 1 | AM15: 2 | AN15: 5 | AO15: 0 | AP15: 7 | AQ15: 4 | AR15: 1 | AS15: 0 | AT15: 0 | AU15: 1
A16: Gerona | B16: 5 | C16: 1 | I16: 2 | K16: 2 | P16: 2 | Q16: 3 | R16: 1 | S16: 4 | T16: 2 | U16: 1 | V16: 1 | W16: 0 | X16: 1 | Y16: 7 | AA16: 1 | AB16: 1 | AD16: 2 | AE16: 1 | AF16: 1 | AG16: 1 | AM16: 3 | AN16: 4 | AO16: 3 | AP16: 4 | AQ16: 5 | AR16: 1 | AS16: 1 | AT16: 0 | AU16: 0
A17: Granada | B17: 3 | I17: 1 | J17: 1 | O17: 1 | P17: 1 | Q17: 2 | R17: 1 | S17: 2 | T17: 2 | U17: 0 | V17: 0 | W17: 0 | X17: 0 | Y17: 7 | AB17: 3 | AF17: 1 | AL17: 3 | AM17: 4 | AN17: 3 | AO17: 0 | AP17: 7 | AQ17: 3 | AR17: 0 | AS17: 1 | AT17: 0 | AU17: 0
A18: Guadalajara | B18: 1 | O18: 1 | Q18: 1 | R18: 0 | S18: 1 | T18: 0 | U18: 0 | V18: 0 | W18: 0 | X18: 0
A19: Guipúzcoa (San Sebastián) | B19: 1 | H19: 1 | Q19: 1 | R19: 0 | S19: 1 | T19: 1 | U19: 0 | V19: 0 | W19: 0 | X19: 0 | Y19: 1 | AB19: 1 | AN19: 1 | AO19: 0 | AP19: 1 | AQ19: 0 | AR19: 1 | AS19: 0 | AT19: 0 | AU19: 0
A20: Huelva | B20: 13 | C20: 1 | E20: 3 | F20: 2 | G20: 1 | I20: 2 | O20: 4 | P20: 9 | Q20: 4 | R20: 3 | S20: 10 | T20: 4 | U20: 1 | V20: 4 | W20: 0 | X20: 0 | Y20: 5 | AA20: 1 | AC20: 1 | AG20: 1 | AL20: 2 | AM20: 2 | AN20: 3 | AO20: 1 | AP20: 4 | AQ20: 3 | AR20: 0 | AS20: 0 | AT20: 0 | AU20: 0
A21: Jaén | Y21: 1 | AF21: 1 | AN21: 1 | AO21: 0 | AP21: 1 | AQ21: 1 | AR21: 0 | AS21: 0 | AT21: 0 | AU21: 0
A22: La Rioja (Logroño) | B22: 2 | C22: 1 | J22: 1 | Q22: 2 | R22: 0 | S22: 2 | T22: 0 | U22: 0 | V22: 1 | W22: 0 | X22: 1 | Y22: 1 | AE22: 1 | AN22: 1 | AO22: 0 | AP22: 1 | AQ22: 1 | AR22: 0 | AS22: 0 | AT22: 0 | AU22: 0
A23: Las Palmas | B23: 15 | D23: 1 | E23: 6 | F23: 1 | H23: 2 | I23: 1 | J23: 2 | K23: 1 | O23: 1 | P23: 11 | Q23: 4 | R23: 6 | S23: 9 | T23: 6 | U23: 5 | V23: 3 | W23: 0 | X23: 0 | Y23: 10 | Z23: 1 | AA23: 4 | AD23: 2 | AF23: 1 | AH23: 1 | AL23: 1 | AM23: 8 | AN23: 2 | AO23: 1 | AP23: 9 | AQ23: 3 | AR23: 0 | AS23: 6 | AT23: 0 | AU23: 0
A24: León | B24: 1 | H24: 1 | Q24: 1 | R24: 0 | S24: 1 | T24: 1 | U24: 0 | V24: 0 | W24: 0 | X24: 0 | Y24: 1 | AE24: 1 | AN24: 1 | AO24: 0 | AP24: 1 | AQ24: 1 | AR24: 0 | AS24: 0 | AT24: 0 | AU24: 0
A25: Lérida | B25: 1 | E25: 1 | Q25: 1 | R25: 0 | S25: 1 | T25: 0 | U25: 0 | V25: 1 | W25: 0 | X25: 0 | Y25: 1 | AF25: 1 | AN25: 1 | AO25: 0 | AP25: 1 | AQ25: 1 | AR25: 0 | AS25: 0 | AT25: 0 | AU25: 0
A26: Madrid | B26: 11 | D26: 2 | E26: 2 | H26: 3 | I26: 1 | K26: 1 | O26: 2 | Q26: 11 | R26: 1 | S26: 10 | T26: 3 | U26: 2 | V26: 2 | W26: 0 | X26: 2 | Y26: 11 | Z26: 1 | AA26: 1 | AB26: 1 | AE26: 1 | AF26: 2 | AG26: 1 | AI26: 2 | AL26: 2 | AN26: 11 | AO26: 0 | AP26: 11 | AQ26: 5 | AR26: 0 | AS26: 2 | AT26: 0 | AU26: 2
A27: Málaga | B27: 21 | D27: 4 | E27: 2 | F27: 1 | G27: 1 | H27: 7 | I27: 1 | J27: 1 | L27: 1 | O27: 3 | P27: 11 | Q27: 10 | R27: 5 | S27: 16 | T27: 12 | U27: 2 | V27: 3 | W27: 0 | X27: 1 | Y27: 8 | AA27: 1 | AH27: 2 | AL27: 5 | AM27: 4 | AN27: 4 | AO27: 0 | AP27: 8 | AQ27: 2 | AR27: 1 | AS27: 0 | AT27: 0 | AU27: 0
A28: Melilla | B28: 2 | O28: 2 | P28: 2 | R28: 0 | S28: 2 | T28: 0 | U28: 0 | V28: 0 | W28: 0 | X28: 0 | Y28: 1 | AL28: 1 | AM28: 1 | AO28: 0 | AP28: 1 | AQ28: 0 | AR28: 0 | AS28: 0 | AT28: 0 | AU28: 0
A29: Murcia | B29: 14 | C29: 1 | D29: 1 | F29: 1 | G29: 2 | H29: 4 | I29: 1 | J29: 1 | O29: 3 | P29: 9 | Q29: 5 | R29: 3 | S29: 11 | T29: 4 | U29: 4 | V29: 2 | W29: 0 | X29: 1 | Y29: 11 | Z29: 1 | AA29: 2 | AB29: 3 | AE29: 3 | AF29: 2 | AM29: 7 | AN29: 4 | AO29: 0 | AP29: 11 | AQ29: 4 | AR29: 2 | AS29: 4 | AT29: 0 | AU29: 1
A30: Navarra (Pamplona) | Y30: 3 | AB30: 2 | AF30: 1 | AN30: 3 | AO30: 0 | AP30: 3 | AQ30: 1 | AR30: 1 | AS30: 1 | AT30: 0 | AU30: 0
A31: Pontevedra | B31: 14 | E31: 1 | F31: 1 | G31: 2 | H31: 2 | I31: 2 | J31: 3 | O31: 3 | P31: 11 | Q31: 3 | R31: 2 | S31: 12 | T31: 7 | U31: 2 | V31: 0 | W31: 0 | X31: 2 | Y31: 5 | AE31: 1 | AF31: 1 | AH31: 1 | AL31: 2 | AM31: 5 | AO31: 0 | AP31: 5 | AQ31: 2 | AR31: 1 | AS31: 0 | AT31: 0 | AU31: 0
A32: Santa Cruz de Tenerife | B32: 10 | D32: 1 | E32: 1 | G32: 1 | H32: 3 | I32: 4 | P32: 6 | Q32: 4 | R32: 1 | S32: 9 | T32: 5 | U32: 2 | V32: 2 | W32: 1 | X32: 0 | Y32: 1 | AC32: 1 | AM32: 1 | AO32: 1 | AP32: 0 | AQ32: 1 | AR32: 0 | AS32: 0 | AT32: 0 | AU32: 0
A33: Sevilla | B33: 5 | G33: 1 | H33: 1 | I33: 1 | O33: 2 | P33: 1 | Q33: 4 | R33: 0 | S33: 5 | T33: 3 | U33: 0 | V33: 0 | W33: 0 | X33: 0 | Y33: 6 | Z33: 1 | AA33: 2 | AB33: 2 | AC33: 1 | AM33: 5 | AN33: 1 | AO33: 1 | AP33: 5 | AQ33: 1 | AR33: 0 | AS33: 5 | AT33: 0 | AU33: 0
A34: Tarragona | B34: 3 | E34: 1 | I34: 1 | K34: 1 | P34: 2 | Q34: 1 | R34: 0 | S34: 3 | T34: 3 | U34: 0 | V34: 0 | W34: 0 | X34: 0 | Y34: 3 | AF34: 2 | AH34: 1 | AM34: 2 | AN34: 1 | AO34: 0 | AP34: 3 | AQ34: 3 | AR34: 0 | AS34: 0 | AT34: 0 | AU34: 0
A35: Valencia | B35: 6 | H35: 1 | J35: 1 | O35: 4 | P35: 2 | Q35: 4 | R35: 2 | S35: 4 | T35: 1 | U35: 0 | V35: 0 | W35: 0 | X35: 1 | Y35: 6 | Z35: 1 | AB35: 1 | AD35: 1 | AE35: 2 | AG35: 1 | AM35: 5 | AN35: 1 | AO35: 0 | AP35: 6 | AQ35: 4 | AR35: 0 | AS35: 1 | AT35: 0 | AU35: 1
A36: Valladolid | B36: 1 | D36: 1 | Q36: 1 | R36: 0 | S36: 1 | T36: 0 | U36: 1 | V36: 0 | W36: 0 | X36: 0
A37: Vizcaya (Bilbao) | B37: 5 | D37: 1 | G37: 1 | J37: 2 | O37: 1 | P37: 5 | R37: 1 | S37: 4 | T37: 1 | U37: 0 | V37: 1 | W37: 0 | X37: 2 | Y37: 4 | AE37: 2 | AF37: 1 | AG37: 1 | AM37: 2 | AN37: 2 | AO37: 1 | AP37: 3 | AQ37: 3 | AR37: 1 | AS37: 0 | AT37: 0 | AU37: 0
A38: Zaragoza | B38: 2 | I38: 1 | O38: 1 | Q38: 2 | R38: 0 | S38: 2 | T38: 1 | U38: 0 | V38: 0 | W38: 0 | X38: 0

Sheet Hoja11 (hidden)
A1: CAPITANIA | B1: Numero Total | C1: <03 | D1: <03,5 | E1: <04 | F1: <04,5 | G1: <05 | H1: <06 | I1: <08 | J1: <12 | K1: <15 | L1: <20 | M1: <24 | N1: >=24 | O1: MOTOS | P1: Misma Provincia | Q1: Diferente Provincia | R1: Lista 6 | S1: Lista 7 | T1: RIGIDO | U1: SEMIRIGIDO | V1: NEUMATICO | W1: Sin Datos | X1: VELA | Y1: Total ANT | Z1: 03 ANT | AA1: 035 ANT | AB1: 04 ANT | AC1: 045 ANT | AD1: 05 ANT | AE1: 06 ANT | AF1: 075 ANT | AG1: 12 ANT | AH1: 15 ANT | AI1: 20 ANT | AJ1: 24 ANT | AK1: >24 ANT | AL1: Motos ANT | AM1: Misma ANT | AN1: Dif ANT | AO1: 6 ANT | AP1: 7 ANT | AQ1: Rig ANT | AR1: Semi ANT | AS1: neu ANT | AT1: sd ANT | AU1: Vela ANT
A2: SIN DATOS | B2: 2 | D2: 1 | H2: 1 | Q2: 2 | R2: 0 | S2: 2 | T2: 0 | U2: 1 | V2: 1 | W2: 0 | X2: 0 | Y2: 4 | AB2: 1 | AC2: 2 | AD2: 1 | AN2: 4 | AO2: 0 | AP2: 4 | AQ2: 1 | AR2: 2 | AS2: 1 | AT2: 0 | AU2: 0
A3: Alicante | B3: 8 | C3: 1 | H3: 1 | I3: 3 | O3: 3 | P3: 7 | Q3: 1 | R3: 5 | S3: 3 | T3: 3 | U3: 1 | V3: 0 | W3: 0 | X3: 1 | Y3: 19 | AA3: 3 | AC3: 3 | AD3: 1 | AE3: 5 | AG3: 2 | AH3: 1 | AL3: 4 | AM3: 14 | AN3: 5 | AO3: 0 | AP3: 19 | AQ3: 8 | AR3: 3 | AS3: 2 | AT3: 0 | AU3: 2
A4: Almería | B4: 9 | C4: 2 | D4: 1 | H4: 3 | O4: 3 | P4: 6 | Q4: 3 | R4: 1 | S4: 8 | T4: 1 | U4: 2 | V4: 3 | W4: 0 | X4: 0 | Y4: 4 | AA4: 1 | AB4: 1 | AE4: 1 | AL4: 1 | AM4: 3 | AN4: 1 | AO4: 0 | AP4: 4 | AQ4: 0 | AR4: 1 | AS4: 2 | AT4: 0 | AU4: 0
A5: Asturias (Oviedo) | B5: 1 | I5: 1 | Q5: 1 | R5: 1 | S5: 0 | T5: 1 | U5: 0 | V5: 0 | W5: 0 | X5: 0 | Y5: 5 | AC5: 2 | AE5: 2 | AL5: 1 | AM5: 2 | AN5: 3 | AO5: 0 | AP5: 5 | AQ5: 2 | AR5: 1 | AS5: 0 | AT5: 1 | AU5: 0
A6: Badajoz | B6: 1 | O6: 1 | Q6: 1 | R6: 0 | S6: 1 | T6: 0 | U6: 0 | V6: 0 | W6: 0 | X6: 0 | Y6: 1 | Z6: 1 | AN6: 1 | AO6: 0 | AP6: 1 | AQ6: 0 | AR6: 0 | AS6: 1 | AT6: 0 | AU6: 0
A7: Baleares (Palma de Mallorca) | B7: 27 | D7: 1 | H7: 7 | I7: 10 | J7: 5 | O7: 4 | P7: 13 | Q7: 14 | R7: 3 | S7: 24 | T7: 16 | U7: 4 | V7: 0 | W7: 0 | X7: 3 | Y7: 27 | AC7: 3 | AD7: 2 | AE7: 6 | AF7: 8 | AG7: 2 | AH7: 4 | AI7: 1 | AL7: 1 | AM7: 16 | AN7: 11 | AO7: 2 | AP7: 25 | AQ7: 20 | AR7: 3 | AS7: 0 | AT7: 0 | AU7: 3
A8: Barcelona | B8: 16 | C8: 2 | D8: 1 | E8: 1 | H8: 4 | I8: 3 | J8: 5 | P8: 11 | Q8: 5 | R8: 0 | S8: 16 | T8: 9 | U8: 2 | V8: 3 | W8: 0 | X8: 2 | Y8: 14 | AC8: 1 | AD8: 2 | AE8: 5 | AF8: 3 | AG8: 3 | AM8: 8 | AN8: 6 | AO8: 1 | AP8: 13 | AQ8: 10 | AR8: 0 | AS8: 3 | AT8: 0 | AU8: 1
A9: Burgos | B9: 1 | J9: 1 | Q9: 1 | R9: 0 | S9: 1 | T9: 0 | U9: 0 | V9: 0 | W9: 0 | X9: 1
A10: Cáceres | Y10: 1 | AA10: 1 | AN10: 1 | AO10: 0 | AP10: 1 | AQ10: 1 | AR10: 0 | AS10: 0 | AT10: 0 | AU10: 0
A11: Cádiz | B11: 6 | F11: 1 | G11: 2 | H11: 1 | I11: 1 | O11: 1 | P11: 5 | Q11: 1 | R11: 0 | S11: 6 | T11: 3 | U11: 2 | V11: 0 | W11: 0 | X11: 0 | Y11: 13 | AC11: 4 | AE11: 3 | AF11: 4 | AL11: 2 | AM11: 9 | AN11: 4 | AO11: 0 | AP11: 13 | AQ11: 7 | AR11: 3 | AS11: 1 | AT11: 0 | AU11: 0
A12: Cantabria (Santander) | B12: 7 | D12: 1 | F12: 1 | G12: 1 | H12: 2 | I12: 2 | P12: 6 | Q12: 1 | R12: 0 | S12: 7 | T12: 5 | U12: 1 | V12: 1 | W12: 0 | X12: 0 | Y12: 2 | AE12: 2 | AM12: 1 | AN12: 1 | AO12: 0 | AP12: 2 | AQ12: 2 | AR12: 0 | AS12: 0 | AT12: 0 | AU12: 0
A13: Castellón | B13: 3 | C13: 1 | F13: 1 | O13: 1 | P13: 3 | R13: 1 | S13: 2 | T13: 1 | U13: 0 | V13: 1 | W13: 0 | X13: 0 | Y13: 1 | AL13: 1 | AN13: 1 | AO13: 0 | AP13: 1 | AQ13: 0 | AR13: 0 | AS13: 0 | AT13: 0 | AU13: 0
A14: Córdoba | B14: 1 | G14: 1 | Q14: 1 | R14: 0 | S14: 1 | T14: 1 | U14: 0 | V14: 0 | W14: 0 | X14: 0 | Y14: 1 | AA14: 1 | AN14: 1 | AO14: 0 | AP14: 1 | AQ14: 0 | AR14: 0 | AS14: 1 | AT14: 0 | AU14: 0
A15: Coruña | B15: 8 | F15: 1 | G15: 1 | H15: 3 | I15: 1 | O15: 2 | P15: 2 | Q15: 6 | R15: 0 | S15: 8 | T15: 6 | U15: 0 | V15: 0 | W15: 0 | X15: 0 | Y15: 7 | AB15: 4 | AE15: 1 | AG15: 1 | AL15: 1 | AM15: 2 | AN15: 5 | AO15: 0 | AP15: 7 | AQ15: 4 | AR15: 1 | AS15: 0 | AT15: 0 | AU15: 1
A16: Gerona | B16: 5 | C16: 1 | I16: 2 | K16: 2 | P16: 2 | Q16: 3 | R16: 1 | S16: 4 | T16: 2 | U16: 1 | V16: 1 | W16: 0 | X16: 1 | Y16: 7 | AA16: 1 | AB16: 1 | AD16: 2 | AE16: 1 | AF16: 1 | AG16: 1 | AM16: 3 | AN16: 4 | AO16: 3 | AP16: 4 | AQ16: 5 | AR16: 1 | AS16: 1 | AT16: 0 | AU16: 0
A17: Granada | B17: 3 | I17: 1 | J17: 1 | O17: 1 | P17: 1 | Q17: 2 | R17: 1 | S17: 2 | T17: 2 | U17: 0 | V17: 0 | W17: 0 | X17: 0 | Y17: 7 | AB17: 3 | AF17: 1 | AL17: 3 | AM17: 4 | AN17: 3 | AO17: 0 | AP17: 7 | AQ17: 3 | AR17: 0 | AS17: 1 | AT17: 0 | AU17: 0
A18: Guadalajara | B18: 1 | O18: 1 | Q18: 1 | R18: 0 | S18: 1 | T18: 0 | U18: 0 | V18: 0 | W18: 0 | X18: 0
A19: Guipúzcoa (San Sebastián) | B19: 1 | H19: 1 | Q19: 1 | R19: 0 | S19: 1 | T19: 1 | U19: 0 | V19: 0 | W19: 0 | X19: 0 | Y19: 1 | AB19: 1 | AN19: 1 | AO19: 0 | AP19: 1 | AQ19: 0 | AR19: 1 | AS19: 0 | AT19: 0 | AU19: 0
A20: Huelva | B20: 13 | C20: 1 | E20: 3 | F20: 2 | G20: 1 | I20: 2 | O20: 4 | P20: 9 | Q20: 4 | R20: 3 | S20: 10 | T20: 4 | U20: 1 | V20: 4 | W20: 0 | X20: 0 | Y20: 5 | AA20: 1 | AC20: 1 | AG20: 1 | AL20: 2 | AM20: 2 | AN20: 3 | AO20: 1 | AP20: 4 | AQ20: 3 | AR20: 0 | AS20: 0 | AT20: 0 | AU20: 0
A21: Jaén | Y21: 1 | AF21: 1 | AN21: 1 | AO21: 0 | AP21: 1 | AQ21: 1 | AR21: 0 | AS21: 0 | AT21: 0 | AU21: 0
A22: La Rioja (Logroño) | B22: 2 | C22: 1 | J22: 1 | Q22: 2 | R22: 0 | S22: 2 | T22: 0 | U22: 0 | V22: 1 | W22: 0 | X22: 1 | Y22: 1 | AE22: 1 | AN22: 1 | AO22: 0 | AP22: 1 | AQ22: 1 | AR22: 0 | AS22: 0 | AT22: 0 | AU22: 0
A23: Las Palmas | B23: 15 | D23: 1 | E23: 6 | F23: 1 | H23: 2 | I23: 1 | J23: 2 | K23: 1 | O23: 1 | P23: 11 | Q23: 4 | R23: 6 | S23: 9 | T23: 6 | U23: 5 | V23: 3 | W23: 0 | X23: 0 | Y23: 10 | Z23: 1 | AA23: 4 | AD23: 2 | AF23: 1 | AH23: 1 | AL23: 1 | AM23: 8 | AN23: 2 | AO23: 1 | AP23: 9 | AQ23: 3 | AR23: 0 | AS23: 6 | AT23: 0 | AU23: 0
A24: León | B24: 1 | H24: 1 | Q24: 1 | R24: 0 | S24: 1 | T24: 1 | U24: 0 | V24: 0 | W24: 0 | X24: 0 | Y24: 1 | AE24: 1 | AN24: 1 | AO24: 0 | AP24: 1 | AQ24: 1 | AR24: 0 | AS24: 0 | AT24: 0 | AU24: 0
A25: Lérida | B25: 1 | E25: 1 | Q25: 1 | R25: 0 | S25: 1 | T25: 0 | U25: 0 | V25: 1 | W25: 0 | X25: 0 | Y25: 1 | AF25: 1 | AN25: 1 | AO25: 0 | AP25: 1 | AQ25: 1 | AR25: 0 | AS25: 0 | AT25: 0 | AU25: 0
A26: Madrid | B26: 11 | D26: 2 | E26: 2 | H26: 3 | I26: 1 | K26: 1 | O26: 2 | Q26: 11 | R26: 1 | S26: 10 | T26: 3 | U26: 2 | V26: 2 | W26: 0 | X26: 2 | Y26: 11 | Z26: 1 | AA26: 1 | AB26: 1 | AE26: 1 | AF26: 2 | AG26: 1 | AI26: 2 | AL26: 2 | AN26: 11 | AO26: 0 | AP26: 11 | AQ26: 5 | AR26: 0 | AS26: 2 | AT26: 0 | AU26: 2
A27: Málaga | B27: 21 | D27: 4 | E27: 2 | F27: 1 | G27: 1 | H27: 7 | I27: 1 | J27: 1 | L27: 1 | O27: 3 | P27: 11 | Q27: 10 | R27: 5 | S27: 16 | T27: 12 | U27: 2 | V27: 3 | W27: 0 | X27: 1 | Y27: 8 | AA27: 1 | AH27: 2 | AL27: 5 | AM27: 4 | AN27: 4 | AO27: 0 | AP27: 8 | AQ27: 2 | AR27: 1 | AS27: 0 | AT27: 0 | AU27: 0
A28: Melilla | B28: 2 | O28: 2 | P28: 2 | R28: 0 | S28: 2 | T28: 0 | U28: 0 | V28: 0 | W28: 0 | X28: 0 | Y28: 1 | AL28: 1 | AM28: 1 | AO28: 0 | AP28: 1 | AQ28: 0 | AR28: 0 | AS28: 0 | AT28: 0 | AU28: 0
A29: Murcia | B29: 14 | C29: 1 | D29: 1 | F29: 1 | G29: 2 | H29: 4 | I29: 1 | J29: 1 | O29: 3 | P29: 9 | Q29: 5 | R29: 3 | S29: 11 | T29: 4 | U29: 4 | V29: 2 | W29: 0 | X29: 1 | Y29: 11 | Z29: 1 | AA29: 2 | AB29: 3 | AE29: 3 | AF29: 2 | AM29: 7 | AN29: 4 | AO29: 0 | AP29: 11 | AQ29: 4 | AR29: 2 | AS29: 4 | AT29: 0 | AU29: 1
A30: Navarra (Pamplona) | Y30: 3 | AB30: 2 | AF30: 1 | AN30: 3 | AO30: 0 | AP30: 3 | AQ30: 1 | AR30: 1 | AS30: 1 | AT30: 0 | AU30: 0
A31: Pontevedra | B31: 14 | E31: 1 | F31: 1 | G31: 2 | H31: 2 | I31: 2 | J31: 3 | O31: 3 | P31: 11 | Q31: 3 | R31: 2 | S31: 12 | T31: 7 | U31: 2 | V31: 0 | W31: 0 | X31: 2 | Y31: 5 | AE31: 1 | AF31: 1 | AH31: 1 | AL31: 2 | AM31: 5 | AO31: 0 | AP31: 5 | AQ31: 2 | AR31: 1 | AS31: 0 | AT31: 0 | AU31: 0
A32: Santa Cruz de Tenerife | B32: 10 | D32: 1 | E32: 1 | G32: 1 | H32: 3 | I32: 4 | P32: 6 | Q32: 4 | R32: 1 | S32: 9 | T32: 5 | U32: 2 | V32: 2 | W32: 1 | X32: 0 | Y32: 1 | AC32: 1 | AM32: 1 | AO32: 1 | AP32: 0 | AQ32: 1 | AR32: 0 | AS32: 0 | AT32: 0 | AU32: 0
A33: Sevilla | B33: 5 | G33: 1 | H33: 1 | I33: 1 | O33: 2 | P33: 1 | Q33: 4 | R33: 0 | S33: 5 | T33: 3 | U33: 0 | V33: 0 | W33: 0 | X33: 0 | Y33: 6 | Z33: 1 | AA33: 2 | AB33: 2 | AC33: 1 | AM33: 5 | AN33: 1 | AO33: 1 | AP33: 5 | AQ33: 1 | AR33: 0 | AS33: 5 | AT33: 0 | AU33: 0
A34: Tarragona | B34: 3 | E34: 1 | I34: 1 | K34: 1 | P34: 2 | Q34: 1 | R34: 0 | S34: 3 | T34: 3 | U34: 0 | V34: 0 | W34: 0 | X34: 0 | Y34: 3 | AF34: 2 | AH34: 1 | AM34: 2 | AN34: 1 | AO34: 0 | AP34: 3 | AQ34: 3 | AR34: 0 | AS34: 0 | AT34: 0 | AU34: 0
A35: Valencia | B35: 6 | H35: 1 | J35: 1 | O35: 4 | P35: 2 | Q35: 4 | R35: 2 | S35: 4 | T35: 1 | U35: 0 | V35: 0 | W35: 0 | X35: 1 | Y35: 6 | Z35: 1 | AB35: 1 | AD35: 1 | AE35: 2 | AG35: 1 | AM35: 5 | AN35: 1 | AO35: 0 | AP35: 6 | AQ35: 4 | AR35: 0 | AS35: 1 | AT35: 0 | AU35: 1
A36: Valladolid | B36: 1 | D36: 1 | Q36: 1 | R36: 0 | S36: 1 | T36: 0 | U36: 1 | V36: 0 | W36: 0 | X36: 0
A37: Vizcaya (Bilbao) | B37: 5 | D37: 1 | G37: 1 | J37: 2 | O37: 1 | P37: 5 | R37: 1 | S37: 4 | T37: 1 | U37: 0 | V37: 1 | W37: 0 | X37: 2 | Y37: 4 | AE37: 2 | AF37: 1 | AG37: 1 | AM37: 2 | AN37: 2 | AO37: 1 | AP37: 3 | AQ37: 3 | AR37: 1 | AS37: 0 | AT37: 0 | AU37: 0
A38: Zaragoza | B38: 2 | I38: 1 | O38: 1 | Q38: 2 | R38: 0 | S38: 2 | T38: 1 | U38: 0 | V38: 0 | W38: 0 | X38: 0
